NUMERO_MANDATO;RIGA_MANDATO;QUIET;IMPORTO_RIGA;IMPORTO_MANDATO;BENEFICIARIO;CIG;TITOLO_PAGAMENTO;DATA_MANDATO;CAPITOLO;ARTICOLO;NUMERO_IMPEGNO;TITOLO;DESCR_TITOLO;LIVELLO_II;DESCR_LIVELLO_II;LIVELLO_III;DESCR_LIVELLO_III;LIVELLO_IV;DESCR_LIVELLO_IV;LIVELLO_V;DESCR_LIVELLO_V;DATA_PAG_EFF
767;1;0;150;405;OMESSO NOMINATIVO NEL RISPETTO DELLA NORMATIVA SULLA PROTEZIONE DATI PERSONALI; ;Liquidazione spesa per erogazione contributi straordinari a persone indigenti.;14/07/2018;1950;0;268;1;Spese correnti;4;Trasferimenti correnti;2;Trasferimenti correnti a Famiglie;2;Interventi assistenziali;999;Altri assegni e sussidi assistenziali;14/07/2018
767;2;1049;55;405;OMESSO NOMINATIVO NEL RISPETTO DELLA NORMATIVA SULLA PROTEZIONE DATI PERSONALI; ;Liquidazione spesa per erogazione contributi straordinari a persone indigenti.;14/07/2018;1950;0;268;1;Spese correnti;4;Trasferimenti correnti;2;Trasferimenti correnti a Famiglie;2;Interventi assistenziali;999;Altri assegni e sussidi assistenziali;18/07/2018
767;3;1050;200;405;OMESSO NOMINATIVO NEL RISPETTO DELLA NORMATIVA SULLA PROTEZIONE DATI PERSONALI; ;Liquidazione spesa per erogazione contributi straordinari a persone indigenti.;14/07/2018;1950;0;268;1;Spese correnti;4;Trasferimenti correnti;2;Trasferimenti correnti a Famiglie;2;Interventi assistenziali;999;Altri assegni e sussidi assistenziali;18/07/2018
807;1;0;613,55;613,55;GASPARINI MORENO; ;INDENNITA' DI CARICA SINDACO - LUGLIO 2018;18/07/2018;20;0;16;1;Spese correnti;3;Acquisto di beni e servizi;2;Acquisto di servizi;1;Organi e incarichi istituzionali dell'amministrazione;1;Organi istituzionali dell'amministrazione - Indennità;18/07/2018
809;1;0;15;15;GASPARINI MORENO; ;Rimborso spese sostenute dal personale dipendente relative a missioni effettuate durante il II e III quadrimestre 2017 e I quadrimestre 2018.;18/07/2018;24;0;223;1;Spese correnti;3;Acquisto di beni e servizi;2;Acquisto di servizi;1;Organi e incarichi istituzionali dell'amministrazione;2;Organi istituzionali dell'amministrazione - Rimborsi;18/07/2018
810;1;0;100;100;OMESSO NOMINATIVO NEL RISPETTO DELLA NORMATIVA SULLA PROTEZIONE DATI PERSONALI; ;Assunzione impegno di spesa per contributo per progetto di integrazione sociale in ambito lavorativo.-;18/07/2018;1950;0;134;1;Spese correnti;4;Trasferimenti correnti;2;Trasferimenti correnti a Famiglie;2;Interventi assistenziali;999;Altri assegni e sussidi assistenziali;18/07/2018
811;1;0;100;100;OMESSO NOMINATIVO NEL RISPETTO DELLA NORMATIVA SULLA PROTEZIONE DATI PERSONALI; ;Assunzione impegno di spesa per contributo per progetto di integrazione sociale in ambito lavorativo.;18/07/2018;1950;0;294;1;Spese correnti;4;Trasferimenti correnti;2;Trasferimenti correnti a Famiglie;2;Interventi assistenziali;999;Altri assegni e sussidi assistenziali;18/07/2018
812;1;0;100;100;OMESSO NOMINATIVO NEL RISPETTO DELLA NORMATIVA SULLA PROTEZIONE DATI PERSONALI; ;Liquidazione contributo per progetto di integrazione sociale in ambito lavorativo.-;18/07/2018;1950;0;9;1;Spese correnti;4;Trasferimenti correnti;2;Trasferimenti correnti a Famiglie;2;Interventi assistenziali;999;Altri assegni e sussidi assistenziali;18/07/2018
814;1;0;1.317,60;1.317,60;PARTNERPATCH DI GIUSEPPE SATRIANO;ZEA23FC03A;SALDO Fatt.n. 144/PA  del 20/06/2018 SACCHI DI ASFALTO A FREDDO;23/07/2018;2008;0;249;1;Spese correnti;3;Acquisto di beni e servizi;1;Acquisto di beni;2;Altri beni di consumo;999;Altri beni e materiali di consumo n.a.c.;23/07/2018
815;1;0;366;366;VENETO SERVIZI SRL SEMPLIFICATA;Z4222D192A;SALDO Fatt.n. FATTPA 1_18  del 13/06/2018 LAVORI DI STRAORDINARIA MANUTENZIONE QUADRO ELETTRICO SCUOLE ELEMENTARI;23/07/2018;345;0;130;1;Spese correnti;3;Acquisto di beni e servizi;2;Acquisto di servizi;9;Manutenzione ordinaria e riparazioni;8;Manutenzione ordinaria e riparazioni di beni immobili;23/07/2018
817;1;0;125,94;2.551,77;EDISON ENERGIA SPA; ;SALDO Fatt.n. 2900109889  del 27/06/2018 Spesa per fornitura energia elettrica Maggio 2018;24/07/2018;82;10;18;1;Spese correnti;3;Acquisto di beni e servizi;2;Acquisto di servizi;5;Utenze e canoni;4;Energia elettrica;24/07/2018
817;2;0;490,95;2.551,77;EDISON ENERGIA SPA; ;SALDO Fatt.n. 2900109887  del 27/06/2018 Spesa per fornitura energia elettrica mesi di Aprile e Maggio 2018;24/07/2018;82;10;18;1;Spese correnti;3;Acquisto di beni e servizi;2;Acquisto di servizi;5;Utenze e canoni;4;Energia elettrica;24/07/2018
817;3;0;524,54;2.551,77;EDISON ENERGIA SPA; ;SALDO Fatt.n. 2900109888  del 27/06/2018 Spesa per fornitura energia elettrica mesi di Aprile e Maggio 2018;24/07/2018;82;10;18;1;Spese correnti;3;Acquisto di beni e servizi;2;Acquisto di servizi;5;Utenze e canoni;4;Energia elettrica;24/07/2018
817;4;0;1.410,34;2.551,77;EDISON ENERGIA SPA; ;ACCONTO Fatt.n. 2900109885  del 27/06/2018 Spesa per fornitura energia elettrica mesi di Aprile e Maggio 2018;24/07/2018;82;10;18;1;Spese correnti;3;Acquisto di beni e servizi;2;Acquisto di servizi;5;Utenze e canoni;4;Energia elettrica;24/07/2018
818;1;0;150,28;150,28;EDISON ENERGIA SPA; ;ACCONTO Fatt.n. 2900109885  del 27/06/2018 Spesa per fornitura energia elettrica mesi di Aprile e Maggio 2018;24/07/2018;935;10;22;1;Spese correnti;3;Acquisto di beni e servizi;2;Acquisto di servizi;5;Utenze e canoni;4;Energia elettrica;24/07/2018
819;1;0;361,74;361,74;EDISON ENERGIA SPA; ;ACCONTO Fatt.n. 2900109885  del 27/06/2018 Spesa per fornitura energia elettrica mesi di Aprile e Maggio 2018;24/07/2018;1418;10;24;1;Spese correnti;3;Acquisto di beni e servizi;2;Acquisto di servizi;5;Utenze e canoni;4;Energia elettrica;24/07/2018
820;1;0;216,93;216,93;EDISON ENERGIA SPA; ;ACCONTO Fatt.n. 2900109885  del 27/06/2018 Spesa per fornitura energia elettrica mesi di Aprile e Maggio 2018;24/07/2018;940;10;23;1;Spese correnti;3;Acquisto di beni e servizi;2;Acquisto di servizi;5;Utenze e canoni;4;Energia elettrica;24/07/2018
821;1;0;569,19;569,19;EDISON ENERGIA SPA; ;ACCONTO Fatt.n. 2900109885  del 27/06/2018 Spesa per fornitura energia elettrica mesi di Aprile e Maggio 2018;24/07/2018;1794;10;26;1;Spese correnti;3;Acquisto di beni e servizi;2;Acquisto di servizi;5;Utenze e canoni;4;Energia elettrica;24/07/2018
822;1;0;582,52;582,52;EDISON ENERGIA SPA; ;ACCONTO Fatt.n. 2900109885  del 27/06/2018 Spesa per fornitura energia elettrica mesi di Aprile e Maggio 2018;24/07/2018;735;10;21;1;Spese correnti;3;Acquisto di beni e servizi;2;Acquisto di servizi;5;Utenze e canoni;4;Energia elettrica;24/07/2018
823;1;0;128,63;128,63;EDISON ENERGIA SPA; ;ACCONTO Fatt.n. 2900109885  del 27/06/2018 Spesa per fornitura energia elettrica mesi di Aprile e Maggio 2018;24/07/2018;1777;10;25;1;Spese correnti;3;Acquisto di beni e servizi;2;Acquisto di servizi;5;Utenze e canoni;4;Energia elettrica;24/07/2018
824;1;0;159,54;159,54;EDISON ENERGIA SPA; ;ACCONTO Fatt.n. 2900109885  del 27/06/2018 Spesa per fornitura energia elettrica mesi di Aprile e Maggio 2018;24/07/2018;693;10;20;1;Spese correnti;3;Acquisto di beni e servizi;2;Acquisto di servizi;5;Utenze e canoni;4;Energia elettrica;24/07/2018
825;1;0;496,72;496,72;EDISON ENERGIA SPA; ;SALDO Fatt.n. 2900109885  del 27/06/2018 Spesa per fornitura energia elettrica mesi di Aprile e Maggio 2018;24/07/2018;649;10;19;1;Spese correnti;3;Acquisto di beni e servizi;2;Acquisto di servizi;5;Utenze e canoni;4;Energia elettrica;24/07/2018
826;1;0;7,01;7,01;KUWAIT PETROLEUM ITALIA S.P.A.;ZEA1A355E2;SALDO Fatt.n. PJ00144876  del 30/06/2018;24/07/2018;2000;0;49;1;Spese correnti;3;Acquisto di beni e servizi;1;Acquisto di beni;2;Altri beni di consumo;2;Carburanti, combustibili e lubrificanti;24/07/2018
827;1;0;89;89;KUWAIT PETROLEUM ITALIA S.P.A.;Z0F1755350;SALDO Fatt.n. PJ00144875  del 30/06/2018 FORNITURA CARBURANTE PER MEZZI COMUNALI;24/07/2018;2000;0;49;1;Spese correnti;3;Acquisto di beni e servizi;1;Acquisto di beni;2;Altri beni di consumo;2;Carburanti, combustibili e lubrificanti;24/07/2018
828;1;0;220;220;ASSOCIAZIONE CITTA' DELLA MUSICA;ZD323C836A;SALDO Fatt.n. FATTPA 1_18  del 28/06/2018 PRESTAZIONI ARTISTICHE SVOLTE IN OCCASIONE SAGRA DEL PANE;24/07/2018;935;1;211;1;Spese correnti;3;Acquisto di beni e servizi;2;Acquisto di servizi;2;Organizzazione eventi, pubblicita` e servizi per trasferta;5;Organizzazione e partecipazione a manifestazioni e convegni;24/07/2018
829;1;0;315,6;315,6;LEGGERE S.R.L.;ZF323E25E0;SALDO Fatt.n. 11459  del 29/06/2018 FORNITURA LIBRI PER BIBLIOTECA COMUNALE;24/07/2018;930;0;218;1;Spese correnti;3;Acquisto di beni e servizi;1;Acquisto di beni;1;Giornali, riviste e pubblicazioni;2;Pubblicazioni;24/07/2018
830;1;0;68,16;1.075,51;TELECOM ITALIA S.P.A.; ;SALDO Fatt.n. 8E00482896  del 06/06/2018 Spesa per traffico telefonico mesi di Aprile e Maggio 2018;24/07/2018;82;13;44;1;Spese correnti;3;Acquisto di beni e servizi;2;Acquisto di servizi;5;Utenze e canoni;1;Telefonia fissa;24/07/2018
830;2;0;85,4;1.075,51;TELECOM ITALIA S.P.A.; ;SALDO Fatt.n. 8E00478729  del 06/06/2018 Spesa per traffico telefonico mesi di Aprile e Maggio 2018;24/07/2018;82;13;44;1;Spese correnti;3;Acquisto di beni e servizi;2;Acquisto di servizi;5;Utenze e canoni;1;Telefonia fissa;24/07/2018
830;3;0;176,64;1.075,51;TELECOM ITALIA S.P.A.; ;SALDO Fatt.n. 8E00483195  del 06/06/2018 Spesa per traffico internet mesi di Aprile e Maggio 2018;24/07/2018;82;13;44;1;Spese correnti;3;Acquisto di beni e servizi;2;Acquisto di servizi;5;Utenze e canoni;1;Telefonia fissa;24/07/2018
830;4;0;191,94;1.075,51;TELECOM ITALIA S.P.A.; ;SALDO Fatt.n. 8E00481726  del 06/06/2018 Spesa per traffico telefonico mesi di Aprile e Maggio 2018;24/07/2018;82;13;44;1;Spese correnti;3;Acquisto di beni e servizi;2;Acquisto di servizi;5;Utenze e canoni;1;Telefonia fissa;24/07/2018
830;5;0;192,68;1.075,51;TELECOM ITALIA S.P.A.; ;SALDO Fatt.n. 8E00482881  del 06/06/2018 Spesa per  traffico telefonico mesi di Aprile e Maggio 2018;24/07/2018;82;13;44;1;Spese correnti;3;Acquisto di beni e servizi;2;Acquisto di servizi;5;Utenze e canoni;1;Telefonia fissa;24/07/2018
830;6;0;360,69;1.075,51;TELECOM ITALIA S.P.A.; ;SALDO Fatt.n. 8E00478118  del 06/06/2018 Spesa per traffico telefonico mesi di Aprile e Maggio 2018;24/07/2018;82;13;44;1;Spese correnti;3;Acquisto di beni e servizi;2;Acquisto di servizi;5;Utenze e canoni;1;Telefonia fissa;24/07/2018
831;1;0;94,38;94,38;TELECOM ITALIA S.P.A.; ;SALDO Fatt.n. 8E00481174  del 06/06/2018 Spesa per traffico telefonico mesi di Aprile e Maggio 2018;24/07/2018;649;13;45;1;Spese correnti;3;Acquisto di beni e servizi;2;Acquisto di servizi;5;Utenze e canoni;1;Telefonia fissa;24/07/2018
832;1;0;104,81;104,81;TELECOM ITALIA S.P.A.; ;SALDO Fatt.n. 8E00478167  del 06/06/2018 Spesa per traffico telefonico mesi di Aprile e Maggio 2018;24/07/2018;693;13;46;1;Spese correnti;3;Acquisto di beni e servizi;2;Acquisto di servizi;5;Utenze e canoni;1;Telefonia fissa;24/07/2018
833;1;0;172,33;172,33;TELECOM ITALIA S.P.A.; ;SALDO Fatt.n. 8E00478169  del 06/06/2018 Spesa per traffico telefonico mesi di Aprile e Maggio 2018;24/07/2018;935;13;48;1;Spese correnti;3;Acquisto di beni e servizi;2;Acquisto di servizi;5;Utenze e canoni;1;Telefonia fissa;24/07/2018
834;1;0;72,08;72,08;TELECOM ITALIA S.P.A.; ;SALDO Fatt.n. 8E00480222  del 06/06/2018 Spesa per traffico telefonico mesi di Aprile e Maggio 2018;24/07/2018;940;13;49;1;Spese correnti;3;Acquisto di beni e servizi;2;Acquisto di servizi;5;Utenze e canoni;1;Telefonia fissa;24/07/2018
835;1;0;1.180,96;1.180,96;DATAPIANO S.R.L. SERVIZI INFORMATICI PER IL TERRITORIO;Z612302330;SALDO Fatt.n. FATTPA 53_18  del 26/04/2018 Contratto di assistenza e manutenz sw STR Vision PBM anno 2018 Rif. ns Proposta economica n. 545/2017em-PEC del 13/11/2017 Rif. Trattativa MEPA n. 452941 del 21/04/2018;24/07/2018;197;0;152;1;Spese correnti;3;Acquisto di beni e servizi;2;Acquisto di servizi;5;Utenze e canoni;3;Accesso a banche dati e a pubblicazioni on line;24/07/2018
836;1;0;1.000,00;1.000,00;DATAPIANO S.R.L. SERVIZI INFORMATICI PER IL TERRITORIO;Z1B21035C3;SALDO Fatt.n. FATTPA 54_18  del 26/04/2018 Formaz STR Vision PBM (n.2 incontri) Rif. ns.offerta Mepa del 30/11/2017 Rif. Vs.stipula Mepa n.325768 Rif. Det n.316 Reg.Gen.del 11/12/2017. Rif.Rapporti d' intervento del 16/04/2018 e 24/04/2018;24/07/2018;197;0;358;1;Spese correnti;3;Acquisto di beni e servizi;2;Acquisto di servizi;5;Utenze e canoni;3;Accesso a banche dati e a pubblicazioni on line;24/07/2018
837;1;0;244;244;DATAPIANO S.R.L. SERVIZI INFORMATICI PER IL TERRITORIO;Z1B21035C3;SALDO Fatt.n. FATTPA 55_18  del 26/04/2018 Formaz STR Vision PBM (n.2 incontri) Rif. ns.offerta Mepa del 30/11/2017 Rif. Vs.stipula Mepa n.325768 Rif. Det n.316 Reg.Gen.del 11/12/2017. Rif.Rapporti d' intervento del 16/04/2018 e 24/04/2018;24/07/2018;197;0;358;1;Spese correnti;3;Acquisto di beni e servizi;2;Acquisto di servizi;5;Utenze e canoni;3;Accesso a banche dati e a pubblicazioni on line;24/07/2018
838;1;0;1.268,80;1.268,80;BARIN MATTEO;ZA9211BB0B;"SALDO Fatt.n. FATTPA 1_18  del 27/04/2018 Incarico per servizio tecnico di progettazione strutturale opere di fondazione impianto ""autovelox"" da installare in via del Mare nel comune di Loreo- ing. Matteo Barin - CIG ZA9211BB0B";24/07/2018;2007;0;402;1;Spese correnti;3;Acquisto di beni e servizi;2;Acquisto di servizi;11;Prestazioni professionali e specialistiche;999;Altre prestazioni professionali e specialistiche n.a.c.;24/07/2018
839;1;0;1.766,37;1.766,37;COOPERATIVA SOCIALE COOPSELIOS S.C.R.L.; ;SALDO Fatt.n. 004637-0C02  del 18/06/2018 RETTA OSPITE MESE DI GIUGNO 2018;24/07/2018;1955;0;4;1;Spese correnti;4;Trasferimenti correnti;4;Trasferimenti correnti a Istituzioni Sociali Private;1;Trasferimenti correnti a Istituzioni Sociali Private;1;Trasferimenti correnti a Istituzioni Sociali Private;24/07/2018
840;1;0;-30,93;173,91;ACQUEVENETE SPA; ;SALDO Fatt.n. BEP18-0002834  del 20/06/2018 Nota di credito per consumo idrico Marzo - Maggio 2018;25/07/2018;82;12;35;1;Spese correnti;3;Acquisto di beni e servizi;2;Acquisto di servizi;5;Utenze e canoni;5;Acqua;25/07/2018
840;2;0;204,84;173,91;ACQUEVENETE SPA; ;SALDO Fatt.n. BEP18-0002832  del 20/06/2018 Spesa per fornitura idrica Marzo - Maggio 2018;25/07/2018;82;12;35;1;Spese correnti;3;Acquisto di beni e servizi;2;Acquisto di servizi;5;Utenze e canoni;5;Acqua;25/07/2018
841;1;0;63,55;63,55;ACQUEVENETE SPA; ;SALDO Fatt.n. BEP18-0002828  del 20/06/2018 Spesa per fornitura idrica Marzo - Maggio 2018;25/07/2018;935;12;39;1;Spese correnti;3;Acquisto di beni e servizi;2;Acquisto di servizi;5;Utenze e canoni;5;Acqua;25/07/2018
842;1;0;19,5;19,5;ACQUEVENETE SPA; ;SALDO Fatt.n. BEP18-0002837  del 20/06/2018 Spesa per fornitura idrica Marzo - Maggio 2018;25/07/2018;735;12;38;1;Spese correnti;3;Acquisto di beni e servizi;2;Acquisto di servizi;5;Utenze e canoni;5;Acqua;25/07/2018
843;1;0;144;144;MAGGIOLI SPA;Z32236354F;SALDO Fatt.n. 0005958953  del 30/06/2018 FORNITURA DI LIBRI;25/07/2018;92;0;217;1;Spese correnti;3;Acquisto di beni e servizi;1;Acquisto di beni;1;Giornali, riviste e pubblicazioni;2;Pubblicazioni;25/07/2018
844;1;0;2.235,00;2.235,00;ISTITUTO OSPEDALIERO DI SOSPIRO - ONLUS; ;SALDO Fatt.n. 1490/F  del 30/06/2018 Retta Dall'Oco Giuseppino;25/07/2018;1955;0;5;1;Spese correnti;4;Trasferimenti correnti;4;Trasferimenti correnti a Istituzioni Sociali Private;1;Trasferimenti correnti a Istituzioni Sociali Private;1;Trasferimenti correnti a Istituzioni Sociali Private;25/07/2018
845;1;0;3.399,90;3.399,90;CIASS CONSORZIO ISOLA DI ARIANO PER I SERVIZI SOCIALI; ;SALDO Fatt.n. 201/1/1  del 12/07/2018 RENDICONTAZIONE PRIMO SEM. 2018 Ospite parzialmente a carico: ZANELLATO NADIA;25/07/2018;1955;0;6;1;Spese correnti;4;Trasferimenti correnti;4;Trasferimenti correnti a Istituzioni Sociali Private;1;Trasferimenti correnti a Istituzioni Sociali Private;1;Trasferimenti correnti a Istituzioni Sociali Private;25/07/2018
846;1;0;878,4;878,4;ABITAT SISTEMI INFORMATIVI SRL;ZF223DC38F;SALDO Fatt.n. 000088-2018-PA  del 22/06/2018 MANTENIMENTO SERVIZI MULTIMEDIALI ED ACCESSORI PER L'ANNO 2018;25/07/2018;247;0;215;1;Spese correnti;3;Acquisto di beni e servizi;2;Acquisto di servizi;19;Servizi informatici e di telecomunicazioni;1;Gestione e manutenzione applicazioni;25/07/2018
847;1;0;6.466,00;6.466,00;BOXXAPPS SRL;Z402052460;SALDO Fatt.n. 1/180341  del 25/06/2018 SERVIZI MINIMI DI SICUREZZA DEL PATRIMONIO INFORMATICO DELLE P.A. ED ELABORAZIONE AGGIORNATA DPS (DOCUMENTO DELLA PRIVACY EUROPEO);25/07/2018;247;0;266;1;Spese correnti;3;Acquisto di beni e servizi;2;Acquisto di servizi;19;Servizi informatici e di telecomunicazioni;1;Gestione e manutenzione applicazioni;25/07/2018
848;1;0;-300,11;2.568,63;WOLTERS KLUWER ITALIA S.R.L.;ZF722E889A;SALDO Fatt.n. 0039900949  del 30/03/2018 STORNO PARZIALE FATTURA N. 53509195 DEL 05.04.2018;25/07/2018;247;0;133;1;Spese correnti;3;Acquisto di beni e servizi;2;Acquisto di servizi;19;Servizi informatici e di telecomunicazioni;1;Gestione e manutenzione applicazioni;25/07/2018
848;2;0;2.868,74;2.568,63;WOLTERS KLUWER ITALIA S.R.L.;ZF722E889A;SALDO Fatt.n. 0053509195  del 05/04/2018 ABBONAMENTO ON LINE LEGGI D'ITALIA ANNO 2018;25/07/2018;247;0;133;1;Spese correnti;3;Acquisto di beni e servizi;2;Acquisto di servizi;19;Servizi informatici e di telecomunicazioni;1;Gestione e manutenzione applicazioni;25/07/2018
849;1;0;4.026,00;8.052,00;VELOCAR S.R.L.;ZCE222EA93;SALDO Fatt.n. 215/FE  del 02/06/2018 Canone locazione Evo-R;25/07/2018;2017;0;422;1;Spese correnti;3;Acquisto di beni e servizi;2;Acquisto di servizi;7;Utilizzo di beni di terzi;8;Noleggi di impianti e macchinari;25/07/2018
849;2;0;4.026,00;8.052,00;VELOCAR S.R.L.;ZCE222EA93;SALDO Fatt.n. 261/FE  del 02/07/2018 Canone locazione Evo-R mese di Luglio 2018;25/07/2018;2017;0;422;1;Spese correnti;3;Acquisto di beni e servizi;2;Acquisto di servizi;7;Utilizzo di beni di terzi;8;Noleggi di impianti e macchinari;25/07/2018
850;1;0;10.315,60;17.514,98;MAGGIOLI SPA;ZC822997E0;SALDO Fatt.n. 0001118411  del 30/06/2018 Rivalsa soese postali anticipate servizio notifica A.G.;25/07/2018;2017;0;112;1;Spese correnti;3;Acquisto di beni e servizi;2;Acquisto di servizi;7;Utilizzo di beni di terzi;8;Noleggi di impianti e macchinari;25/07/2018
850;2;0;7.199,38;17.514,98;MAGGIOLI SPA;ZC822997E0;SALDO Fatt.n. 0002129503  del 30/06/2018 Gestione atti relativi a verbali CdS;25/07/2018;2017;0;112;1;Spese correnti;3;Acquisto di beni e servizi;2;Acquisto di servizi;7;Utilizzo di beni di terzi;8;Noleggi di impianti e macchinari;25/07/2018
851;1;0;2.221,62;2.221,62;MAGGIOLI SPA;ZC822997E0;SALDO Fatt.n. 0002128418  del 30/06/2018 Gestione forfettaria servizio data entry mese di giugno 2018;25/07/2018;2017;0;194;1;Spese correnti;3;Acquisto di beni e servizi;2;Acquisto di servizi;7;Utilizzo di beni di terzi;8;Noleggi di impianti e macchinari;25/07/2018
852;1;0;110;510;OMESSO NOMINATIVO NEL RISPETTO DELLA NORMATIVA SULLA PROTEZIONE DATI PERSONALI; ;Erogazione contributi straordinari a persone indigenti;06/08/2018;1950;0;286;1;Spese correnti;4;Trasferimenti correnti;2;Trasferimenti correnti a Famiglie;2;Interventi assistenziali;999;Altri assegni e sussidi assistenziali;06/08/2018
852;2;0;85;510;OMESSO NOMINATIVO NEL RISPETTO DELLA NORMATIVA SULLA PROTEZIONE DATI PERSONALI; ;Erogazione contributi straordinari a persone indigenti;06/08/2018;1950;0;286;1;Spese correnti;4;Trasferimenti correnti;2;Trasferimenti correnti a Famiglie;2;Interventi assistenziali;999;Altri assegni e sussidi assistenziali;06/08/2018
852;3;0;115;510;OMESSO NOMINATIVO NEL RISPETTO DELLA NORMATIVA SULLA PROTEZIONE DATI PERSONALI; ;Erogazione contributi straordinari a persone indigenti;06/08/2018;1950;0;286;1;Spese correnti;4;Trasferimenti correnti;2;Trasferimenti correnti a Famiglie;2;Interventi assistenziali;999;Altri assegni e sussidi assistenziali;06/08/2018
852;4;0;200;510;OMESSO NOMINATIVO NEL RISPETTO DELLA NORMATIVA SULLA PROTEZIONE DATI PERSONALI; ;Erogazione contributi straordinari a persone indigenti;06/08/2018;1950;0;286;1;Spese correnti;4;Trasferimenti correnti;2;Trasferimenti correnti a Famiglie;2;Interventi assistenziali;999;Altri assegni e sussidi assistenziali;06/08/2018
853;1;0;-854;854;MAGGIOLI SPA;Z32236354F;SALDO Fatt.n. 0002129258  del 30/06/2018 STORNO FATTURA N. 2121769 DEL 18.05.2018 PER ERRATA FATTURAZIONE;06/08/2018;197;0;201;1;Spese correnti;3;Acquisto di beni e servizi;2;Acquisto di servizi;5;Utenze e canoni;3;Accesso a banche dati e a pubblicazioni on line;06/08/2018
853;2;0;854;854;MAGGIOLI SPA;Z32236354F;SALDO Fatt.n. 0002121769  del 18/05/2018 SISTEMA P.A. APPALTI E CONTRATTI TRIENNALE - ANNUALITA' 1;06/08/2018;197;0;201;1;Spese correnti;3;Acquisto di beni e servizi;2;Acquisto di servizi;5;Utenze e canoni;3;Accesso a banche dati e a pubblicazioni on line;06/08/2018
853;3;0;854;854;MAGGIOLI SPA;Z32236354F;SALDO Fatt.n. 0002129259  del 30/06/2018 SISTEMA P.A. APPALTI E CONTRATTI - TRIENNALE - PRIMA ANNUALITA';06/08/2018;197;0;201;1;Spese correnti;3;Acquisto di beni e servizi;2;Acquisto di servizi;5;Utenze e canoni;3;Accesso a banche dati e a pubblicazioni on line;06/08/2018
854;1;0;337,32;337,32;SPIGOLON SANDRO  OFFICINA-CARROZZERIA;Z75232266C;SALDO Fatt.n. 1/E  del 25/06/2018 Manutenzione veicolo Land Rover Defender;06/08/2018;1680;0;155;1;Spese correnti;3;Acquisto di beni e servizi;2;Acquisto di servizi;11;Prestazioni professionali e specialistiche;999;Altre prestazioni professionali e specialistiche n.a.c.;06/08/2018
855;1;0;101,66;101,66;OTIS SERVIZI SRL;Z4C172FDFB;SALDO Fatt.n. 3FO18061625  del 22/06/2018 Competenze Servizi di Manutenzione;06/08/2018;345;0;114;1;Spese correnti;3;Acquisto di beni e servizi;2;Acquisto di servizi;9;Manutenzione ordinaria e riparazioni;8;Manutenzione ordinaria e riparazioni di beni immobili;06/08/2018
856;1;0;508,31;508,31;OTIS SERVIZI SRL;Z9A2230C9A;SALDO Fatt.n. 3FO18062110  del 22/06/2018 Competenze Servizi di Manutenzione;06/08/2018;345;0;84;1;Spese correnti;3;Acquisto di beni e servizi;2;Acquisto di servizi;9;Manutenzione ordinaria e riparazioni;8;Manutenzione ordinaria e riparazioni di beni immobili;06/08/2018
857;1;0;1.683,60;1.683,60;FALEGNAMERIA POZZATO ANGELO & C. S.N.C.;Z2522ED558;SALDO Fatt.n. 01  del 26/06/2018 LAVORI DI SISTEMAZIONE PORTONCINO D'INGRESSO SPOGLIATOIO PERSONALE ESTERNO;06/08/2018;345;0;156;1;Spese correnti;3;Acquisto di beni e servizi;2;Acquisto di servizi;9;Manutenzione ordinaria e riparazioni;8;Manutenzione ordinaria e riparazioni di beni immobili;06/08/2018
860;1;0;326,54;326,54;AGENZIA DELLE ENTRATE; ;VERSAMENTO I.V.A. A DEBITO PER LE GESTIONI COMMERCIALI - II TRIMESTRE 2018 - F24EP SCADENZA 16.08.2018;06/08/2018;91;0;289;1;Spese correnti;10;Altre spese correnti;3;Versamenti IVA a debito;1;Versamenti IVA a debito per le gestioni commerciali;1;Versamenti IVA a debito per le gestioni commerciali;06/08/2018
907;1;0;613,55;613,55;GASPARINI MORENO; ;INDENNITA' DI CARICA SINDACO - AGOSTO 2018;10/08/2018;20;0;16;1;Spese correnti;3;Acquisto di beni e servizi;2;Acquisto di servizi;1;Organi e incarichi istituzionali dell'amministrazione;1;Organi istituzionali dell'amministrazione - Indennità;10/08/2018
909;1;0;100;100;OMESSO NOMINATIVO NEL RISPETTO DELLA NORMATIVA SULLA PROTEZIONE DATI PERSONALI; ;Assunzione impegno di spesa per contributo per progetto di integrazione sociale in ambito lavorativo.-;10/08/2018;1950;0;134;1;Spese correnti;4;Trasferimenti correnti;2;Trasferimenti correnti a Famiglie;2;Interventi assistenziali;999;Altri assegni e sussidi assistenziali;10/08/2018
910;1;0;100;100;OMESSO NOMINATIVO NEL RISPETTO DELLA NORMATIVA SULLA PROTEZIONE DATI PERSONALI; ;Liquidazione contributo per progetto di integrazione sociale in ambito lavorativo.-;10/08/2018;1950;0;9;1;Spese correnti;4;Trasferimenti correnti;2;Trasferimenti correnti a Famiglie;2;Interventi assistenziali;999;Altri assegni e sussidi assistenziali;10/08/2018
911;1;0;100;100;OMESSO NOMINATIVO NEL RISPETTO DELLA NORMATIVA SULLA PROTEZIONE DATI PERSONALI; ;Assunzione impegno di spesa per contributo per progetto di integrazione sociale in ambito lavorativo.;10/08/2018;1950;0;294;1;Spese correnti;4;Trasferimenti correnti;2;Trasferimenti correnti a Famiglie;2;Interventi assistenziali;999;Altri assegni e sussidi assistenziali;10/08/2018
912;1;0;3.565,82;3.565,82;CAMST S.C.R.L.;Z77235F045;SALDO Fatt.n. 2000790180  del 30/06/2018 SOMMINISTRAZIONE PASTI SCUOLA MATERNA E PRIMARIA MESE DI GIUGNO 2018;11/08/2018;814;0;170;1;Spese correnti;3;Acquisto di beni e servizi;2;Acquisto di servizi;15;Contratti di servizio pubblico;6;Contratti di servizio per le mense scolastiche;11/08/2018
913;1;0;1.504,28;1.504,28;ABACO S.P.A.;7268810BC2;SALDO Fatt.n. 2018120002196  del 06/07/2018 GESTIONE DELLA RISCOSSIONE E ACCERTAMENTO IMPOSTA PUBBLICITA' E DIRITTI PUBBLICHE AFFISSIONI - MESE DI GIUGNO 2018;11/08/2018;299;0;193;1;Spese correnti;3;Acquisto di beni e servizi;2;Acquisto di servizi;3;Aggi di riscossione;999;Altri aggi di riscossione n.a.c.;11/08/2018
914;1;0;31.090,88;31.090,88;ECOAMBIENTE S.R.L.; ;SALDO Fatt.n. 000302-0C2  del 29/06/2018 Conguiaglio servizio rifiuti;11/08/2018;1582;0;89;1;Spese correnti;3;Acquisto di beni e servizi;2;Acquisto di servizi;15;Contratti di servizio pubblico;4;Contratti di servizio per la raccolta rifiuti;11/08/2018
915;1;0;109,8;109,8;B.L.ARTIGIANA DI VOLTOLINA LINO;Z6F23F6D12;SALDO Fatt.n. FATTPA 8_18  del 10/07/2018 Spesa per targa in plexiglass retrostampata;11/08/2018;2552;0;441;2;Spese in conto capitale;2;Investimenti fissi lordi e acquisto di terreni;1;Beni materiali;9;Beni immobili;2;Fabbricati ad uso commerciale;11/08/2018
916;1;0;122;122;C.S.M. DI MARANGON STEFANO;Z511E989D1;SALDO Fatt.n. FatPAM 07/2018  del 04/07/2018 Fattura per nolo strutture utilizzate nel cimitero;11/08/2018;1417;0;143;1;Spese correnti;3;Acquisto di beni e servizi;2;Acquisto di servizi;15;Contratti di servizio pubblico;999;Altre spese per contratti di servizio pubblico;11/08/2018
917;1;0;4.961,90;4.961,90;PROJECT S.C.A R.L.;Z5423E448E;SALDO Fatt.n. FATTPA 17_18  del 20/07/2018 VERIFICA E SUPPORTO AL RUP NELLA VALIDAZIONE DEL PROGETTO - RIQUALIFICAZIONE ENERGETICA SCUOLA MATERNA -;11/08/2018;2592;0;250;2;Spese in conto capitale;2;Investimenti fissi lordi e acquisto di terreni;1;Beni materiali;9;Beni immobili;3;Fabbricati ad uso scolastico;11/08/2018
918;1;0;-333,16;2.632,65;ACQUEVENETE SPA; ;SALDO Fatt.n. BEP18-0002831  del 20/06/2018 Nota di credito per consumo idrico Marzo - Maggio 2018;11/08/2018;1794;12;43;1;Spese correnti;3;Acquisto di beni e servizi;2;Acquisto di servizi;5;Utenze e canoni;5;Acqua;11/08/2018
918;2;0;-170,08;2.632,65;ACQUEVENETE SPA; ;SALDO Fatt.n. BEP18-0002819  del 20/06/2018 Nota di credito per consumo idrico Marzo - Maggio 2018;11/08/2018;1794;12;43;1;Spese correnti;3;Acquisto di beni e servizi;2;Acquisto di servizi;5;Utenze e canoni;5;Acqua;11/08/2018
918;3;0;3.135,89;2.632,65;ACQUEVENETE SPA; ;SALDO Fatt.n. BEP18-0003093  del 30/06/2018 Spesa per fornitura idrica settembre - novembre 2017;11/08/2018;1794;12;43;1;Spese correnti;3;Acquisto di beni e servizi;2;Acquisto di servizi;5;Utenze e canoni;5;Acqua;11/08/2018
919;1;0;15,53;15,53;ENEL ENERGIA S.P.A.; ;SALDO Fatt.n. 004811255115  del 13/07/2018 Spesa per fornitura energia elettrica;11/08/2018;82;10;18;1;Spese correnti;3;Acquisto di beni e servizi;2;Acquisto di servizi;5;Utenze e canoni;4;Energia elettrica;11/08/2018
920;1;0;6,91;6,91;INFRACOM ITALIA S.P.A.;ZA918A7DB6;SALDO Fatt.n. 0009700335  del 16/07/2018 Spesa per traffico telefonico mese di Giugno 2018;11/08/2018;735;13;47;1;Spese correnti;3;Acquisto di beni e servizi;2;Acquisto di servizi;5;Utenze e canoni;1;Telefonia fissa;11/08/2018
921;1;0;408,76;408,76;EDISON ENERGIA SPA; ;ACCONTO Fatt.n. 2900111101  del 18/07/2018 Spesa per fornitura di energia elettrica mese di Giugno 2018;11/08/2018;1794;10;26;1;Spese correnti;3;Acquisto di beni e servizi;2;Acquisto di servizi;5;Utenze e canoni;4;Energia elettrica;11/08/2018
922;1;0;381,69;381,69;EDISON ENERGIA SPA; ;ACCONTO Fatt.n. 2900111101  del 18/07/2018 Spesa per fornitura di energia elettrica mese di Giugno 2018;11/08/2018;735;10;21;1;Spese correnti;3;Acquisto di beni e servizi;2;Acquisto di servizi;5;Utenze e canoni;4;Energia elettrica;11/08/2018
923;1;0;120,54;120,54;EDISON ENERGIA SPA; ;ACCONTO Fatt.n. 2900111101  del 18/07/2018 Spesa per fornitura di energia elettrica mese di Giugno 2018;11/08/2018;693;10;20;1;Spese correnti;3;Acquisto di beni e servizi;2;Acquisto di servizi;5;Utenze e canoni;4;Energia elettrica;11/08/2018
924;1;0;390,14;390,14;EDISON ENERGIA SPA; ;SALDO Fatt.n. 2900111101  del 18/07/2018 Spesa per fornitura di energia elettrica mese di Giugno 2018;11/08/2018;649;10;19;1;Spese correnti;3;Acquisto di beni e servizi;2;Acquisto di servizi;5;Utenze e canoni;4;Energia elettrica;11/08/2018
925;1;0;107,62;107,62;EDISON ENERGIA SPA; ;SALDO Fatt.n. 2900111102  del 18/07/2018;11/08/2018;82;10;18;1;Spese correnti;3;Acquisto di beni e servizi;2;Acquisto di servizi;5;Utenze e canoni;4;Energia elettrica;11/08/2018
926;1;0;118,39;118,39;ASCOTRADE S.P.A. ENERGIA & SERVIZI; ;SALDO Fatt.n. 884821  del 16/07/2018 Spesa per fornitura gas naturale mese di Giugno 2018;11/08/2018;1794;11;34;1;Spese correnti;3;Acquisto di beni e servizi;2;Acquisto di servizi;5;Utenze e canoni;6;Gas;11/08/2018
927;1;0;18,36;225,78;ASCOTRADE S.P.A. ENERGIA & SERVIZI; ;SALDO Fatt.n. 917508  del 19/07/2018 Spesa per fornitura gas naturale maggio - luglio 2018;11/08/2018;82;11;27;1;Spese correnti;3;Acquisto di beni e servizi;2;Acquisto di servizi;5;Utenze e canoni;6;Gas;11/08/2018
927;2;0;47,56;225,78;ASCOTRADE S.P.A. ENERGIA & SERVIZI; ;SALDO Fatt.n. 927877  del 19/07/2018 Spesa per fornitura gas naturale marzo - luglio 2018;11/08/2018;82;11;27;1;Spese correnti;3;Acquisto di beni e servizi;2;Acquisto di servizi;5;Utenze e canoni;6;Gas;11/08/2018
927;3;0;159,86;225,78;ASCOTRADE S.P.A. ENERGIA & SERVIZI; ;SALDO Fatt.n. 921103  del 19/07/2018 Spesa per fornitura gas naturale maggio - luglio 2018;11/08/2018;82;11;27;1;Spese correnti;3;Acquisto di beni e servizi;2;Acquisto di servizi;5;Utenze e canoni;6;Gas;11/08/2018
928;1;0;41,92;41,92;ASCOTRADE S.P.A. ENERGIA & SERVIZI; ;SALDO Fatt.n. 927033  del 19/07/2018 Spesa per fornitura gas naturale marzo - luglio 2018;11/08/2018;735;11;30;1;Spese correnti;3;Acquisto di beni e servizi;2;Acquisto di servizi;5;Utenze e canoni;6;Gas;11/08/2018
929;1;0;51,72;51,72;ASCOTRADE S.P.A. ENERGIA & SERVIZI; ;SALDO Fatt.n. 929041  del 19/07/2018 Spesa per fornitura gas naturale marzo - luglio 2018;11/08/2018;940;11;32;1;Spese correnti;3;Acquisto di beni e servizi;2;Acquisto di servizi;5;Utenze e canoni;6;Gas;11/08/2018
930;1;0;46,53;46,53;ASCOTRADE S.P.A. ENERGIA & SERVIZI; ;SALDO Fatt.n. 894981  del 19/07/2018 Spesa per fornitura gas natural maggio - luglio 2018;11/08/2018;935;11;31;1;Spese correnti;3;Acquisto di beni e servizi;2;Acquisto di servizi;5;Utenze e canoni;6;Gas;11/08/2018
931;1;0;78,83;78,83;ASCOTRADE S.P.A. ENERGIA & SERVIZI; ;SALDO Fatt.n. 908955  del 19/07/2018 Spesa per gas naturale maggio - luglio 2018;11/08/2018;649;11;28;1;Spese correnti;3;Acquisto di beni e servizi;2;Acquisto di servizi;5;Utenze e canoni;6;Gas;11/08/2018
932;1;0;58,41;58,41;ASCOTRADE S.P.A. ENERGIA & SERVIZI; ;SALDO Fatt.n. 929033  del 19/07/2018 Spesa per fornitura gas naturale marzo - luglio 2018;11/08/2018;1777;11;33;1;Spese correnti;3;Acquisto di beni e servizi;2;Acquisto di servizi;5;Utenze e canoni;6;Gas;11/08/2018
933;1;0;41,92;41,92;ASCOTRADE S.P.A. ENERGIA & SERVIZI; ;SALDO Fatt.n. 929032  del 19/07/2018 Spesa per fornitura gas naturale marzo - luglio 2018;11/08/2018;693;11;29;1;Spese correnti;3;Acquisto di beni e servizi;2;Acquisto di servizi;5;Utenze e canoni;6;Gas;11/08/2018
934;1;0;823,3;823,3;EURO HYGIENE 2 S.R.L.;Z93245D15F;SALDO Fatt.n. 2113  del 31/07/2018 FORNITURA PRODOTTI PER LA PULIZIA DEGLI UFFICI;11/08/2018;82;2;275;1;Spese correnti;3;Acquisto di beni e servizi;1;Acquisto di beni;2;Altri beni di consumo;999;Altri beni e materiali di consumo n.a.c.;11/08/2018
935;1;0;1.830,00;1.830,00;CERSAP S.R.L.;z4421b845f;SALDO Fatt.n. FATTPA 5_18  del 24/01/2018;11/08/2018;197;0;55;1;Spese correnti;3;Acquisto di beni e servizi;2;Acquisto di servizi;5;Utenze e canoni;3;Accesso a banche dati e a pubblicazioni on line;11/08/2018
936;1;0;122;122;DATAPIANO S.R.L. SERVIZI INFORMATICI PER IL TERRITORIO;Z1B21035C3;SALDO Fatt.n. FATTPA 86_18  del 23/07/2018 Formaz sw STR Vision PBM Rif.ns. offerta Mepa del 30/11/2017 Rif.Vs. stipula Mepa n. 325768 e foglio condizioni Rif.Determina n.316 Reg.Gen. del 11/12/2017.Rif.ns. rapporto di interv del 11/07/2018;11/08/2018;197;0;358;1;Spese correnti;3;Acquisto di beni e servizi;2;Acquisto di servizi;5;Utenze e canoni;3;Accesso a banche dati e a pubblicazioni on line;11/08/2018
937;1;0;500;500;DATAPIANO S.R.L. SERVIZI INFORMATICI PER IL TERRITORIO;Z1B21035C3;SALDO Fatt.n. FATTPA 85_18  del 23/07/2018 Formaz sw STR Vision PBM Rif.ns. offerta Mepa del 30/11/2017 Rif.Vs. stipula Mepa n. 325768 e foglio condiz Rif.Determina n. 316 Reg.Gen. del 11/12/2017.Rif.ns. Rapporto intervento del 11/07/2018;11/08/2018;197;0;358;1;Spese correnti;3;Acquisto di beni e servizi;2;Acquisto di servizi;5;Utenze e canoni;3;Accesso a banche dati e a pubblicazioni on line;11/08/2018
938;1;0;1.848,30;1.848,30;COOPERATIVA SOCIALE COOPSELIOS S.C.R.L.; ;SALDO Fatt.n. 005454-0C02  del 18/07/2018 RETTA CASA DI RIPOSO OSPITE MESE DI LUGLIO 2018;11/08/2018;1955;0;4;1;Spese correnti;4;Trasferimenti correnti;4;Trasferimenti correnti a Istituzioni Sociali Private;1;Trasferimenti correnti a Istituzioni Sociali Private;1;Trasferimenti correnti a Istituzioni Sociali Private;11/08/2018
939;1;0;781;781;TERMOIDRAULICA ASTOLFI DI ASTOLFI FABIO;ZB023BBCC0;SALDO Fatt.n. 01  del 16/07/2018 REALIZZAZIONE NUOVA TUBATURA INTERNA ALLOGGIO COMUNALE P.ZZA MUNICIPIO N.1 PER ALLACCIO IDRICO E ALLACCIO INTERNO ALLOGGIO VIA RIVIERA MARCONI 31;11/08/2018;345;0;205;1;Spese correnti;3;Acquisto di beni e servizi;2;Acquisto di servizi;9;Manutenzione ordinaria e riparazioni;8;Manutenzione ordinaria e riparazioni di beni immobili;11/08/2018
940;1;0;2.008,67;2.008,67;NUOVA REGAL SNC;ZD4203D7B0;SALDO Fatt.n. 2018-P348-0000032  del 29/06/2018 CONTROLLO SEMESTRALE ESTINTORI;11/08/2018;345;0;286;1;Spese correnti;3;Acquisto di beni e servizi;2;Acquisto di servizi;9;Manutenzione ordinaria e riparazioni;8;Manutenzione ordinaria e riparazioni di beni immobili;11/08/2018
941;1;0;100,04;100,04;OREFICERIA ASTOLFI DI ASTOLFI ANDREA;Z1F2496C1A;SALDO Fatt.n. 05  del 08/08/2018 COPPA PER TORNEO VOLLEY 2018;11/08/2018;1790;0;285;1;Spese correnti;3;Acquisto di beni e servizi;1;Acquisto di beni;2;Altri beni di consumo;12;Accessori per attività sportive e ricreative;11/08/2018
942;1;0;976;976;ACCATRE S.R.L.;Z8D21115A4;SALDO Fatt.n. 1/180965  del 04/07/2018 Spesa per servizio certificato rendiconto di bilancio;11/08/2018;247;0;327;1;Spese correnti;3;Acquisto di beni e servizi;2;Acquisto di servizi;19;Servizi informatici e di telecomunicazioni;1;Gestione e manutenzione applicazioni;11/08/2018
943;1;0;2.309,50;2.309,50;ISTITUTO OSPEDALIERO DI SOSPIRO - ONLUS; ;SALDO Fatt.n. 1773/F  del 31/07/2018 RETTA OSPITE LUGLIO 2018;11/08/2018;1955;0;5;1;Spese correnti;4;Trasferimenti correnti;4;Trasferimenti correnti a Istituzioni Sociali Private;1;Trasferimenti correnti a Istituzioni Sociali Private;1;Trasferimenti correnti a Istituzioni Sociali Private;11/08/2018
944;1;0;221,22;4.222,01;Societa' L.A.I.R.A. SRL;ZF21976CD2;SALDO Fatt.n. 2/01  del 14/03/2018 SALDO D.L. E CONTABILITA LAVORI DI RESTAURO TEATRO ZAGO;11/08/2018;2670;0;399;2;Spese in conto capitale;2;Investimenti fissi lordi e acquisto di terreni;1;Beni materiali;9;Beni immobili;18;Musei, teatri e biblioteche;11/08/2018
944;2;0;4.000,79;4.222,01;Societa' L.A.I.R.A. SRL;ZF21976CD2;SALDO Fatt.n. 5/01  del 01/06/2017 LAVORI DI RESTAURO TEATRO ZAGO;11/08/2018;2670;0;399;2;Spese in conto capitale;2;Investimenti fissi lordi e acquisto di terreni;1;Beni materiali;9;Beni immobili;18;Musei, teatri e biblioteche;11/08/2018
945;1;0;39.145,62;39.145,62;EREDI CALOI S.R.L.;Z41233C1EE;SALDO Fatt.n. FATTPA 13_18  del 28/05/2018 ARREDI TEATRO ZAGO;11/08/2018;2670;0;399;2;Spese in conto capitale;2;Investimenti fissi lordi e acquisto di terreni;1;Beni materiali;9;Beni immobili;18;Musei, teatri e biblioteche;11/08/2018
946;1;0;217,28;1.804,68;LARES LAVORI DI RESTAURO SRL;ZF71AD3A04;SALDO Fatt.n. 31  del 09/08/2018 LAVORI DI RESTAURO FACCIATA TEATRO ZAGO - SVINCOLO RITENUTE A GARANZIA;11/08/2018;2670;0;399;2;Spese in conto capitale;2;Investimenti fissi lordi e acquisto di terreni;1;Beni materiali;9;Beni immobili;18;Musei, teatri e biblioteche;11/08/2018
946;2;0;1.587,40;1.804,68;LARES LAVORI DI RESTAURO SRL;ZF71AD3A04;ACCONTO Fatt.n. 42  del 20/11/2017 INTERVENTO DI RESTAURO FACCIATA  PRINCIPALE TEATRO ZAGO;11/08/2018;2670;0;399;2;Spese in conto capitale;2;Investimenti fissi lordi e acquisto di terreni;1;Beni materiali;9;Beni immobili;18;Musei, teatri e biblioteche;11/08/2018
947;1;0;11.869,75;11.869,75;LARES LAVORI DI RESTAURO SRL;ZF71AD3A04;SALDO Fatt.n. 42  del 20/11/2017 INTERVENTO DI RESTAURO FACCIATA  PRINCIPALE TEATRO ZAGO;11/08/2018;2670;0;399;2;Spese in conto capitale;2;Investimenti fissi lordi e acquisto di terreni;1;Beni materiali;9;Beni immobili;18;Musei, teatri e biblioteche;11/08/2018
948;1;0;901,5;901,5;ECONOMO COMUNALE - ZENNARO SOFIA; ;SPESE POSTALI PER AFFRANCATRICE;16/08/2018;84;0;294;1;Spese correnti;3;Acquisto di beni e servizi;2;Acquisto di servizi;16;Servizi amministrativi;2;Spese postali;16/08/2018
952;1;0;1.751,31;1.751,31;ACCATRE S.R.L.;Z3F23F960F;ACCONTO Fatt.n. 1/180986  del 10/07/2018 SERVIZIO DI BOLLETTAZIONE TARI SVOLTO NEL 2018;16/08/2018;391;0;251;1;Spese correnti;3;Acquisto di beni e servizi;2;Acquisto di servizi;19;Servizi informatici e di telecomunicazioni;2;Assistenza all'utente e formazione;16/08/2018
953;1;0;1.355,75;1.355,75;ACCATRE S.R.L.;Z3F23F960F;SALDO Fatt.n. 1/180986  del 10/07/2018 SERVIZIO DI BOLLETTAZIONE TARI SVOLTO NEL 2018;16/08/2018;391;0;252;1;Spese correnti;3;Acquisto di beni e servizi;2;Acquisto di servizi;19;Servizi informatici e di telecomunicazioni;2;Assistenza all'utente e formazione;16/08/2018
954;1;0;1.463,00;1.463,00;CIASS CONSORZIO ISOLA DI ARIANO PER I SERVIZI SOCIALI; ;Liquidazione spesa per servizio di assistente sociale professionale per il periodo Maggio - Luglio 2018.-;16/08/2018;1950;2;178;1;Spese correnti;4;Trasferimenti correnti;1;Trasferimenti correnti a Amministrazioni Pubbliche;2;Trasferimenti correnti a Amministrazioni Locali;18;Trasferimenti correnti a Consorzi di enti locali;16/08/2018
955;1;0;2.244,80;2.244,80;ABITAT SISTEMI INFORMATIVI SRL;ZAA17A06F2;SALDO Fatt.n. 000102-2018-PA  del 24/07/2018 SERVIZIO DI GESTIONE ACCESSI AD INTERNET PER ACCESSI POINT DEL TERRITORIO COMUNALE;16/08/2018;247;0;211;1;Spese correnti;3;Acquisto di beni e servizi;2;Acquisto di servizi;19;Servizi informatici e di telecomunicazioni;1;Gestione e manutenzione applicazioni;16/08/2018
956;1;0;1.728,74;1.728,74;CANTELLI S.R.L.;ZB4217B885;SALDO Fatt.n. 3/192  del 26/07/2018 RILEGATURA REGISTRI STATO CIVILE/CITTADINANZA;16/08/2018;246;0;409;1;Spese correnti;3;Acquisto di beni e servizi;2;Acquisto di servizi;99;Altri servizi;999;Altri servizi diversi n.a.c.;16/08/2018
957;1;0;1.830,00;1.830,00;HALLEY VENETO S.R.L.;Z5423431EC;SALDO Fatt.n. 1/180926  del 02/08/2018 TRASFERIMENTO DATI SU NUOVO SERVER;16/08/2018;247;0;158;1;Spese correnti;3;Acquisto di beni e servizi;2;Acquisto di servizi;19;Servizi informatici e di telecomunicazioni;1;Gestione e manutenzione applicazioni;16/08/2018
958;1;0;9.227,23;9.227,23;ISAM S.R.L.;5093013747;SALDO Fatt.n. FATTPA 9_18  del 10/05/2018 LAVORI DI RISTRUTTURAZIONE E RESTAURO TEATRO ZAGO - CERTIFICATO DI FINE LAVORI;30/08/2018;2670;0;485;2;Spese in conto capitale;2;Investimenti fissi lordi e acquisto di terreni;1;Beni materiali;9;Beni immobili;18;Musei, teatri e biblioteche;30/08/2018
959;1;0;1.760,98;42.733,28;BOTTON PAOLO;61671415BF;SALDO Fatt.n. 14/PA  del 29/08/2018 DIREZIONE LAVORI, C.S.E., CONTABILITA', ASSISTENZA AL COLLAUDO ED ACCATASTAMENTO IMMOBILE TEATRO ZAGO;30/08/2018;2670;0;399;2;Spese in conto capitale;2;Investimenti fissi lordi e acquisto di terreni;1;Beni materiali;9;Beni immobili;18;Musei, teatri e biblioteche;30/08/2018
959;2;0;40.972,30;42.733,28;BOTTON PAOLO;61671415BF;SALDO Fatt.n. 8/PA  del 06/04/2017 DIREZIONE LAVORI, C.S.E., CONTABILITA, ASSISTENZA AL COLLAUDO ED ACCATASTAMENTO IMMOBILE TEATRO ZAGO;30/08/2018;2670;0;399;2;Spese in conto capitale;2;Investimenti fissi lordi e acquisto di terreni;1;Beni materiali;9;Beni immobili;18;Musei, teatri e biblioteche;30/08/2018
960;1;0;2.770,76;2.770,76;TOLLARDO DIEGO;ZA11976F80;"Servizio di collaudo tecnico amministrativo in corso d'opera e collaudo statico delle opere di ""Intervento di restauro e ristrutturazione del teatro E. Zago"" - Liquidazione a saldo Ing. Diego Tollardo, di Schio (VI).";31/08/2018;2670;0;399;2;Spese in conto capitale;2;Investimenti fissi lordi e acquisto di terreni;1;Beni materiali;9;Beni immobili;18;Musei, teatri e biblioteche;31/08/2018
961;1;0;1.026,24;1.026,24;TOLLARDO DIEGO;ZA11976F80;"Servizio di collaudo tecnico amministrativo in corso d'opera e collaudo statico delle opere di ""Intervento di restauro e ristrutturazione del teatro E. Zago"" - Liquidazione a saldo Ing. Diego Tollardo, di Schio (VI).";31/08/2018;2670;0;399;2;Spese in conto capitale;2;Investimenti fissi lordi e acquisto di terreni;1;Beni materiali;9;Beni immobili;18;Musei, teatri e biblioteche;31/08/2018
962;1;0;607,52;607,52;COMUNE DI LOREO;ZA11976F80;Servizio di collaudo tecnico amministrativo in corso d'opera e collaudo statico delle opere di Intervento di restauro e ristrutturazione del teatro E. Zago - INPS A CARICO ENTE;31/08/2018;2670;0;399;2;Spese in conto capitale;2;Investimenti fissi lordi e acquisto di terreni;1;Beni materiali;9;Beni immobili;18;Musei, teatri e biblioteche;31/08/2018
966;1;0;115;720;OMESSO NOMINATIVO NEL RISPETTO DELLA NORMATIVA SULLA PROTEZIONE DATI PERSONALI; ;Liquidazione spesa per erogazione contributi straordinari a persone indigenti.;08/09/2018;1950;0;305;1;Spese correnti;4;Trasferimenti correnti;2;Trasferimenti correnti a Famiglie;2;Interventi assistenziali;999;Altri assegni e sussidi assistenziali;08/09/2018
966;2;0;105;720;OMESSO NOMINATIVO NEL RISPETTO DELLA NORMATIVA SULLA PROTEZIONE DATI PERSONALI; ;Liquidazione spesa per erogazione contributi straordinari a persone indigenti.;08/09/2018;1950;0;305;1;Spese correnti;4;Trasferimenti correnti;2;Trasferimenti correnti a Famiglie;2;Interventi assistenziali;999;Altri assegni e sussidi assistenziali;08/09/2018
966;3;0;200;720;OMESSO NOMINATIVO NEL RISPETTO DELLA NORMATIVA SULLA PROTEZIONE DATI PERSONALI; ;Liquidazione spesa per erogazione contributi straordinari a persone indigenti.;08/09/2018;1950;0;305;1;Spese correnti;4;Trasferimenti correnti;2;Trasferimenti correnti a Famiglie;2;Interventi assistenziali;999;Altri assegni e sussidi assistenziali;08/09/2018
966;4;0;65;720;OMESSO NOMINATIVO NEL RISPETTO DELLA NORMATIVA SULLA PROTEZIONE DATI PERSONALI; ;Liquidazione spesa per erogazione contributi straordinari a persone indigenti.;08/09/2018;1950;0;305;1;Spese correnti;4;Trasferimenti correnti;2;Trasferimenti correnti a Famiglie;2;Interventi assistenziali;999;Altri assegni e sussidi assistenziali;08/09/2018
966;5;0;150;720;OMESSO NOMINATIVO NEL RISPETTO DELLA NORMATIVA SULLA PROTEZIONE DATI PERSONALI; ;Liquidazione spesa per erogazione contributi straordinari a persone indigenti.;08/09/2018;1950;0;305;1;Spese correnti;4;Trasferimenti correnti;2;Trasferimenti correnti a Famiglie;2;Interventi assistenziali;999;Altri assegni e sussidi assistenziali;08/09/2018
966;6;0;85;720;OMESSO NOMINATIVO NEL RISPETTO DELLA NORMATIVA SULLA PROTEZIONE DATI PERSONALI; ;Liquidazione spesa per erogazione contributi straordinari a persone indigenti.;08/09/2018;1950;0;305;1;Spese correnti;4;Trasferimenti correnti;2;Trasferimenti correnti a Famiglie;2;Interventi assistenziali;999;Altri assegni e sussidi assistenziali;08/09/2018
967;1;0;519,79;519,79;ECONOMO COMUNALE - ZENNARO SOFIA; ;Rimborso bollette;13/09/2018;95;0;59;1;Spese correnti;3;Acquisto di beni e servizi;1;Acquisto di beni;2;Altri beni di consumo;999;Altri beni e materiali di consumo n.a.c.;13/09/2018
1011;1;0;7.325,22;7.325,22;PERSONALE DELL'AMMINISTRAZIONE; ;STIPENDI MESE DI: SETTEMBRE 18;18/09/2018;2670;0;399;2;Spese in conto capitale;2;Investimenti fissi lordi e acquisto di terreni;1;Beni materiali;9;Beni immobili;18;Musei, teatri e biblioteche;18/09/2018
1012;1;0;1.743,42;1.743,42;INPS (EX I.N.P.D.A.P - EX CPDEL); ;VERS.CONTRIB. MESE: SETTEMBRE 18 A CARICO DELL`ENTE MOD. F24EP;18/09/2018;2670;0;399;2;Spese in conto capitale;2;Investimenti fissi lordi e acquisto di terreni;1;Beni materiali;9;Beni immobili;18;Musei, teatri e biblioteche;18/09/2018
1013;1;0;537,55;537,55;PERSONALE DELL'AMMINISTRAZIONE; ;STIPENDI MESE DI: SETTEMBRE 18;18/09/2018;2670;0;399;2;Spese in conto capitale;2;Investimenti fissi lordi e acquisto di terreni;1;Beni materiali;9;Beni immobili;18;Musei, teatri e biblioteche;18/09/2018
1014;1;0;127,94;127,94;INPS (EX I.N.P.D.A.P - EX CPDEL); ;VERS.CONTRIB. MESE: SETTEMBRE 18 A CARICO DELL`ENTE MOD. F24EP;18/09/2018;2670;0;399;2;Spese in conto capitale;2;Investimenti fissi lordi e acquisto di terreni;1;Beni materiali;9;Beni immobili;18;Musei, teatri e biblioteche;18/09/2018
1019;1;0;613,55;613,55;GASPARINI MORENO; ;INDENNITA' DI CARICA SINDACO - SETTEMBRE 2018;18/09/2018;20;0;16;1;Spese correnti;3;Acquisto di beni e servizi;2;Acquisto di servizi;1;Organi e incarichi istituzionali dell'amministrazione;1;Organi istituzionali dell'amministrazione - Indennità;18/09/2018
1021;1;0;100;100;OMESSO NOMINATIVO NEL RISPETTO DELLA NORMATIVA SULLA PROTEZIONE DATI PERSONALI; ;Liquidazione contributo per progetto di integrazione sociale in ambito lavorativo.-;18/09/2018;1950;0;9;1;Spese correnti;4;Trasferimenti correnti;2;Trasferimenti correnti a Famiglie;2;Interventi assistenziali;999;Altri assegni e sussidi assistenziali;18/09/2018
1022;1;0;100;100;OMESSO NOMINATIVO NEL RISPETTO DELLA NORMATIVA SULLA PROTEZIONE DATI PERSONALI; ;Assunzione impegno di spesa per contributo per progetto di integrazione sociale in ambito lavorativo.-;18/09/2018;1950;0;134;1;Spese correnti;4;Trasferimenti correnti;2;Trasferimenti correnti a Famiglie;2;Interventi assistenziali;999;Altri assegni e sussidi assistenziali;18/09/2018
1023;1;0;100;100;OMESSO NOMINATIVO NEL RISPETTO DELLA NORMATIVA SULLA PROTEZIONE DATI PERSONALI; ;Assunzione impegno di spesa per contributo per progetto di integrazione sociale in ambito lavorativo.;18/09/2018;1950;0;294;1;Spese correnti;4;Trasferimenti correnti;2;Trasferimenti correnti a Famiglie;2;Interventi assistenziali;999;Altri assegni e sussidi assistenziali;18/09/2018
1024;1;0;6,88;6,88;INFRACOM ITALIA S.P.A.;ZA918A7DB6;SALDO Fatt.n. 0009700372  del 02/08/2018 Spesa per traffico telefonico mese di luglio 2018;18/09/2018;735;13;47;1;Spese correnti;3;Acquisto di beni e servizi;2;Acquisto di servizi;5;Utenze e canoni;1;Telefonia fissa;18/09/2018
1025;1;0;17,71;17,71;ENEL ENERGIA S.P.A.; ;SALDO Fatt.n. 004811460382  del 14/08/2018 Spesa per fornitura energia elettrica mese di luglio 2018;18/09/2018;82;10;18;1;Spese correnti;3;Acquisto di beni e servizi;2;Acquisto di servizi;5;Utenze e canoni;4;Energia elettrica;18/09/2018
1026;1;0;27,7;27,7;VODAFONE OMNITEL N.V.; ;SALDO Fatt.n. AI14662367  del 14/08/2018 Spesa per traffico internet giugno - luglio 2018;18/09/2018;82;14;50;1;Spese correnti;3;Acquisto di beni e servizi;2;Acquisto di servizi;5;Utenze e canoni;2;Telefonia mobile;18/09/2018
1027;1;0;901,5;901,5;ECONOMO COMUNALE - ZENNARO SOFIA; ;SPESE PER AFFRANCATRICE POSTALE;18/09/2018;84;0;320;1;Spese correnti;3;Acquisto di beni e servizi;2;Acquisto di servizi;16;Servizi amministrativi;2;Spese postali;18/09/2018
1028;1;0;2.221,62;2.221,62;MAGGIOLI SPA;ZC822997E0;SALDO Fatt.n. 0002131164  del 27/07/2018 Gestione forfettaria servizio data entry mese di Luglio 2018;18/09/2018;2017;0;194;1;Spese correnti;3;Acquisto di beni e servizi;2;Acquisto di servizi;7;Utilizzo di beni di terzi;8;Noleggi di impianti e macchinari;18/09/2018
1029;1;0;1.098,00;1.098,00;MAGGIOLI SPA;ZC822997E0;SALDO Fatt.n. 0002131137  del 27/07/2018 Configurazione box data entry service concilia;18/09/2018;2017;0;112;1;Spese correnti;3;Acquisto di beni e servizi;2;Acquisto di servizi;7;Utilizzo di beni di terzi;8;Noleggi di impianti e macchinari;18/09/2018
1030;1;0;68,08;1.074,96;TELECOM ITALIA S.P.A.; ;SALDO Fatt.n. 8E00726070  del 06/08/2018 Spesa per traffico telefonico mesi di giugno e luglio 2018;18/09/2018;82;13;44;1;Spese correnti;3;Acquisto di beni e servizi;2;Acquisto di servizi;5;Utenze e canoni;1;Telefonia fissa;18/09/2018
1030;2;0;85,4;1.074,96;TELECOM ITALIA S.P.A.; ;SALDO Fatt.n. 8E00722477  del 06/08/2018 Spesa per traffico telefonico mesi di giugno e luglio 2018;18/09/2018;82;13;44;1;Spese correnti;3;Acquisto di beni e servizi;2;Acquisto di servizi;5;Utenze e canoni;1;Telefonia fissa;18/09/2018
1030;3;0;168,36;1.074,96;TELECOM ITALIA S.P.A.; ;SALDO Fatt.n. 8E00728049  del 06/08/2018 Spesa per traffico internet mesi di giugno e luglio 2018;18/09/2018;82;13;44;1;Spese correnti;3;Acquisto di beni e servizi;2;Acquisto di servizi;5;Utenze e canoni;1;Telefonia fissa;18/09/2018
1030;4;0;183;1.074,96;TELECOM ITALIA S.P.A.; ;SALDO Fatt.n. 8E00726210  del 06/08/2018 Spesa per traffico telefonico mesi di giugno e luglio 2018;18/09/2018;82;13;44;1;Spese correnti;3;Acquisto di beni e servizi;2;Acquisto di servizi;5;Utenze e canoni;1;Telefonia fissa;18/09/2018
1030;5;0;191,49;1.074,96;TELECOM ITALIA S.P.A.; ;SALDO Fatt.n. 8E00725320  del 06/08/2018 Spesa per traffico telefonico mesi di giugno e luglio 2018;18/09/2018;82;13;44;1;Spese correnti;3;Acquisto di beni e servizi;2;Acquisto di servizi;5;Utenze e canoni;1;Telefonia fissa;18/09/2018
1030;6;0;378,63;1.074,96;TELECOM ITALIA S.P.A.; ;SALDO Fatt.n. 8E00724770  del 06/08/2018 Spesa per traffico telefonico mesi di giugno e luglio 2018;18/09/2018;82;13;44;1;Spese correnti;3;Acquisto di beni e servizi;2;Acquisto di servizi;5;Utenze e canoni;1;Telefonia fissa;18/09/2018
1031;1;0;93,16;93,16;TELECOM ITALIA S.P.A.; ;SALDO Fatt.n. 8E00728136  del 06/08/2018 Spesa per traffico telefonico mesi di giugno e luglio 2018;18/09/2018;649;13;45;1;Spese correnti;3;Acquisto di beni e servizi;2;Acquisto di servizi;5;Utenze e canoni;1;Telefonia fissa;18/09/2018
1032;1;0;72,08;72,08;TELECOM ITALIA S.P.A.; ;SALDO Fatt.n. 8E00723271  del 06/08/2018 Spesa per traffico telefonico mesi di giugno e luglio 2018;18/09/2018;940;13;49;1;Spese correnti;3;Acquisto di beni e servizi;2;Acquisto di servizi;5;Utenze e canoni;1;Telefonia fissa;18/09/2018
1033;1;0;98,19;98,19;TELECOM ITALIA S.P.A.; ;SALDO Fatt.n. 8E00725155  del 06/08/2018 Spesa per traffico telefonico mesi di giugno e luglio 2018;18/09/2018;693;13;46;1;Spese correnti;3;Acquisto di beni e servizi;2;Acquisto di servizi;5;Utenze e canoni;1;Telefonia fissa;18/09/2018
1034;1;0;155,04;155,04;TELECOM ITALIA S.P.A.; ;SALDO Fatt.n. 8E00724851  del 06/08/2018 Spesa per traffico telefonico mesi di giugno e luglio 2018;18/09/2018;935;13;48;1;Spese correnti;3;Acquisto di beni e servizi;2;Acquisto di servizi;5;Utenze e canoni;1;Telefonia fissa;18/09/2018
1035;1;0;4.026,00;4.026,00;VELOCAR S.R.L.;ZCE222EA93;SALDO Fatt.n. 297/FE  del 01/08/2018 Canone locazione EVO R - mese di agosto 2018;18/09/2018;2017;0;422;1;Spese correnti;3;Acquisto di beni e servizi;2;Acquisto di servizi;7;Utilizzo di beni di terzi;8;Noleggi di impianti e macchinari;18/09/2018
1036;1;0;131,44;131,44;ASCOTRADE S.P.A. ENERGIA & SERVIZI; ;SALDO Fatt.n. 1029180  del 16/08/2018 Spesa per gas naturale mese di luglio 2018;18/09/2018;1794;11;34;1;Spese correnti;3;Acquisto di beni e servizi;2;Acquisto di servizi;5;Utenze e canoni;6;Gas;18/09/2018
1037;1;0;581,33;581,33;BREVIGLIERI S.R.L.;ZC5223FAAE;SALDO Fatt.n. 000218/E1  del 23/07/2018 MATERIALE DI CANCELLERIA PER UFFICI;18/09/2018;93;0;88;1;Spese correnti;3;Acquisto di beni e servizi;1;Acquisto di beni;2;Altri beni di consumo;999;Altri beni e materiali di consumo n.a.c.;18/09/2018
1038;1;0;98,8;98,8;GRAFICHE GASPARI  SRL;ZAB23B8F48;SALDO Fatt.n. 13304  del 31/07/2018 FORNITURA TESTO UNICO COORDINATO GESTIONE DIPENENTI;18/09/2018;97;0;207;1;Spese correnti;3;Acquisto di beni e servizi;1;Acquisto di beni;1;Giornali, riviste e pubblicazioni;2;Pubblicazioni;18/09/2018
1039;1;0;1.848,30;1.848,30;COOPERATIVA SOCIALE COOPSELIOS S.C.R.L.; ;SALDO Fatt.n. 006111-0C02  del 20/08/2018 REETTA OSPITE MESE DI AGOSTO;18/09/2018;1955;0;4;1;Spese correnti;4;Trasferimenti correnti;4;Trasferimenti correnti a Istituzioni Sociali Private;1;Trasferimenti correnti a Istituzioni Sociali Private;1;Trasferimenti correnti a Istituzioni Sociali Private;18/09/2018
1040;1;0;4.126,75;5.259,69;MAGGIOLI SPA;ZC822997E0;SALDO Fatt.n. 0001120879  del 31/07/2018 Rimborso spese postali anticipate CAD/CAN;18/09/2018;2017;0;112;1;Spese correnti;3;Acquisto di beni e servizi;2;Acquisto di servizi;7;Utilizzo di beni di terzi;8;Noleggi di impianti e macchinari;18/09/2018
1040;2;0;107,85;5.259,69;MAGGIOLI SPA;ZC822997E0;SALDO Fatt.n. 0002133738  del 31/07/2018 Servizio notifica estero verbali CdS;18/09/2018;2017;0;112;1;Spese correnti;3;Acquisto di beni e servizi;2;Acquisto di servizi;7;Utilizzo di beni di terzi;8;Noleggi di impianti e macchinari;18/09/2018
1040;3;0;1.025,09;5.259,69;MAGGIOLI SPA;ZC822997E0;SALDO Fatt.n. 0002133496  del 31/07/2018 Servizio gestioen atti amministrativi verbali CdS;18/09/2018;2017;0;112;1;Spese correnti;3;Acquisto di beni e servizi;2;Acquisto di servizi;7;Utilizzo di beni di terzi;8;Noleggi di impianti e macchinari;18/09/2018
1041;1;0;104,98;2.413,35;EDISON ENERGIA SPA; ;SALDO Fatt.n. 2900112853  del 20/08/2018 Spesa per energia elettrica luglio 2018;18/09/2018;82;10;18;1;Spese correnti;3;Acquisto di beni e servizi;2;Acquisto di servizi;5;Utenze e canoni;4;Energia elettrica;18/09/2018
1041;2;0;432,29;2.413,35;EDISON ENERGIA SPA; ;SALDO Fatt.n. 2900112851  del 20/08/2018 Spesa per energia elettrica giugno - luglio 2018;18/09/2018;82;10;18;1;Spese correnti;3;Acquisto di beni e servizi;2;Acquisto di servizi;5;Utenze e canoni;4;Energia elettrica;18/09/2018
1041;3;0;438,96;2.413,35;EDISON ENERGIA SPA; ;SALDO Fatt.n. 2900112852  del 20/08/2018 Spesa per fornitura energia elettrica giugno - luglio 2018;18/09/2018;82;10;18;1;Spese correnti;3;Acquisto di beni e servizi;2;Acquisto di servizi;5;Utenze e canoni;4;Energia elettrica;18/09/2018
1041;4;0;1.437,12;2.413,35;EDISON ENERGIA SPA; ;ACCONTO Fatt.n. 2900112850  del 20/08/2018 Spesa per fornitura energia elettrica giugno - luglio 2018;18/09/2018;82;10;18;1;Spese correnti;3;Acquisto di beni e servizi;2;Acquisto di servizi;5;Utenze e canoni;4;Energia elettrica;18/09/2018
1042;1;0;508,19;508,19;EDISON ENERGIA SPA; ;ACCONTO Fatt.n. 2900112850  del 20/08/2018 Spesa per fornitura energia elettrica giugno - luglio 2018;18/09/2018;735;10;21;1;Spese correnti;3;Acquisto di beni e servizi;2;Acquisto di servizi;5;Utenze e canoni;4;Energia elettrica;18/09/2018
1043;1;0;157,23;157,23;EDISON ENERGIA SPA; ;ACCONTO Fatt.n. 2900112850  del 20/08/2018 Spesa per fornitura energia elettrica giugno - luglio 2018;18/09/2018;935;10;22;1;Spese correnti;3;Acquisto di beni e servizi;2;Acquisto di servizi;5;Utenze e canoni;4;Energia elettrica;18/09/2018
1044;1;0;344,22;344,22;EDISON ENERGIA SPA; ;ACCONTO Fatt.n. 2900112850  del 20/08/2018 Spesa per fornitura energia elettrica giugno - luglio 2018;18/09/2018;1418;10;24;1;Spese correnti;3;Acquisto di beni e servizi;2;Acquisto di servizi;5;Utenze e canoni;4;Energia elettrica;18/09/2018
1045;1;0;209,44;209,44;EDISON ENERGIA SPA; ;ACCONTO Fatt.n. 2900112850  del 20/08/2018 Spesa per fornitura energia elettrica giugno - luglio 2018;18/09/2018;940;10;23;1;Spese correnti;3;Acquisto di beni e servizi;2;Acquisto di servizi;5;Utenze e canoni;4;Energia elettrica;18/09/2018
1046;1;0;234,75;234,75;EDISON ENERGIA SPA; ;ACCONTO Fatt.n. 2900112850  del 20/08/2018 Spesa per fornitura energia elettrica giugno - luglio 2018;18/09/2018;1794;10;26;1;Spese correnti;3;Acquisto di beni e servizi;2;Acquisto di servizi;5;Utenze e canoni;4;Energia elettrica;18/09/2018
1047;1;0;140,82;140,82;EDISON ENERGIA SPA; ;ACCONTO Fatt.n. 2900112850  del 20/08/2018 Spesa per fornitura energia elettrica giugno - luglio 2018;18/09/2018;1777;10;25;1;Spese correnti;3;Acquisto di beni e servizi;2;Acquisto di servizi;5;Utenze e canoni;4;Energia elettrica;18/09/2018
1048;1;0;115,15;115,15;EDISON ENERGIA SPA; ;ACCONTO Fatt.n. 2900112850  del 20/08/2018 Spesa per fornitura energia elettrica giugno - luglio 2018;18/09/2018;693;10;20;1;Spese correnti;3;Acquisto di beni e servizi;2;Acquisto di servizi;5;Utenze e canoni;4;Energia elettrica;18/09/2018
1049;1;0;84,84;84,84;EDISON ENERGIA SPA; ;SALDO Fatt.n. 2900112850  del 20/08/2018 Spesa per fornitura energia elettrica giugno - luglio 2018;18/09/2018;649;10;19;1;Spese correnti;3;Acquisto di beni e servizi;2;Acquisto di servizi;5;Utenze e canoni;4;Energia elettrica;18/09/2018
1050;1;0;399,16;399,16;ABACO S.P.A.;7268810BC2;SALDO Fatt.n. 2018120002696  del 03/08/2018 GESTIONE DELLA RISCOSSIONE E ACCERTAMENTO IMPOSTA COMUNALE SULLA PUBBLICITA E DIRITTI SULLE PIBBLICHE AFFISSIONI;18/09/2018;299;0;193;1;Spese correnti;3;Acquisto di beni e servizi;2;Acquisto di servizi;3;Aggi di riscossione;999;Altri aggi di riscossione n.a.c.;18/09/2018
1051;1;0;868,89;2.606,67;SOC. COOP. A R.L. LE MACCHINE CELIBI;ZC41A123A3;SALDO Fatt.n. FATTPA 794_18  del 01/08/2018 SERVIZIO GESTIONE BIBLIOTECA COMUNALE ED ANTIQUARIUM MESE DI MAGGIO 2018;18/09/2018;934;0;24;1;Spese correnti;3;Acquisto di beni e servizi;2;Acquisto di servizi;15;Contratti di servizio pubblico;999;Altre spese per contratti di servizio pubblico;18/09/2018
1051;2;0;868,89;2.606,67;SOC. COOP. A R.L. LE MACCHINE CELIBI;ZC41A123A3;SALDO Fatt.n. FATTPA 795_18  del 01/08/2018 SERVIZIO GESTIONE BIBLIOTECA COMUNALE ED ANTIQUARIUM MESE DI GIUGNO 2018;18/09/2018;934;0;24;1;Spese correnti;3;Acquisto di beni e servizi;2;Acquisto di servizi;15;Contratti di servizio pubblico;999;Altre spese per contratti di servizio pubblico;18/09/2018
1051;3;0;868,89;2.606,67;SOC. COOP. A R.L. LE MACCHINE CELIBI;ZC41A123A;SALDO Fatt.n. FATTPA 796_18  del 01/08/2018 SERVIZIO GESTIONE BIBLIOTECA COMUNALE ED ANTIQUARIUMMESE DI LUGLIO 2018;18/09/2018;934;0;24;1;Spese correnti;3;Acquisto di beni e servizi;2;Acquisto di servizi;15;Contratti di servizio pubblico;999;Altre spese per contratti di servizio pubblico;18/09/2018
1052;1;0;91,99;91,99;KUWAIT PETROLEUM ITALIA S.P.A.;ZEA1A355E2;SALDO Fatt.n. PJ00213456  del 31/07/2018 FORNITURA GASOLIO PER AUTOTRAZIONE;18/09/2018;2000;0;49;1;Spese correnti;3;Acquisto di beni e servizi;1;Acquisto di beni;2;Altri beni di consumo;2;Carburanti, combustibili e lubrificanti;18/09/2018
1053;1;0;860,83;860,83;F.LLI BELCARO S.N.C.;Z35210478E;SALDO Fatt.n. 26/FE  del 31/07/2018 FORNITURA STABILIZZATO;18/09/2018;2008;0;361;1;Spese correnti;3;Acquisto di beni e servizi;1;Acquisto di beni;2;Altri beni di consumo;999;Altri beni e materiali di consumo n.a.c.;18/09/2018
1054;1;0;2.309,50;2.309,50;ISTITUTO OSPEDALIERO DI SOSPIRO - ONLUS; ;SALDO Fatt.n. 2035/F  del 31/08/2018 RETTA OSPITE CASA DI RIPOSO AGOSTO 2018;18/09/2018;1955;0;5;1;Spese correnti;4;Trasferimenti correnti;4;Trasferimenti correnti a Istituzioni Sociali Private;1;Trasferimenti correnti a Istituzioni Sociali Private;1;Trasferimenti correnti a Istituzioni Sociali Private;18/09/2018
1055;1;0;2.221,62;2.221,62;MAGGIOLI SPA;ZC822997E0;SALDO Fatt.n. 0002134549  del 28/08/2018 Gestione forfettaria data entry mese di Agosto 2018;18/09/2018;2017;0;194;1;Spese correnti;3;Acquisto di beni e servizi;2;Acquisto di servizi;7;Utilizzo di beni di terzi;8;Noleggi di impianti e macchinari;18/09/2018
1056;1;0;4.825,75;4.825,75;CONSORZIO PER LO SVILUPPO DEL POLESINE - CONSVIPO; ;Liquidazione spese consorziali anno 2018 - Consorzio per lo sviluppo del Polesine;18/09/2018;2396;0;304;1;Spese correnti;4;Trasferimenti correnti;3;Trasferimenti correnti a Imprese;2;Trasferimenti correnti a altre imprese partecipate;1;Trasferimenti correnti a altre imprese partecipate;18/09/2018
1057;1;0;371,73;371,73;BREVIGLIERI S.R.L.;ZD41512304;SALDO Fatt.n. 000130/E3  del 09/07/2018 Noleggio 3002MF-LHA5300709 luglio, agosto e settembre 2018;18/09/2018;246;1;14;1;Spese correnti;3;Acquisto di beni e servizi;2;Acquisto di servizi;5;Utenze e canoni;3;Accesso a banche dati e a pubblicazioni on line;18/09/2018
1058;1;0;362,65;362,65;BNP PARIBAS LEASE GROUP SA;ZF110A7C48;SALDO Fatt.n. BMD36545  del 12/06/2018 Canone servizio assicurativo dal 02/07/2018 al 01/10/2018;18/09/2018;246;1;12;1;Spese correnti;3;Acquisto di beni e servizi;2;Acquisto di servizi;5;Utenze e canoni;3;Accesso a banche dati e a pubblicazioni on line;18/09/2018
1059;1;0;65,88;65,88;MULTICOPIA E ARREDA UFFICIO SRL;ZF110A7C48;SALDO Fatt.n. 184  del 24/04/2018 Contratto noleggio operativo Samsung CLX 9201NA;18/09/2018;246;1;13;1;Spese correnti;3;Acquisto di beni e servizi;2;Acquisto di servizi;5;Utenze e canoni;3;Accesso a banche dati e a pubblicazioni on line;18/09/2018
1060;1;0;65,88;65,88;MULTICOPIA E ARREDA UFFICIO SRL;ZF110A7C48;SALDO Fatt.n. 340  del 19/07/2018 Noleggio apparecchiatura multifunzione Samsung CLX 9201NA;18/09/2018;246;1;13;1;Spese correnti;3;Acquisto di beni e servizi;2;Acquisto di servizi;5;Utenze e canoni;3;Accesso a banche dati e a pubblicazioni on line;18/09/2018
1062;1;0;1.464,00;1.464,00;SOCIETA' DI SCAVI E MANUTENZIONI SNC DI FURLAN FABRIZIO;Z1723F6FD3;ACCONTO Fatt.n. 2  del 07/08/2018 Realizzazione nuova linea interrata di illuminazione pubblica via G. Verdi;18/09/2018;2005;1;221;1;Spese correnti;3;Acquisto di beni e servizi;2;Acquisto di servizi;9;Manutenzione ordinaria e riparazioni;4;Manutenzione ordinaria e riparazioni di impianti e macchinari;18/09/2018
1063;1;0;8.433,77;8.433,77;CARTURAN RENZO;Z112152EA8;SALDO Fatt.n. VE2018-05  del 23/07/2018 ACCONTO PER PROGETTO RIQUALIFICAZIONE ENERGETICA SCUOLA MATERNA;19/09/2018;2592;0;397;2;Spese in conto capitale;2;Investimenti fissi lordi e acquisto di terreni;1;Beni materiali;9;Beni immobili;3;Fabbricati ad uso scolastico;19/09/2018
1064;1;0;2.116,64;2.116,64;BRUNELLO AURELIO;Z112152EA8;SALDO Fatt.n. 000004-2018-E  del 23/07/2018 QUOTA PARTE ONORARI PRIMO ACCONTO LAVORI DI EFFICIENTAMENTO ENERGETICO SCUOLA MATERNA;19/09/2018;2592;0;397;2;Spese in conto capitale;2;Investimenti fissi lordi e acquisto di terreni;1;Beni materiali;9;Beni immobili;3;Fabbricati ad uso scolastico;19/09/2018
1065;1;0;2.962,69;2.962,69;CARTURAN ILARIA;Z112152EA8;SALDO Fatt.n. FE2018-01  del 26/07/2018 QUOTA PARTE ONORARI E SPESE PRIMO ACCONTO LAVORI DI EFFICIENTAMENTO ENERGETICO SCUOLA MATERNA;19/09/2018;2592;0;397;2;Spese in conto capitale;2;Investimenti fissi lordi e acquisto di terreni;1;Beni materiali;9;Beni immobili;3;Fabbricati ad uso scolastico;19/09/2018
1066;1;0;31.090,88;31.090,88;ECOAMBIENTE S.R.L.; ;SALDO Fatt.n. 000409-0C2  del 31/08/2018 SERVIZIO CICLO INTEGRATO DEI RIFIUTI AGOSTO 2018;19/09/2018;1582;0;89;1;Spese correnti;3;Acquisto di beni e servizi;2;Acquisto di servizi;15;Contratti di servizio pubblico;4;Contratti di servizio per la raccolta rifiuti;19/09/2018
1067;1;0;31.090,88;31.090,88;ECOAMBIENTE S.R.L.; ;SALDO Fatt.n. 000356-0C2  del 31/07/2018 SERVIZIO CICLO INTEGRATO DEI RIFIUTI - LUGLIO 2018;19/09/2018;1582;0;89;1;Spese correnti;3;Acquisto di beni e servizi;2;Acquisto di servizi;15;Contratti di servizio pubblico;4;Contratti di servizio per la raccolta rifiuti;19/09/2018
1068;1;0;122,62;122,62;AUSER A.P.S. CIRCOLO ANZIANI DI PORTO VIRO;Z02225BB24;Liquidazione spesa per rimborso chilometrico per viaggi effettuati extra ex ULSS 19 dal Circolo Anzi;19/09/2018;1950;0;94;1;Spese correnti;4;Trasferimenti correnti;2;Trasferimenti correnti a Famiglie;2;Interventi assistenziali;999;Altri assegni e sussidi assistenziali;19/09/2018
1069;1;0;1.415,69;1.415,69;AUSER A.P.S. CIRCOLO ANZIANI DI PORTO VIRO; ;Liquidazione contributo ex art. 5 della Convenzione tra il Comune di Loreo e l'Associazione Circolo Anziani di Porto Viro A.P.S. Anno 2017.-;19/09/2018;1950;0;317;1;Spese correnti;4;Trasferimenti correnti;2;Trasferimenti correnti a Famiglie;2;Interventi assistenziali;999;Altri assegni e sussidi assistenziali;19/09/2018
1070;1;0;145,66;145,66;ASCOTRADE S.P.A. ENERGIA & SERVIZI; ;SALDO Fatt.n. 1203972  del 14/09/2018 Fornitura gas naturale agosto 2018 (conguaglio);19/09/2018;1794;11;34;1;Spese correnti;3;Acquisto di beni e servizi;2;Acquisto di servizi;5;Utenze e canoni;6;Gas;19/09/2018
1071;1;0;19,85;19,85;ENEL ENERGIA S.P.A.; ;SALDO Fatt.n. 004811636478  del 13/09/2018 Fornitura energia elettrica agosto 2018;19/09/2018;82;10;18;1;Spese correnti;3;Acquisto di beni e servizi;2;Acquisto di servizi;5;Utenze e canoni;4;Energia elettrica;19/09/2018
1072;1;0;2.113,19;2.113,19;MAZZUCATO RANIERO; ;ACCONTO Fatt.n. 10  del 10/09/2018 COMPENSO REVISORE COMUNE LOREO PERIODI LUG-DIC 17 E GENN-GIU 18;20/09/2018;19;0;439;1;Spese correnti;3;Acquisto di beni e servizi;2;Acquisto di servizi;1;Organi e incarichi istituzionali dell'amministrazione;8;Compensi agli organi istituzionali di revisione, di controllo ed altri incarichi istituzionali dell'amministrazione;20/09/2018
1073;1;0;3.208,16;3.208,16;MAZZUCATO RANIERO; ;SALDO Fatt.n. 10  del 10/09/2018 COMPENSO REVISORE COMUNE LOREO PERIODI LUG-DIC 17 E GENN-GIU 18;20/09/2018;19;0;322;1;Spese correnti;3;Acquisto di beni e servizi;2;Acquisto di servizi;1;Organi e incarichi istituzionali dell'amministrazione;8;Compensi agli organi istituzionali di revisione, di controllo ed altri incarichi istituzionali dell'amministrazione;20/09/2018
1075;1;0;2.000,00;2.000,00;AUSER A.P.S. CIRCOLO ANZIANI DI PORTO VIRO; ;Liquidazione impegno di spesa per erogazione acconto sul contributo previsto dall'art. 5 della Conve;21/09/2018;1950;0;295;1;Spese correnti;4;Trasferimenti correnti;2;Trasferimenti correnti a Famiglie;2;Interventi assistenziali;999;Altri assegni e sussidi assistenziali;21/09/2018
1076;1;0;1.584,31;1.584,31;AUSER A.P.S. CIRCOLO ANZIANI DI PORTO VIRO; ;Liquidazione contributo ex art. 5 della Convenzione tra il Comune di Loreo e l'Associazione Circolo Anziani di Porto Viro A.P.S. Anno 2017.-;21/09/2018;1950;0;318;1;Spese correnti;4;Trasferimenti correnti;2;Trasferimenti correnti a Famiglie;2;Interventi assistenziali;999;Altri assegni e sussidi assistenziali;21/09/2018
1077;1;0;362,96;362,96;DEBITORI E CREDITORI DIVERSI; ;COMPENSAZIONE VEDI REV. 590/2018 PER ESENZIONE PARZIALE SERVIZIO MENSA SCOLASTICA;21/09/2018;1950;0;368;1;Spese correnti;4;Trasferimenti correnti;2;Trasferimenti correnti a Famiglie;2;Interventi assistenziali;999;Altri assegni e sussidi assistenziali;21/09/2018
1078;1;0;45,02;45,02;DEBITORI E CREDITORI DIVERSI; ;COMPENSAZIONE QUOTA PARTE CANONE DI LOCAZIONE ANNO 2017 (VEDI CAP. 1950);21/09/2018;1873;0;365;1;Spese correnti;4;Trasferimenti correnti;2;Trasferimenti correnti a Famiglie;2;Interventi assistenziali;999;Altri assegni e sussidi assistenziali;21/09/2018
1079;1;0;74,62;74,62;DEBITORI E CREDITORI DIVERSI; ;COMPENSAZIONE QUOTA PARTE CANONE DI LOCAZIONE ANNO 2017 (VEDI CAP. 1873);21/09/2018;1950;0;366;1;Spese correnti;4;Trasferimenti correnti;2;Trasferimenti correnti a Famiglie;2;Interventi assistenziali;999;Altri assegni e sussidi assistenziali;21/09/2018
1080;1;0;119,64;119,64;DEBITORI E CREDITORI DIVERSI; ;COMPENSAZIONE CANONE DI LOCAZIONE ANNO 2018 PER MENO ABBIENTI (VEDI REV. 592/2018);21/09/2018;1873;0;323;1;Spese correnti;4;Trasferimenti correnti;2;Trasferimenti correnti a Famiglie;2;Interventi assistenziali;999;Altri assegni e sussidi assistenziali;21/09/2018
1081;1;0;780;780;DEBITORI E CREDITORI DIVERSI; ;COMPENSAZIONE REV. 594/2018 PER UTILIZZO STRUTTURE SPORTIVE ANNI 2015/2016/2017;21/09/2018;1794;0;367;1;Spese correnti;4;Trasferimenti correnti;4;Trasferimenti correnti a Istituzioni Sociali Private;1;Trasferimenti correnti a Istituzioni Sociali Private;1;Trasferimenti correnti a Istituzioni Sociali Private;21/09/2018
1082;1;0;260;260;DEBITORI E CREDITORI DIVERSI; ;COMPENSAZIONE REV. 595 PER UTILIZZO STRUTTURE SPORTIVE ANNO 2018;21/09/2018;1794;0;324;1;Spese correnti;4;Trasferimenti correnti;4;Trasferimenti correnti a Istituzioni Sociali Private;1;Trasferimenti correnti a Istituzioni Sociali Private;1;Trasferimenti correnti a Istituzioni Sociali Private;21/09/2018
1083;1;0;1.200,00;8.400,00;OMESSO NOMINATIVO NEL RISPETTO DELLA NORMATIVA SULLA PROTEZIONE DATI PERSONALI; ;Liquidazione spesa per contributo IMPEGNATIVA CURA DOMICILIARE ICDm 2 TRIMESTRE 2018.-;25/09/2018;1280;0;325;1;Spese correnti;4;Trasferimenti correnti;2;Trasferimenti correnti a Famiglie;2;Interventi assistenziali;999;Altri assegni e sussidi assistenziali;25/09/2018
1083;2;0;1.200,00;8.400,00;OMESSO NOMINATIVO NEL RISPETTO DELLA NORMATIVA SULLA PROTEZIONE DATI PERSONALI; ;Liquidazione spesa per contributo IMPEGNATIVA CURA DOMICILIARE ICDm 2 TRIMESTRE 2018.-;25/09/2018;1280;0;325;1;Spese correnti;4;Trasferimenti correnti;2;Trasferimenti correnti a Famiglie;2;Interventi assistenziali;999;Altri assegni e sussidi assistenziali;25/09/2018
1083;3;0;1.200,00;8.400,00;OMESSO NOMINATIVO NEL RISPETTO DELLA NORMATIVA SULLA PROTEZIONE DATI PERSONALI; ;Liquidazione spesa per contributo IMPEGNATIVA CURA DOMICILIARE ICDm 2 TRIMESTRE 2018.-;25/09/2018;1280;0;325;1;Spese correnti;4;Trasferimenti correnti;2;Trasferimenti correnti a Famiglie;2;Interventi assistenziali;999;Altri assegni e sussidi assistenziali;25/09/2018
1083;4;0;1.200,00;8.400,00;OMESSO NOMINATIVO NEL RISPETTO DELLA NORMATIVA SULLA PROTEZIONE DATI PERSONALI; ;Liquidazione spesa per contributo IMPEGNATIVA CURA DOMICILIARE ICDm 2 TRIMESTRE 2018.- (intestatario scheda);25/09/2018;1280;0;325;1;Spese correnti;4;Trasferimenti correnti;2;Trasferimenti correnti a Famiglie;2;Interventi assistenziali;999;Altri assegni e sussidi assistenziali;25/09/2018
1083;5;0;1.200,00;8.400,00;OMESSO NOMINATIVO NEL RISPETTO DELLA NORMATIVA SULLA PROTEZIONE DATI PERSONALI; ;Liquidazione spesa per contributo IMPEGNATIVA CURA DOMICILIARE ICDm 2 TRIMESTRE 2018.-;25/09/2018;1280;0;325;1;Spese correnti;4;Trasferimenti correnti;2;Trasferimenti correnti a Famiglie;2;Interventi assistenziali;999;Altri assegni e sussidi assistenziali;25/09/2018
1083;6;0;1.200,00;8.400,00;OMESSO NOMINATIVO NEL RISPETTO DELLA NORMATIVA SULLA PROTEZIONE DATI PERSONALI; ;Liquidazione spesa per contributo IMPEGNATIVA CURA DOMICILIARE ICDm 2 TRIMESTRE 2018.-;25/09/2018;1280;0;325;1;Spese correnti;4;Trasferimenti correnti;2;Trasferimenti correnti a Famiglie;2;Interventi assistenziali;999;Altri assegni e sussidi assistenziali;25/09/2018
1083;7;0;1.200,00;8.400,00;OMESSO NOMINATIVO NEL RISPETTO DELLA NORMATIVA SULLA PROTEZIONE DATI PERSONALI; ;Liquidazione spesa per contributo IMPEGNATIVA CURA DOMICILIARE ICDm 2 TRIMESTRE 2018.- (intestatario scheda);25/09/2018;1280;0;325;1;Spese correnti;4;Trasferimenti correnti;2;Trasferimenti correnti a Famiglie;2;Interventi assistenziali;999;Altri assegni e sussidi assistenziali;25/09/2018
1084;1;0;120;22.440,00;OMESSO NOMINATIVO NEL RISPETTO DELLA NORMATIVA SULLA PROTEZIONE DATI PERSONALI; ;Liquidazione spese per contributo IMPEGNATIVA CURA DOMICILIARE ICDb - 1 Semestre 2018. (intestatario scheda);25/09/2018;1280;0;329;1;Spese correnti;4;Trasferimenti correnti;2;Trasferimenti correnti a Famiglie;2;Interventi assistenziali;999;Altri assegni e sussidi assistenziali;25/09/2018
1084;2;0;720;22.440,00;OMESSO NOMINATIVO NEL RISPETTO DELLA NORMATIVA SULLA PROTEZIONE DATI PERSONALI; ;Liquidazione spese per contributo IMPEGNATIVA CURA DOMICILIARE ICDb - 1 Semestre 2018.;25/09/2018;1280;0;329;1;Spese correnti;4;Trasferimenti correnti;2;Trasferimenti correnti a Famiglie;2;Interventi assistenziali;999;Altri assegni e sussidi assistenziali;25/09/2018
1084;3;0;720;22.440,00;OMESSO NOMINATIVO NEL RISPETTO DELLA NORMATIVA SULLA PROTEZIONE DATI PERSONALI; ;Liquidazione spese per contributo IMPEGNATIVA CURA DOMICILIARE ICDb - 1 Semestre 2018.;25/09/2018;1280;0;329;1;Spese correnti;4;Trasferimenti correnti;2;Trasferimenti correnti a Famiglie;2;Interventi assistenziali;999;Altri assegni e sussidi assistenziali;25/09/2018
1084;4;0;360;22.440,00;OMESSO NOMINATIVO NEL RISPETTO DELLA NORMATIVA SULLA PROTEZIONE DATI PERSONALI; ;Liquidazione spese per contributo IMPEGNATIVA CURA DOMICILIARE ICDb - 1 Semestre 2018.;25/09/2018;1280;0;329;1;Spese correnti;4;Trasferimenti correnti;2;Trasferimenti correnti a Famiglie;2;Interventi assistenziali;999;Altri assegni e sussidi assistenziali;25/09/2018
1084;5;0;720;22.440,00;OMESSO NOMINATIVO NEL RISPETTO DELLA NORMATIVA SULLA PROTEZIONE DATI PERSONALI; ;Liquidazione spese per contributo IMPEGNATIVA CURA DOMICILIARE ICDb - 1 Semestre 2018.;25/09/2018;1280;0;329;1;Spese correnti;4;Trasferimenti correnti;2;Trasferimenti correnti a Famiglie;2;Interventi assistenziali;999;Altri assegni e sussidi assistenziali;25/09/2018
1084;6;0;720;22.440,00;OMESSO NOMINATIVO NEL RISPETTO DELLA NORMATIVA SULLA PROTEZIONE DATI PERSONALI; ;Liquidazione spese per contributo IMPEGNATIVA CURA DOMICILIARE ICDb - 1 Semestre 2018. (intestatario scheda);25/09/2018;1280;0;329;1;Spese correnti;4;Trasferimenti correnti;2;Trasferimenti correnti a Famiglie;2;Interventi assistenziali;999;Altri assegni e sussidi assistenziali;25/09/2018
1084;7;0;120;22.440,00;OMESSO NOMINATIVO NEL RISPETTO DELLA NORMATIVA SULLA PROTEZIONE DATI PERSONALI; ;Liquidazione spese per contributo IMPEGNATIVA CURA DOMICILIARE ICDb - 1 Semestre 2018. (intestatario scheda);25/09/2018;1280;0;329;1;Spese correnti;4;Trasferimenti correnti;2;Trasferimenti correnti a Famiglie;2;Interventi assistenziali;999;Altri assegni e sussidi assistenziali;25/09/2018
1084;8;0;720;22.440,00;OMESSO NOMINATIVO NEL RISPETTO DELLA NORMATIVA SULLA PROTEZIONE DATI PERSONALI; ;Liquidazione spese per contributo IMPEGNATIVA CURA DOMICILIARE ICDb - 1 Semestre 2018.;25/09/2018;1280;0;329;1;Spese correnti;4;Trasferimenti correnti;2;Trasferimenti correnti a Famiglie;2;Interventi assistenziali;999;Altri assegni e sussidi assistenziali;25/09/2018
1084;9;0;120;22.440,00;OMESSO NOMINATIVO NEL RISPETTO DELLA NORMATIVA SULLA PROTEZIONE DATI PERSONALI; ;Liquidazione spese per contributo IMPEGNATIVA CURA DOMICILIARE ICDb - 1 Semestre 2018.;25/09/2018;1280;0;329;1;Spese correnti;4;Trasferimenti correnti;2;Trasferimenti correnti a Famiglie;2;Interventi assistenziali;999;Altri assegni e sussidi assistenziali;25/09/2018
1084;10;0;720;22.440,00;OMESSO NOMINATIVO NEL RISPETTO DELLA NORMATIVA SULLA PROTEZIONE DATI PERSONALI; ;Liquidazione spese per contributo IMPEGNATIVA CURA DOMICILIARE ICDb - 1 Semestre 2018.;25/09/2018;1280;0;329;1;Spese correnti;4;Trasferimenti correnti;2;Trasferimenti correnti a Famiglie;2;Interventi assistenziali;999;Altri assegni e sussidi assistenziali;25/09/2018
1084;11;0;720;22.440,00;OMESSO NOMINATIVO NEL RISPETTO DELLA NORMATIVA SULLA PROTEZIONE DATI PERSONALI; ;Liquidazione spese per contributo IMPEGNATIVA CURA DOMICILIARE ICDb - 1 Semestre 2018. (intestatario scheda);25/09/2018;1280;0;329;1;Spese correnti;4;Trasferimenti correnti;2;Trasferimenti correnti a Famiglie;2;Interventi assistenziali;999;Altri assegni e sussidi assistenziali;25/09/2018
1084;12;0;120;22.440,00;OMESSO NOMINATIVO NEL RISPETTO DELLA NORMATIVA SULLA PROTEZIONE DATI PERSONALI; ;Liquidazione spese per contributo IMPEGNATIVA CURA DOMICILIARE ICDb - 1 Semestre 2018. (intestatario scheda);25/09/2018;1280;0;329;1;Spese correnti;4;Trasferimenti correnti;2;Trasferimenti correnti a Famiglie;2;Interventi assistenziali;999;Altri assegni e sussidi assistenziali;25/09/2018
1084;13;0;720;22.440,00;OMESSO NOMINATIVO NEL RISPETTO DELLA NORMATIVA SULLA PROTEZIONE DATI PERSONALI; ;Liquidazione spese per contributo IMPEGNATIVA CURA DOMICILIARE ICDb - 1 Semestre 2018. (intestatario scheda);25/09/2018;1280;0;329;1;Spese correnti;4;Trasferimenti correnti;2;Trasferimenti correnti a Famiglie;2;Interventi assistenziali;999;Altri assegni e sussidi assistenziali;25/09/2018
1084;14;0;720;22.440,00;OMESSO NOMINATIVO NEL RISPETTO DELLA NORMATIVA SULLA PROTEZIONE DATI PERSONALI; ;Liquidazione spese per contributo IMPEGNATIVA CURA DOMICILIARE ICDb - 1 Semestre 2018.;25/09/2018;1280;0;329;1;Spese correnti;4;Trasferimenti correnti;2;Trasferimenti correnti a Famiglie;2;Interventi assistenziali;999;Altri assegni e sussidi assistenziali;25/09/2018
1084;15;0;600;22.440,00;OMESSO NOMINATIVO NEL RISPETTO DELLA NORMATIVA SULLA PROTEZIONE DATI PERSONALI; ;Liquidazione spese per contributo IMPEGNATIVA CURA DOMICILIARE ICDb - 1 Semestre 2018.;25/09/2018;1280;0;329;1;Spese correnti;4;Trasferimenti correnti;2;Trasferimenti correnti a Famiglie;2;Interventi assistenziali;999;Altri assegni e sussidi assistenziali;25/09/2018
1084;16;0;720;22.440,00;OMESSO NOMINATIVO NEL RISPETTO DELLA NORMATIVA SULLA PROTEZIONE DATI PERSONALI; ;Liquidazione spese per contributo IMPEGNATIVA CURA DOMICILIARE ICDb - 1 Semestre 2018. (intestatario scheda);25/09/2018;1280;0;329;1;Spese correnti;4;Trasferimenti correnti;2;Trasferimenti correnti a Famiglie;2;Interventi assistenziali;999;Altri assegni e sussidi assistenziali;25/09/2018
1084;17;0;720;22.440,00;OMESSO NOMINATIVO NEL RISPETTO DELLA NORMATIVA SULLA PROTEZIONE DATI PERSONALI; ;Liquidazione spese per contributo IMPEGNATIVA CURA DOMICILIARE ICDb - 1 Semestre 2018.;25/09/2018;1280;0;329;1;Spese correnti;4;Trasferimenti correnti;2;Trasferimenti correnti a Famiglie;2;Interventi assistenziali;999;Altri assegni e sussidi assistenziali;25/09/2018
1084;18;0;720;22.440,00;OMESSO NOMINATIVO NEL RISPETTO DELLA NORMATIVA SULLA PROTEZIONE DATI PERSONALI; ;Liquidazione spese per contributo IMPEGNATIVA CURA DOMICILIARE ICDb - 1 Semestre 2018.;25/09/2018;1280;0;329;1;Spese correnti;4;Trasferimenti correnti;2;Trasferimenti correnti a Famiglie;2;Interventi assistenziali;999;Altri assegni e sussidi assistenziali;25/09/2018
1084;19;0;720;22.440,00;OMESSO NOMINATIVO NEL RISPETTO DELLA NORMATIVA SULLA PROTEZIONE DATI PERSONALI; ;Liquidazione spese per contributo IMPEGNATIVA CURA DOMICILIARE ICDb - 1 Semestre 2018.;25/09/2018;1280;0;329;1;Spese correnti;4;Trasferimenti correnti;2;Trasferimenti correnti a Famiglie;2;Interventi assistenziali;999;Altri assegni e sussidi assistenziali;25/09/2018
1084;20;0;480;22.440,00;OMESSO NOMINATIVO NEL RISPETTO DELLA NORMATIVA SULLA PROTEZIONE DATI PERSONALI; ;Liquidazione spese per contributo IMPEGNATIVA CURA DOMICILIARE ICDb - 1 Semestre 2018.;25/09/2018;1280;0;329;1;Spese correnti;4;Trasferimenti correnti;2;Trasferimenti correnti a Famiglie;2;Interventi assistenziali;999;Altri assegni e sussidi assistenziali;25/09/2018
1084;21;0;720;22.440,00;OMESSO NOMINATIVO NEL RISPETTO DELLA NORMATIVA SULLA PROTEZIONE DATI PERSONALI; ;Liquidazione spese per contributo IMPEGNATIVA CURA DOMICILIARE ICDb - 1 Semestre 2018.;25/09/2018;1280;0;329;1;Spese correnti;4;Trasferimenti correnti;2;Trasferimenti correnti a Famiglie;2;Interventi assistenziali;999;Altri assegni e sussidi assistenziali;25/09/2018
1084;22;0;720;22.440,00;OMESSO NOMINATIVO NEL RISPETTO DELLA NORMATIVA SULLA PROTEZIONE DATI PERSONALI; ;Liquidazione spese per contributo IMPEGNATIVA CURA DOMICILIARE ICDb - 1 Semestre 2018.;25/09/2018;1280;0;329;1;Spese correnti;4;Trasferimenti correnti;2;Trasferimenti correnti a Famiglie;2;Interventi assistenziali;999;Altri assegni e sussidi assistenziali;25/09/2018
1084;23;0;360;22.440,00;OMESSO NOMINATIVO NEL RISPETTO DELLA NORMATIVA SULLA PROTEZIONE DATI PERSONALI; ;Liquidazione spese per contributo IMPEGNATIVA CURA DOMICILIARE ICDb - 1 Semestre 2018.;25/09/2018;1280;0;329;1;Spese correnti;4;Trasferimenti correnti;2;Trasferimenti correnti a Famiglie;2;Interventi assistenziali;999;Altri assegni e sussidi assistenziali;25/09/2018
1084;24;0;720;22.440,00;OMESSO NOMINATIVO NEL RISPETTO DELLA NORMATIVA SULLA PROTEZIONE DATI PERSONALI; ;Liquidazione spese per contributo IMPEGNATIVA CURA DOMICILIARE ICDb - 1 Semestre 2018.;25/09/2018;1280;0;329;1;Spese correnti;4;Trasferimenti correnti;2;Trasferimenti correnti a Famiglie;2;Interventi assistenziali;999;Altri assegni e sussidi assistenziali;25/09/2018
1084;25;0;720;22.440,00;OMESSO NOMINATIVO NEL RISPETTO DELLA NORMATIVA SULLA PROTEZIONE DATI PERSONALI; ;Liquidazione spese per contributo IMPEGNATIVA CURA DOMICILIARE ICDb - 1 Semestre 2018. (intestatario scheda);25/09/2018;1280;0;329;1;Spese correnti;4;Trasferimenti correnti;2;Trasferimenti correnti a Famiglie;2;Interventi assistenziali;999;Altri assegni e sussidi assistenziali;25/09/2018
1084;26;0;720;22.440,00;OMESSO NOMINATIVO NEL RISPETTO DELLA NORMATIVA SULLA PROTEZIONE DATI PERSONALI; ;Liquidazione spese per contributo IMPEGNATIVA CURA DOMICILIARE ICDb - 1 Semestre 2018.;25/09/2018;1280;0;329;1;Spese correnti;4;Trasferimenti correnti;2;Trasferimenti correnti a Famiglie;2;Interventi assistenziali;999;Altri assegni e sussidi assistenziali;25/09/2018
1084;27;0;720;22.440,00;OMESSO NOMINATIVO NEL RISPETTO DELLA NORMATIVA SULLA PROTEZIONE DATI PERSONALI; ;Liquidazione spese per contributo IMPEGNATIVA CURA DOMICILIARE ICDb - 1 Semestre 2018. (intestatario scheda);25/09/2018;1280;0;329;1;Spese correnti;4;Trasferimenti correnti;2;Trasferimenti correnti a Famiglie;2;Interventi assistenziali;999;Altri assegni e sussidi assistenziali;25/09/2018
1084;28;0;720;22.440,00;OMESSO NOMINATIVO NEL RISPETTO DELLA NORMATIVA SULLA PROTEZIONE DATI PERSONALI; ;Liquidazione spese per contributo IMPEGNATIVA CURA DOMICILIARE ICDb - 1 Semestre 2018.;25/09/2018;1280;0;329;1;Spese correnti;4;Trasferimenti correnti;2;Trasferimenti correnti a Famiglie;2;Interventi assistenziali;999;Altri assegni e sussidi assistenziali;25/09/2018
1084;29;0;720;22.440,00;OMESSO NOMINATIVO NEL RISPETTO DELLA NORMATIVA SULLA PROTEZIONE DATI PERSONALI; ;Liquidazione spese per contributo IMPEGNATIVA CURA DOMICILIARE ICDb - 1 Semestre 2018.;25/09/2018;1280;0;329;1;Spese correnti;4;Trasferimenti correnti;2;Trasferimenti correnti a Famiglie;2;Interventi assistenziali;999;Altri assegni e sussidi assistenziali;25/09/2018
1084;30;0;720;22.440,00;OMESSO NOMINATIVO NEL RISPETTO DELLA NORMATIVA SULLA PROTEZIONE DATI PERSONALI; ;Liquidazione spese per contributo IMPEGNATIVA CURA DOMICILIARE ICDb - 1 Semestre 2018.;25/09/2018;1280;0;329;1;Spese correnti;4;Trasferimenti correnti;2;Trasferimenti correnti a Famiglie;2;Interventi assistenziali;999;Altri assegni e sussidi assistenziali;25/09/2018
1084;31;0;720;22.440,00;OMESSO NOMINATIVO NEL RISPETTO DELLA NORMATIVA SULLA PROTEZIONE DATI PERSONALI; ;Liquidazione spese per contributo IMPEGNATIVA CURA DOMICILIARE ICDb - 1 Semestre 2018.;25/09/2018;1280;0;329;1;Spese correnti;4;Trasferimenti correnti;2;Trasferimenti correnti a Famiglie;2;Interventi assistenziali;999;Altri assegni e sussidi assistenziali;25/09/2018
1084;32;0;720;22.440,00;OMESSO NOMINATIVO NEL RISPETTO DELLA NORMATIVA SULLA PROTEZIONE DATI PERSONALI; ;Liquidazione spese per contributo IMPEGNATIVA CURA DOMICILIARE ICDb - 1 Semestre 2018.;25/09/2018;1280;0;329;1;Spese correnti;4;Trasferimenti correnti;2;Trasferimenti correnti a Famiglie;2;Interventi assistenziali;999;Altri assegni e sussidi assistenziali;25/09/2018
1084;33;0;720;22.440,00;OMESSO NOMINATIVO NEL RISPETTO DELLA NORMATIVA SULLA PROTEZIONE DATI PERSONALI; ;Liquidazione spese per contributo IMPEGNATIVA CURA DOMICILIARE ICDb - 1 Semestre 2018.;25/09/2018;1280;0;329;1;Spese correnti;4;Trasferimenti correnti;2;Trasferimenti correnti a Famiglie;2;Interventi assistenziali;999;Altri assegni e sussidi assistenziali;25/09/2018
1084;34;0;720;22.440,00;OMESSO NOMINATIVO NEL RISPETTO DELLA NORMATIVA SULLA PROTEZIONE DATI PERSONALI; ;Liquidazione spese per contributo IMPEGNATIVA CURA DOMICILIARE ICDb - 1 Semestre 2018.;25/09/2018;1280;0;329;1;Spese correnti;4;Trasferimenti correnti;2;Trasferimenti correnti a Famiglie;2;Interventi assistenziali;999;Altri assegni e sussidi assistenziali;25/09/2018
1084;35;0;720;22.440,00;OMESSO NOMINATIVO NEL RISPETTO DELLA NORMATIVA SULLA PROTEZIONE DATI PERSONALI; ;Liquidazione spese per contributo IMPEGNATIVA CURA DOMICILIARE ICDb - 1 Semestre 2018.;25/09/2018;1280;0;329;1;Spese correnti;4;Trasferimenti correnti;2;Trasferimenti correnti a Famiglie;2;Interventi assistenziali;999;Altri assegni e sussidi assistenziali;25/09/2018
1084;36;0;720;22.440,00;OMESSO NOMINATIVO NEL RISPETTO DELLA NORMATIVA SULLA PROTEZIONE DATI PERSONALI; ;Liquidazione spese per contributo IMPEGNATIVA CURA DOMICILIARE ICDb - 1 Semestre 2018.;25/09/2018;1280;0;329;1;Spese correnti;4;Trasferimenti correnti;2;Trasferimenti correnti a Famiglie;2;Interventi assistenziali;999;Altri assegni e sussidi assistenziali;25/09/2018
1085;1;0;100;100;ECONOMO COMUNALE - ZENNARO SOFIA; ;SPESE PER AFFRANCATRICE POSTALE;04/10/2018;84;0;336;1;Spese correnti;3;Acquisto di beni e servizi;2;Acquisto di servizi;16;Servizi amministrativi;2;Spese postali;04/10/2018
1086;1;0;743,56;743,56;ANCI NAZIONALE EQUITALIA SPA SERVIZIO RAV;Z2024C5C64;Liquidazione spesa per adesione ANCI - Associazione Nazionale Comuni Italiani - anno 2018;05/10/2018;30;0;333;1;Spese correnti;3;Acquisto di beni e servizi;2;Acquisto di servizi;99;Altri servizi;3;Quote di associazioni;05/10/2018
1089;1;0;7.402,28;7.402,28;AZIENDA ULSS N. 5 POLESANA;ZFA217D822;Liquidazione spesa per trasferimenti all'ULSS 5 Polesana per finanziamenti Servizi Sociali - Anno 2018.;12/10/2018;1950;1;408;1;Spese correnti;4;Trasferimenti correnti;4;Trasferimenti correnti a Istituzioni Sociali Private;1;Trasferimenti correnti a Istituzioni Sociali Private;1;Trasferimenti correnti a Istituzioni Sociali Private;12/10/2018
1090;1;0;83.433,08;83.433,08;AZIENDA ULSS N. 5 POLESANA; ;Liquidazione spesa per trasferimenti all'ULSS 5 Polesana per finanziamenti Servizi Sociali - Anno 2018.;12/10/2018;1946;0;316;1;Spese correnti;4;Trasferimenti correnti;1;Trasferimenti correnti a Amministrazioni Pubbliche;2;Trasferimenti correnti a Amministrazioni Locali;21;Trasferimenti correnti a Aziende sanitarie locali  a titolo di finanziamento di livelli di assistenza superiori ai livelli essenziali di assistenza (LEA);12/10/2018
1091;1;0;2.156,00;2.156,00;MARANGONI GIORGIO & C. ASSISTENZA CALDAIE;ZAC2427D38;SALDO Fatt.n. 8/PA  del 17/07/2018 SOSTITUZIONE CALDAIA ALLOGGIO DI PROPRIETA' COMUNALE VIA DANTE, 35;12/10/2018;345;0;261;1;Spese correnti;3;Acquisto di beni e servizi;2;Acquisto di servizi;9;Manutenzione ordinaria e riparazioni;8;Manutenzione ordinaria e riparazioni di beni immobili;12/10/2018
1092;1;0;67.129,60;113.980,14;MAGGIOLI SPA;ZC822997E0;SALDO Fatt.n. 0001123611  del 31/08/2018 Rivalsa spese postali anticipate;12/10/2018;2017;0;112;1;Spese correnti;3;Acquisto di beni e servizi;2;Acquisto di servizi;7;Utilizzo di beni di terzi;8;Noleggi di impianti e macchinari;12/10/2018
1092;2;0;46.850,54;113.980,14;MAGGIOLI SPA;ZC822997E0;SALDO Fatt.n. 0002136173  del 31/08/2018 Servizio di gestione degli atti amministrativi relativi alle violazionie CdS;12/10/2018;2017;0;112;1;Spese correnti;3;Acquisto di beni e servizi;2;Acquisto di servizi;7;Utilizzo di beni di terzi;8;Noleggi di impianti e macchinari;12/10/2018
1093;1;0;2.221,62;2.221,62;MAGGIOLI SPA;ZC822997E0;SALDO Fatt.n. 0002137747  del 27/09/2018 Gestione forfettaria servizio data entry mese di settembre 2018;12/10/2018;2017;0;194;1;Spese correnti;3;Acquisto di beni e servizi;2;Acquisto di servizi;7;Utilizzo di beni di terzi;8;Noleggi di impianti e macchinari;12/10/2018
1094;1;0;297;297;CONSORZIO AGRARIO DEL NORDEST;Z2E23F0F13;SALDO Fatt.n. 125579/V1  del 23/06/2018 FORNITURA MATERIALE PER DISINFESTAZIONE;12/10/2018;1730;0;224;1;Spese correnti;3;Acquisto di beni e servizi;1;Acquisto di beni;2;Altri beni di consumo;999;Altri beni e materiali di consumo n.a.c.;12/10/2018
1095;1;0;385,76;385,76;SPIGOLON SANDRO  OFFICINA-CARROZZERIA;Z502483AA8;SALDO Fatt.n. 2/E  del 23/08/2018 Manutenzione Renault Trafic EC792PS;12/10/2018;1680;0;284;1;Spese correnti;3;Acquisto di beni e servizi;2;Acquisto di servizi;11;Prestazioni professionali e specialistiche;999;Altre prestazioni professionali e specialistiche n.a.c.;12/10/2018
1096;1;0;61;61;KUWAIT PETROLEUM ITALIA S.P.A.;Z0F1755350;SALDO Fatt.n. PJ00293538  del 31/08/2018 Fornitura gasolio;12/10/2018;2000;0;49;1;Spese correnti;3;Acquisto di beni e servizi;1;Acquisto di beni;2;Altri beni di consumo;2;Carburanti, combustibili e lubrificanti;12/10/2018
1097;1;0;32;182;KUWAIT PETROLEUM ITALIA S.P.A.;ZEA1A355E2;ACCONTO Fatt.n. PJ00293539  del 31/08/2018 Fornitura gasolio e benzina;12/10/2018;2000;0;49;1;Spese correnti;3;Acquisto di beni e servizi;1;Acquisto di beni;2;Altri beni di consumo;2;Carburanti, combustibili e lubrificanti;12/10/2018
1097;2;0;150;182;KUWAIT PETROLEUM ITALIA S.P.A.;ZEA1A355E2;SALDO Fatt.n. PJ00293539  del 31/08/2018 Fornitura gasolio e benzina;12/10/2018;2000;0;49;1;Spese correnti;3;Acquisto di beni e servizi;1;Acquisto di beni;2;Altri beni di consumo;2;Carburanti, combustibili e lubrificanti;12/10/2018
1098;1;0;91,5;256,2;AREAUFFICIO DI MARTIN MARTINA;ZA31ECD29C;SALDO Fatt.n. 40053  del 18/09/2018 Manutenzione stampante;12/10/2018;89;0;163;1;Spese correnti;3;Acquisto di beni e servizi;2;Acquisto di servizi;9;Manutenzione ordinaria e riparazioni;5;Manutenzione ordinaria e riparazioni di attrezzature;12/10/2018
1098;2;0;164,7;256,2;AREAUFFICIO DI MARTIN MARTINA;ZA31ECD29C;SALDO Fatt.n. 40043  del 31/07/2018 Manutenzione macchina;12/10/2018;89;0;163;1;Spese correnti;3;Acquisto di beni e servizi;2;Acquisto di servizi;9;Manutenzione ordinaria e riparazioni;5;Manutenzione ordinaria e riparazioni di attrezzature;12/10/2018
1099;1;0;38,44;38,44;ASCOTRADE S.P.A. ENERGIA & SERVIZI; ;SALDO Fatt.n. 1213806  del 18/09/2018 Fornitura gas naturale luglio - settembre 2018;12/10/2018;935;11;31;1;Spese correnti;3;Acquisto di beni e servizi;2;Acquisto di servizi;5;Utenze e canoni;6;Gas;12/10/2018
1100;1;0;28,2;28,2;ASCOTRADE S.P.A. ENERGIA & SERVIZI; ;SALDO Fatt.n. 1227686  del 18/09/2018 Fornitura gas naturale luglio - settembre 2018;12/10/2018;649;11;28;1;Spese correnti;3;Acquisto di beni e servizi;2;Acquisto di servizi;5;Utenze e canoni;6;Gas;12/10/2018
1101;1;0;105,64;105,64;EDISON ENERGIA SPA; ;SALDO Fatt.n. 2900114510  del 17/09/2018 Fornitura energia elettrica mese di agosto 2018;12/10/2018;82;10;18;1;Spese correnti;3;Acquisto di beni e servizi;2;Acquisto di servizi;5;Utenze e canoni;4;Energia elettrica;12/10/2018
1102;1;0;414,12;414,12;IGEAM S.R.L.;ZA81E2DDC2;SALDO Fatt.n. FTE181940  del 21/08/2018 Fornitura integrata dell'igiene, salute e sicurezza D. Lgs 81/08;12/10/2018;201;0;131;1;Spese correnti;3;Acquisto di beni e servizi;2;Acquisto di servizi;11;Prestazioni professionali e specialistiche;999;Altre prestazioni professionali e specialistiche n.a.c.;12/10/2018
1103;1;0;491,38;491,38;ACQUEVENETE SPA; ;SALDO Fatt.n. BEP18-0004220  del 07/09/2018 Fornitura idrica giugno - agosto 2018;12/10/2018;693;12;37;1;Spese correnti;3;Acquisto di beni e servizi;2;Acquisto di servizi;5;Utenze e canoni;5;Acqua;12/10/2018
1104;1;0;12,51;12,51;ACQUEVENETE SPA; ;SALDO Fatt.n. BEP18-0004232  del 07/09/2018 Fornitura idrica giugno - agosto 2018;12/10/2018;1777;12;42;1;Spese correnti;3;Acquisto di beni e servizi;2;Acquisto di servizi;5;Utenze e canoni;5;Acqua;12/10/2018
1105;1;0;43,74;251,76;ACQUEVENETE SPA; ;SALDO Fatt.n. BEP18-0004231  del 07/09/2018 Fornitura idrica giugno - agosto 2018;12/10/2018;935;12;39;1;Spese correnti;3;Acquisto di beni e servizi;2;Acquisto di servizi;5;Utenze e canoni;5;Acqua;12/10/2018
1105;2;0;208,02;251,76;ACQUEVENETE SPA; ;SALDO Fatt.n. BEP18-0004215  del 07/09/2018 Fornitura idrica giugno - agosto 2018;12/10/2018;935;12;39;1;Spese correnti;3;Acquisto di beni e servizi;2;Acquisto di servizi;5;Utenze e canoni;5;Acqua;12/10/2018
1106;1;0;9,35;135,82;ACQUEVENETE SPA; ;SALDO Fatt.n. BEP18-0004230  del 07/09/2018 Quota fissa acquedotto;12/10/2018;735;12;38;1;Spese correnti;3;Acquisto di beni e servizi;2;Acquisto di servizi;5;Utenze e canoni;5;Acqua;12/10/2018
1106;2;0;126,47;135,82;ACQUEVENETE SPA; ;SALDO Fatt.n. BEP18-0004225  del 07/09/2018 Fornitura idrica giugno - agosto 2018;12/10/2018;735;12;38;1;Spese correnti;3;Acquisto di beni e servizi;2;Acquisto di servizi;5;Utenze e canoni;5;Acqua;12/10/2018
1107;1;0;11;40,11;ACQUEVENETE SPA; ;SALDO Fatt.n. BEP18-0004221  del 07/09/2018 Quota fissa acquedotto;12/10/2018;1418;12;41;1;Spese correnti;3;Acquisto di beni e servizi;2;Acquisto di servizi;5;Utenze e canoni;5;Acqua;12/10/2018
1107;2;0;29,11;40,11;ACQUEVENETE SPA; ;SALDO Fatt.n. BEP18-0004222  del 07/09/2018 Fornitura idrica giugno - agosto 2018;12/10/2018;1418;12;41;1;Spese correnti;3;Acquisto di beni e servizi;2;Acquisto di servizi;5;Utenze e canoni;5;Acqua;12/10/2018
1108;1;0;9,35;811,22;ACQUEVENETE SPA; ;SALDO Fatt.n. BEP18-0004227  del 07/09/2018 Quota fissa acquedotto;12/10/2018;649;12;36;1;Spese correnti;3;Acquisto di beni e servizi;2;Acquisto di servizi;5;Utenze e canoni;5;Acqua;12/10/2018
1108;2;0;801,87;811,22;ACQUEVENETE SPA; ;SALDO Fatt.n. BEP18-0004226  del 07/09/2018 Fornitura idrica giugno - agosto 2018;12/10/2018;649;12;36;1;Spese correnti;3;Acquisto di beni e servizi;2;Acquisto di servizi;5;Utenze e canoni;5;Acqua;12/10/2018
1109;1;0;10,12;490,22;ACQUEVENETE SPA; ;SALDO Fatt.n. BEP18-0004228  del 07/09/2018 Fornitura idrica giugno - agosto 2018;12/10/2018;82;12;35;1;Spese correnti;3;Acquisto di beni e servizi;2;Acquisto di servizi;5;Utenze e canoni;5;Acqua;12/10/2018
1109;2;0;15,04;490,22;ACQUEVENETE SPA; ;SALDO Fatt.n. BEP18-0004223  del 07/09/2018 Fornitura idrica giugno - agosto 2018;12/10/2018;82;12;35;1;Spese correnti;3;Acquisto di beni e servizi;2;Acquisto di servizi;5;Utenze e canoni;5;Acqua;12/10/2018
1109;3;0;17,45;490,22;ACQUEVENETE SPA; ;SALDO Fatt.n. BEP18-0004224  del 07/09/2018 Fornitura idrica giugno - agosto 2018;12/10/2018;82;12;35;1;Spese correnti;3;Acquisto di beni e servizi;2;Acquisto di servizi;5;Utenze e canoni;5;Acqua;12/10/2018
1109;4;0;24,49;490,22;ACQUEVENETE SPA; ;SALDO Fatt.n. BEP18-0004217  del 07/09/2018 Fornitura idrica giugno - agosto 2018;12/10/2018;82;12;35;1;Spese correnti;3;Acquisto di beni e servizi;2;Acquisto di servizi;5;Utenze e canoni;5;Acqua;12/10/2018
1109;5;0;26,92;490,22;ACQUEVENETE SPA; ;SALDO Fatt.n. BEP18-0004219  del 07/09/2018 Fornitura idrica giugno - agosto 2018;12/10/2018;82;12;35;1;Spese correnti;3;Acquisto di beni e servizi;2;Acquisto di servizi;5;Utenze e canoni;5;Acqua;12/10/2018
1109;6;0;34,11;490,22;ACQUEVENETE SPA; ;SALDO Fatt.n. BEP18-0004218  del 07/09/2018 Fornitura idrica giugno - agosto 2018;12/10/2018;82;12;35;1;Spese correnti;3;Acquisto di beni e servizi;2;Acquisto di servizi;5;Utenze e canoni;5;Acqua;12/10/2018
1109;7;0;61,76;490,22;ACQUEVENETE SPA; ;SALDO Fatt.n. BEP18-0004212  del 07/09/2018 Fornitura idrica giugno - agosto 2018;12/10/2018;82;12;35;1;Spese correnti;3;Acquisto di beni e servizi;2;Acquisto di servizi;5;Utenze e canoni;5;Acqua;12/10/2018
1109;8;0;100,23;490,22;ACQUEVENETE SPA; ;SALDO Fatt.n. BEP18-0004216  del 07/09/2018 Fornitura idrica giugno - agosto 2018;12/10/2018;82;12;35;1;Spese correnti;3;Acquisto di beni e servizi;2;Acquisto di servizi;5;Utenze e canoni;5;Acqua;12/10/2018
1109;9;0;200,1;490,22;ACQUEVENETE SPA; ;SALDO Fatt.n. BEP18-0004214  del 07/09/2018 Fornitura idrica giugno - agosto 2018;12/10/2018;82;12;35;1;Spese correnti;3;Acquisto di beni e servizi;2;Acquisto di servizi;5;Utenze e canoni;5;Acqua;12/10/2018
1110;1;0;767,15;767,15;EDISON ENERGIA SPA; ;ACCONTO Fatt.n. 2900114509  del 17/09/2018 Fornitura energia elettrica mese di agosto 2018;12/10/2018;1794;10;26;1;Spese correnti;3;Acquisto di beni e servizi;2;Acquisto di servizi;5;Utenze e canoni;4;Energia elettrica;12/10/2018
1111;1;0;364,83;364,83;EDISON ENERGIA SPA; ;ACCONTO Fatt.n. 2900114509  del 17/09/2018 Fornitura energia elettrica mese di agosto 2018;12/10/2018;735;10;21;1;Spese correnti;3;Acquisto di beni e servizi;2;Acquisto di servizi;5;Utenze e canoni;4;Energia elettrica;12/10/2018
1112;1;0;110,25;110,25;EDISON ENERGIA SPA; ;ACCONTO Fatt.n. 2900114509  del 17/09/2018 Fornitura energia elettrica mese di agosto 2018;12/10/2018;693;10;20;1;Spese correnti;3;Acquisto di beni e servizi;2;Acquisto di servizi;5;Utenze e canoni;4;Energia elettrica;12/10/2018
1113;1;0;218,48;218,48;EDISON ENERGIA SPA; ;SALDO Fatt.n. 2900114509  del 17/09/2018 Fornitura energia elettrica mese di agosto 2018;12/10/2018;649;10;19;1;Spese correnti;3;Acquisto di beni e servizi;2;Acquisto di servizi;5;Utenze e canoni;4;Energia elettrica;12/10/2018
1114;1;0;17,91;153,03;ASCOTRADE S.P.A. ENERGIA & SERVIZI; ;SALDO Fatt.n. 1236166  del 18/09/2018 Fornitura gas naturale luglio - settembre 2018;12/10/2018;82;11;27;1;Spese correnti;3;Acquisto di beni e servizi;2;Acquisto di servizi;5;Utenze e canoni;6;Gas;12/10/2018
1114;2;0;135,12;153,03;ASCOTRADE S.P.A. ENERGIA & SERVIZI; ;SALDO Fatt.n. 1239711  del 18/09/2018 Fornitura gas naturale luglio - agosto 2018;12/10/2018;82;11;27;1;Spese correnti;3;Acquisto di beni e servizi;2;Acquisto di servizi;5;Utenze e canoni;6;Gas;12/10/2018
1115;1;0;267,47;267,47;S.A.T.E. SRL;Z032024B22;SALDO Fatt.n. E-92  del 31/08/2018 RIPARAZIONE FRIGO CONGELATORE SCUOLA MATERNA;12/10/2018;701;0;253;1;Spese correnti;3;Acquisto di beni e servizi;2;Acquisto di servizi;9;Manutenzione ordinaria e riparazioni;4;Manutenzione ordinaria e riparazioni di impianti e macchinari;12/10/2018
1116;1;0;-320;400;ROSSI MAURIZIO;Z7419B1681;SALDO Fatt.n. FatPAM 02/2018  del 11/09/2018 storno fattura n. 02/2016;12/10/2018;201;0;136;1;Spese correnti;3;Acquisto di beni e servizi;2;Acquisto di servizi;11;Prestazioni professionali e specialistiche;999;Altre prestazioni professionali e specialistiche n.a.c.;12/10/2018
1116;2;0;320;400;ROSSI MAURIZIO;Z7419B1681;SALDO Fatt.n. FatPAM 02/2016  del 02/08/2016 PRESTAZIONI MEDICO DEL LAVORO VOUCHER 2016;12/10/2018;201;0;136;1;Spese correnti;3;Acquisto di beni e servizi;2;Acquisto di servizi;11;Prestazioni professionali e specialistiche;999;Altre prestazioni professionali e specialistiche n.a.c.;12/10/2018
1116;3;0;400;400;ROSSI MAURIZIO;Z7419B1681;SALDO Fatt.n. FatPAM 03/2018  del 11/09/2018;12/10/2018;201;0;136;1;Spese correnti;3;Acquisto di beni e servizi;2;Acquisto di servizi;11;Prestazioni professionali e specialistiche;999;Altre prestazioni professionali e specialistiche n.a.c.;12/10/2018
1117;1;0;36;36;OMESSO NOMINATIVO NEL RISPETTO DELLA NORMATIVA SULLA PROTEZIONE DATI PERSONALI; ;Liquidazione restituzione somma buoni pasto non utilizzati a famiglia trasferita in altro Comune.;12/10/2018;805;0;259;1;Spese correnti;4;Trasferimenti correnti;2;Trasferimenti correnti a Famiglie;5;Altri trasferimenti a famiglie;999;Altri trasferimenti a famiglie n.a.c.;12/10/2018
1118;1;0;4.026,00;4.026,00;VELOCAR S.R.L.;ZCE222EA93;SALDO Fatt.n. 356/FE  del 03/09/2018 Canone locazione Evo R - mese di Settembre 2018;12/10/2018;2017;0;422;1;Spese correnti;3;Acquisto di beni e servizi;2;Acquisto di servizi;7;Utilizzo di beni di terzi;8;Noleggi di impianti e macchinari;12/10/2018
1119;1;0;16,79;16,79;MINISTERO DELL'INTERNO; ;Liquidazione corrispettivo al Ministero dell'Interno per rilascio nuove carte di identita elettroniche;12/10/2018;240;0;346;1;Spese correnti;3;Acquisto di beni e servizi;2;Acquisto di servizi;16;Servizi amministrativi;999;Altre spese per servizi amministrativi;12/10/2018
1120;1;0;250;250;MARINI SIMONE;Z1E2451FBF;"Liquidazione spesa per concerto durante la rassegna letteraria e musicale ""La finestra sul cortile"" organizzata a cura della Biblioteca Comunale. C.I.G. Z1E2451FBF.-";12/10/2018;935;1;269;1;Spese correnti;3;Acquisto di beni e servizi;2;Acquisto di servizi;2;Organizzazione eventi, pubblicita` e servizi per trasferta;5;Organizzazione e partecipazione a manifestazioni e convegni;12/10/2018
1167;1;0;613,55;613,55;GASPARINI MORENO; ;INDENNITA' DI CARICA SINDACO - OTTOBRE 2018;20/10/2018;20;0;16;1;Spese correnti;3;Acquisto di beni e servizi;2;Acquisto di servizi;1;Organi e incarichi istituzionali dell'amministrazione;1;Organi istituzionali dell'amministrazione - Indennità;20/10/2018
1169;1;0;100;100;OMESSO NOMINATIVO NEL RISPETTO DELLA NORMATIVA SULLA PROTEZIONE DATI PERSONALI; ;Assunzione impegno di spesa per contributo per progetto di integrazione sociale in ambito lavorativo.-;20/10/2018;1950;0;359;1;Spese correnti;4;Trasferimenti correnti;2;Trasferimenti correnti a Famiglie;2;Interventi assistenziali;999;Altri assegni e sussidi assistenziali;20/10/2018
1170;1;0;100;100;OMESSO NOMINATIVO NEL RISPETTO DELLA NORMATIVA SULLA PROTEZIONE DATI PERSONALI; ;Assunzione impegno di spesa per contributo per progetto di integrazione sociale in ambito lavorativo.;20/10/2018;1950;0;294;1;Spese correnti;4;Trasferimenti correnti;2;Trasferimenti correnti a Famiglie;2;Interventi assistenziali;999;Altri assegni e sussidi assistenziali;20/10/2018
1171;1;0;100;100;OMESSO NOMINATIVO NEL RISPETTO DELLA NORMATIVA SULLA PROTEZIONE DATI PERSONALI; ;Assunzione impegno di spesa per contributo per progetto di integrazione sociale in ambito lavorativo.-;20/10/2018;1950;0;134;1;Spese correnti;4;Trasferimenti correnti;2;Trasferimenti correnti a Famiglie;2;Interventi assistenziali;999;Altri assegni e sussidi assistenziali;20/10/2018
1172;1;0;1.586,00;1.586,00;SOCIETA' DI SCAVI E MANUTENZIONI SNC DI FURLAN FABRIZIO;Z1723F6FD3;SALDO Fatt.n. 2  del 07/08/2018 Realizzazione nuova linea interrata di illuminazione pubblica via G. Verdi;24/10/2018;2005;1;281;1;Spese correnti;3;Acquisto di beni e servizi;2;Acquisto di servizi;9;Manutenzione ordinaria e riparazioni;4;Manutenzione ordinaria e riparazioni di impianti e macchinari;24/10/2018
1173;1;0;32.635,00;65.270,00;HERA LUCE S.R.L.;52513417AD;SALDO Fatt.n. 301800001041  del 31/07/2018 ILLUMINAZIONE PUBBLICA aprile - giugno 2018;25/10/2018;2003;0;340;1;Spese correnti;3;Acquisto di beni e servizi;2;Acquisto di servizi;15;Contratti di servizio pubblico;15;Contratti di servizio per l'illuminazione pubblica;25/10/2018
1173;2;0;32.635,00;65.270,00;HERA LUCE S.R.L.;52513417AD;SALDO Fatt.n. 301800000366  del 30/04/2018 Spesa per illuminazione pubblica Gennaio - Marzo 2018;25/10/2018;2003;0;340;1;Spese correnti;3;Acquisto di beni e servizi;2;Acquisto di servizi;15;Contratti di servizio pubblico;15;Contratti di servizio per l'illuminazione pubblica;25/10/2018
1174;1;0;1.071,00;1.071,00;"CONSIGLIO DI BACINO ""POLESINE""  -  A.T.O. POLESINE"; ;Erogazione spese consorziali anno 2018  -  Consorzio A.T.O. Polesine;29/10/2018;1530;0;366;1;Spese correnti;4;Trasferimenti correnti;3;Trasferimenti correnti a Imprese;2;Trasferimenti correnti a altre imprese partecipate;1;Trasferimenti correnti a altre imprese partecipate;29/10/2018
1175;1;0;2.394,05;2.394,05;ITALIANA PETROLI S.P.A.;Z8825379B3;SALDO Fatt.n. 0004205  del 23/10/2018 Cessione nr. 10 buoni benzina e nr. 20 buoni gasolio;29/10/2018;2000;0;357;1;Spese correnti;3;Acquisto di beni e servizi;1;Acquisto di beni;2;Altri beni di consumo;2;Carburanti, combustibili e lubrificanti;29/10/2018
1176;1;0;54.213,06;54.213,06;FONSATO IMPIANTI DI FONSATO GIORGIO;7590977064;ACCONTO Fatt.n. 000036-2018-xml  del 30/10/2018 Interventi di manutenzione straordinaria degli impianti sportivi comunali;31/10/2018;2610;0;303;2;Spese in conto capitale;2;Investimenti fissi lordi e acquisto di terreni;1;Beni materiali;9;Beni immobili;16;Impianti sportivi;31/10/2018
1177;1;0;7.357,25;7.357,25;FONSATO IMPIANTI DI FONSATO GIORGIO;7590977064;SALDO Fatt.n. 000036-2018-xml  del 30/10/2018 Interventi di manutenzione straordinaria degli impianti sportivi comunali;31/10/2018;2610;0;367;2;Spese in conto capitale;2;Investimenti fissi lordi e acquisto di terreni;1;Beni materiali;9;Beni immobili;16;Impianti sportivi;31/10/2018
1178;1;0;1.766,37;1.766,37;COOPERATIVA SOCIALE COOPSELIOS S.C.R.L.; ;"SALDO Fatt.n. 006877-0C02  del 17/09/2018 Retta centro RSD ""Il Gabbiano"" Porto Viro - mese di settembre, ospite Mantovan Pasquale";02/11/2018;1955;0;4;1;Spese correnti;4;Trasferimenti correnti;4;Trasferimenti correnti a Istituzioni Sociali Private;1;Trasferimenti correnti a Istituzioni Sociali Private;1;Trasferimenti correnti a Istituzioni Sociali Private;02/11/2018
1179;1;0;2.235,00;2.235,00;ISTITUTO OSPEDALIERO DI SOSPIRO - ONLUS; ;SALDO Fatt.n. 2298/F  del 30/09/2018 Retta ricovero Dall'Oco Giuseppino;02/11/2018;1955;0;5;1;Spese correnti;4;Trasferimenti correnti;4;Trasferimenti correnti a Istituzioni Sociali Private;1;Trasferimenti correnti a Istituzioni Sociali Private;1;Trasferimenti correnti a Istituzioni Sociali Private;02/11/2018
1180;1;0;31.090,88;31.090,88;ECOAMBIENTE S.R.L.; ;SALDO Fatt.n. 000464-0C2  del 28/09/2018 SERVIZIO CICLO INTEGRATO RIFIUTI - SETTEMBRE 2018;02/11/2018;1582;0;89;1;Spese correnti;3;Acquisto di beni e servizi;2;Acquisto di servizi;15;Contratti di servizio pubblico;4;Contratti di servizio per la raccolta rifiuti;02/11/2018
1181;1;0;22,18;22,18;ENEL ENERGIA S.P.A.; ;SALDO Fatt.n. 004811835994  del 12/10/2018 Spesa per fornitura energia elettrica mese di settembre 2018;02/11/2018;82;10;18;1;Spese correnti;3;Acquisto di beni e servizi;2;Acquisto di servizi;5;Utenze e canoni;4;Energia elettrica;02/11/2018
1182;1;0;35,2;35,2;ASCOTRADE S.P.A. ENERGIA & SERVIZI; ;SALDO Fatt.n. 1326168  del 15/10/2018 Spesa fornitura gas naturale mese di settembre 2018;02/11/2018;1794;11;34;1;Spese correnti;3;Acquisto di beni e servizi;2;Acquisto di servizi;5;Utenze e canoni;6;Gas;02/11/2018
1183;1;0;868,89;1.737,78;SOC. COOP. A R.L. LE MACCHINE CELIBI;ZC41A123A3;SALDO Fatt.n. FATTPA 1027_18  del 01/10/2018 Servizio di gestione della biblioteca comunale e dell'antiquarium mese di agosto 2018;02/11/2018;934;0;24;1;Spese correnti;3;Acquisto di beni e servizi;2;Acquisto di servizi;15;Contratti di servizio pubblico;999;Altre spese per contratti di servizio pubblico;02/11/2018
1183;2;0;868,89;1.737,78;SOC. COOP. A R.L. LE MACCHINE CELIBI;ZC41A123A3;SALDO Fatt.n. FATTPA 1028_18  del 01/10/2018 Servizio di gestione della biblioteca comunale e dell'antiquarium mese di settembre 2018;02/11/2018;934;0;24;1;Spese correnti;3;Acquisto di beni e servizi;2;Acquisto di servizi;15;Contratti di servizio pubblico;999;Altre spese per contratti di servizio pubblico;02/11/2018
1184;1;0;78,18;78,18;TELECOM ITALIA S.P.A.; ;SALDO Fatt.n. 8E00901900  del 05/10/2018 Spesa per traffico telefonico mesi di agosto e settembre 2018;02/11/2018;940;13;49;1;Spese correnti;3;Acquisto di beni e servizi;2;Acquisto di servizi;5;Utenze e canoni;1;Telefonia fissa;02/11/2018
1185;1;0;150,5;150,5;TELECOM ITALIA S.P.A.; ;SALDO Fatt.n. 8E00906091  del 05/10/2018 Sepsa per traffico telefonico mesi di agosto e settembre 2018;02/11/2018;935;13;48;1;Spese correnti;3;Acquisto di beni e servizi;2;Acquisto di servizi;5;Utenze e canoni;1;Telefonia fissa;02/11/2018
1186;1;0;89,65;195,3;TELECOM ITALIA S.P.A.; ;SALDO Fatt.n. 8E00905407  del 05/10/2018 Spesa per traffio telefonico mesi di agosto e settembre 2018;02/11/2018;693;13;46;1;Spese correnti;3;Acquisto di beni e servizi;2;Acquisto di servizi;5;Utenze e canoni;1;Telefonia fissa;02/11/2018
1186;2;0;105,65;195,3;TELECOM ITALIA S.P.A.; ;SALDO Fatt.n. 8E00905990  del 05/10/2018 Spesa per traffico telefonico mesi di agosto e settembre 2018;02/11/2018;693;13;46;1;Spese correnti;3;Acquisto di beni e servizi;2;Acquisto di servizi;5;Utenze e canoni;1;Telefonia fissa;02/11/2018
1187;1;0;74,27;1.133,63;TELECOM ITALIA S.P.A.; ;SALDO Fatt.n. 8E00900410  del 05/10/2018 Spesa per traffico telefonico mesi di agosto e settembre 2018;02/11/2018;82;13;44;1;Spese correnti;3;Acquisto di beni e servizi;2;Acquisto di servizi;5;Utenze e canoni;1;Telefonia fissa;02/11/2018
1187;2;0;91,5;1.133,63;TELECOM ITALIA S.P.A.; ;SALDO Fatt.n. 8E00906113  del 05/10/2018 Spese per traffico telefonico mesi di agosto e settembre 2018;02/11/2018;82;13;44;1;Spese correnti;3;Acquisto di beni e servizi;2;Acquisto di servizi;5;Utenze e canoni;1;Telefonia fissa;02/11/2018
1187;3;0;168,36;1.133,63;TELECOM ITALIA S.P.A.; ;SALDO Fatt.n. 8E00904883  del 05/10/2018 Spesa per traffico internet mesi di agosto e settembre 2018;02/11/2018;82;13;44;1;Spese correnti;3;Acquisto di beni e servizi;2;Acquisto di servizi;5;Utenze e canoni;1;Telefonia fissa;02/11/2018
1187;4;0;195;1.133,63;TELECOM ITALIA S.P.A.; ;SALDO Fatt.n. 8E00904937  del 05/10/2018 Spesa per traffico telefonico mesi di agosto e settembre 2018;02/11/2018;82;13;44;1;Spese correnti;3;Acquisto di beni e servizi;2;Acquisto di servizi;5;Utenze e canoni;1;Telefonia fissa;02/11/2018
1187;5;0;200,18;1.133,63;TELECOM ITALIA S.P.A.; ;SALDO Fatt.n. 8E00902735  del 05/10/2018 Spes aper traffico telefonico mesi di agosto e settembre 2018;02/11/2018;82;13;44;1;Spese correnti;3;Acquisto di beni e servizi;2;Acquisto di servizi;5;Utenze e canoni;1;Telefonia fissa;02/11/2018
1187;6;0;404,32;1.133,63;TELECOM ITALIA S.P.A.; ;SALDO Fatt.n. 8E00899891  del 05/10/2018 Spesa per traffico telefonico mesi di agosto e settembre 2018;02/11/2018;82;13;44;1;Spese correnti;3;Acquisto di beni e servizi;2;Acquisto di servizi;5;Utenze e canoni;1;Telefonia fissa;02/11/2018
1188;1;0;442,9;915,72;EDISON ENERGIA SPA; ;SALDO Fatt.n. 2900117011  del 18/10/2018 Spesa per energia elettrica mesi di agosto e settembre 2018;02/11/2018;82;10;18;1;Spese correnti;3;Acquisto di beni e servizi;2;Acquisto di servizi;5;Utenze e canoni;4;Energia elettrica;02/11/2018
1188;2;0;472,82;915,72;EDISON ENERGIA SPA; ;SALDO Fatt.n. 2900117012  del 18/10/2018 Spesa per energia elettrica mesi di agosto e settembre 2018;02/11/2018;82;10;18;1;Spese correnti;3;Acquisto di beni e servizi;2;Acquisto di servizi;5;Utenze e canoni;4;Energia elettrica;02/11/2018
1189;1;0;402,6;402,6;MECCATRONICO AGUIARI DENIS;Z6B2485395;SALDO Fatt.n. 3/FEPA  del 18/09/2018 INTERVENTI DI MANUTENZIONE E RIPARAZIONE SU AUTOMEZZO SCUOLABUS IVECO 50C17 TARGATO CR724TX;02/11/2018;2001;0;283;1;Spese correnti;3;Acquisto di beni e servizi;2;Acquisto di servizi;9;Manutenzione ordinaria e riparazioni;1;Manutenzione ordinaria e riparazioni di mezzi di trasporto ad uso civile, di sicurezza e ordine pubblico;02/11/2018
1190;1;0;1.529,00;1.529,00;FALEGNAMERIA POZZATO ANGELO & C. S.N.C.;ZEB23BEC07;SALDO Fatt.n. 2  del 21/09/2018 Lavori di fornitura e posa di nuove porte interne dell'alloggio comunale di P.zza Municipio 1, buono d'ordine N. 18-18  IVA del 01/06/2018;02/11/2018;345;0;208;1;Spese correnti;3;Acquisto di beni e servizi;2;Acquisto di servizi;9;Manutenzione ordinaria e riparazioni;8;Manutenzione ordinaria e riparazioni di beni immobili;02/11/2018
1191;1;0;259,64;259,64;KUWAIT PETROLEUM ITALIA S.P.A.;ZEA1A355E2;SALDO Fatt.n. PJ00378089  del 30/09/2018 FORNITURA CARBURTANTE PER SCUOLABUS COMUNALE;02/11/2018;2000;0;49;1;Spese correnti;3;Acquisto di beni e servizi;1;Acquisto di beni;2;Altri beni di consumo;2;Carburanti, combustibili e lubrificanti;02/11/2018
1192;1;0;707,6;707,6;PAVAN FLORICOLTURA DI BARABAN GABRIELLA;Z0C251DCD6;SALDO Fatt.n. 2/PA  del 10/10/2018 Intervento di taglio pianta in via 25 Aprile;02/11/2018;1731;0;334;1;Spese correnti;3;Acquisto di beni e servizi;2;Acquisto di servizi;9;Manutenzione ordinaria e riparazioni;12;Manutenzione ordinaria e riparazioni di terreni e beni materiali non prodotti;02/11/2018
1193;1;0;151,11;151,11;MINISTERO DELL'INTERNO; ;Liquidazione corrispettivo al Ministero per il rilascio nuove carte di identita elettroniche I ottobre;02/11/2018;240;0;360;1;Spese correnti;3;Acquisto di beni e servizi;2;Acquisto di servizi;16;Servizi amministrativi;999;Altre spese per servizi amministrativi;02/11/2018
1194;1;0;278;278;AZIENDA ULSS N. 5 POLESANA; ;SALDO Fatt.n. VE  201800000106  del 27/08/2018 CUSTODIA E MANTENIMENTO CANI RANDAGI;03/11/2018;1364;0;354;1;Spese correnti;3;Acquisto di beni e servizi;2;Acquisto di servizi;15;Contratti di servizio pubblico;11;Contratti di servizio per la lotta al randagismo;03/11/2018
1195;1;0;400;400;GRUPPO PODISTICO A.V.I.S. TAGLIO DI PO; ;"liquidazione contributo in favore del Gruppo Podistico AVIS di Taglio di Po per organizzazione ""12^ Camminata tra calli e riviere - 8^ tappa circuito LNG - Loreo 7 Ottobre 2018"".-";03/11/2018;1792;0;355;1;Spese correnti;4;Trasferimenti correnti;4;Trasferimenti correnti a Istituzioni Sociali Private;1;Trasferimenti correnti a Istituzioni Sociali Private;1;Trasferimenti correnti a Istituzioni Sociali Private;03/11/2018
1196;1;0;500;500;PROVINCIA DI ROVIGO; ;Liquidazione contributo annuale per adesione alla Convenzione per il Servizio Bibliotecario Provinciale - Anno 2018.-;03/11/2018;935;1;334;1;Spese correnti;3;Acquisto di beni e servizi;2;Acquisto di servizi;2;Organizzazione eventi, pubblicita` e servizi per trasferta;999;Altre spese per relazioni pubbliche, convegni e mostre, pubblicita` n.a.c;03/11/2018
1197;1;0;161,85;161,85;CAMBIELLI EDILFRIULI SPA;ZE224C1EF2;SALDO Fatt.n. PAM/0001033  del 30/09/2018 Acquisto scalda acqua elettrico PRO1;03/11/2018;340;0;313;1;Spese correnti;3;Acquisto di beni e servizi;1;Acquisto di beni;2;Altri beni di consumo;999;Altri beni e materiali di consumo n.a.c.;03/11/2018
1198;1;0;289,52;289,52;ABACO S.P.A.;7268810BC2;SALDO Fatt.n. 2018120003007  del 05/09/2018 GESTIONE DELLA RISCOSSIONE ED ACCERTAMENTO DELL'IMPOSTA COMUNALE SULLA PUBBLICITA' E PUBBLICHE AFFISSIONI;03/11/2018;299;0;193;1;Spese correnti;3;Acquisto di beni e servizi;2;Acquisto di servizi;3;Aggi di riscossione;999;Altri aggi di riscossione n.a.c.;03/11/2018
1199;1;0;183,59;183,59;ABACO S.P.A.;7268810BC2;SALDO Fatt.n. 2018120003365  del 04/10/2018 GESTIONE DELLA RISCOSSIONE E ACCERTAMENTO DELL'IMPOSTA COMUNALE SULLA PUBBLICITA' E PUBBLICHE AFFISSIONI;03/11/2018;299;0;193;1;Spese correnti;3;Acquisto di beni e servizi;2;Acquisto di servizi;3;Aggi di riscossione;999;Altri aggi di riscossione n.a.c.;03/11/2018
1200;1;0;3.178,63;3.178,63;PILOTTO VIAGGI S.R.L.;68229371BB;SALDO Fatt.n. 2018/0284 AU  del 01/10/2018 SERVIZIO TRASPORTO SCOLASTICO MESE DI SETTEMBRE 2018;03/11/2018;804;0;56;1;Spese correnti;3;Acquisto di beni e servizi;2;Acquisto di servizi;15;Contratti di servizio pubblico;2;Contratti di servizio di trasporto scolastico;03/11/2018
1201;1;0;576,45;576,45;S.A.F. STUDIO DI FRANCHI GEOM. ANTONIO;ZF324BED9A;SALDO Fatt.n. FATTPA 2_18  del 05/10/2018 ELABORAZIONE DUVRI PER FORNITURA PASTI SCUOLA MATERNA;03/11/2018;701;0;300;1;Spese correnti;3;Acquisto di beni e servizi;2;Acquisto di servizi;9;Manutenzione ordinaria e riparazioni;4;Manutenzione ordinaria e riparazioni di impianti e macchinari;03/11/2018
1202;1;0;60;60;KAIROS S.P.A; ;SALDO Fatt.n. 2/201  del 03/10/2018 SEMINARIO 14 SETTEMBRED 2018 - SPINEA;03/11/2018;81;0;299;1;Spese correnti;3;Acquisto di beni e servizi;2;Acquisto di servizi;4;Acquisto di servizi per formazione e addestramento del personale dell'ente;999;Acquisto di servizi per altre spese per formazione e addestramento n.a.c.;03/11/2018
1203;1;0;1.830,00;1.830,00;VOLANTE STEFANO;ZB324A5B07;ACCONTO Fatt.n. 2/1  del 17/10/2018 Fattura per lavori di trasloco;03/11/2018;345;0;297;1;Spese correnti;3;Acquisto di beni e servizi;2;Acquisto di servizi;9;Manutenzione ordinaria e riparazioni;8;Manutenzione ordinaria e riparazioni di beni immobili;03/11/2018
1204;1;0;2.440,00;2.440,00;VOLANTE STEFANO;ZB324A5B07;SALDO Fatt.n. 2/1  del 17/10/2018 Fattura per lavori di trasloco;03/11/2018;345;0;332;1;Spese correnti;3;Acquisto di beni e servizi;2;Acquisto di servizi;9;Manutenzione ordinaria e riparazioni;8;Manutenzione ordinaria e riparazioni di beni immobili;03/11/2018
1205;1;0;1.209,02;1.209,02;B & M IMPIANTI ELETTRICI SNC DI BOVOLENTA LUCIANO & C.;ZC724B090F;SALDO Fatt.n. FATTPA 1_18  del 18/10/2018 Manutenzione impianti elettrici presso edifici di proprieta' comunale;03/11/2018;345;0;311;1;Spese correnti;3;Acquisto di beni e servizi;2;Acquisto di servizi;9;Manutenzione ordinaria e riparazioni;8;Manutenzione ordinaria e riparazioni di beni immobili;03/11/2018
1206;1;0;28,3;28,3;VODAFONE OMNITEL N.V.; ;SALDO Fatt.n. AI18656418  del 13/10/2018 Costo per traffico internet SIM dati;03/11/2018;82;14;50;1;Spese correnti;3;Acquisto di beni e servizi;2;Acquisto di servizi;5;Utenze e canoni;2;Telefonia mobile;03/11/2018
1207;1;0;108,17;1.648,39;EDISON ENERGIA SPA; ;SALDO Fatt.n. 2900117296  del 25/10/2018 Spesa per l'energia elettrica mese di settembre 2018;03/11/2018;82;10;18;1;Spese correnti;3;Acquisto di beni e servizi;2;Acquisto di servizi;5;Utenze e canoni;4;Energia elettrica;03/11/2018
1207;2;0;1.540,22;1.648,39;EDISON ENERGIA SPA; ;ACCONTO Fatt.n. 2900117294  del 25/10/2018 Spesa per l'energia elettrica mesi di agosto e settembre 2018;03/11/2018;82;10;18;1;Spese correnti;3;Acquisto di beni e servizi;2;Acquisto di servizi;5;Utenze e canoni;4;Energia elettrica;03/11/2018
1208;1;0;118,99;118,99;EDISON ENERGIA SPA; ;ACCONTO Fatt.n. 2900117294  del 25/10/2018 Spesa per l'energia elettrica mesi di agosto e settembre 2018;03/11/2018;935;10;22;1;Spese correnti;3;Acquisto di beni e servizi;2;Acquisto di servizi;5;Utenze e canoni;4;Energia elettrica;03/11/2018
1209;1;0;339,13;339,13;EDISON ENERGIA SPA; ;ACCONTO Fatt.n. 2900117294  del 25/10/2018 Spesa per l'energia elettrica mesi di agosto e settembre 2018;03/11/2018;1418;10;24;1;Spese correnti;3;Acquisto di beni e servizi;2;Acquisto di servizi;5;Utenze e canoni;4;Energia elettrica;03/11/2018
1210;1;0;189,9;189,9;EDISON ENERGIA SPA; ;ACCONTO Fatt.n. 2900117294  del 25/10/2018 Spesa per l'energia elettrica mesi di agosto e settembre 2018;03/11/2018;940;10;23;1;Spese correnti;3;Acquisto di beni e servizi;2;Acquisto di servizi;5;Utenze e canoni;4;Energia elettrica;03/11/2018
1211;1;0;629,51;629,51;EDISON ENERGIA SPA; ;ACCONTO Fatt.n. 2900117294  del 25/10/2018 Spesa per l'energia elettrica mesi di agosto e settembre 2018;03/11/2018;1794;10;26;1;Spese correnti;3;Acquisto di beni e servizi;2;Acquisto di servizi;5;Utenze e canoni;4;Energia elettrica;03/11/2018
1212;1;0;417,11;417,11;EDISON ENERGIA SPA; ;ACCONTO Fatt.n. 2900117294  del 25/10/2018 Spesa per l'energia elettrica mesi di agosto e settembre 2018;03/11/2018;735;10;21;1;Spese correnti;3;Acquisto di beni e servizi;2;Acquisto di servizi;5;Utenze e canoni;4;Energia elettrica;03/11/2018
1213;1;0;125,31;125,31;EDISON ENERGIA SPA; ;ACCONTO Fatt.n. 2900117294  del 25/10/2018 Spesa per l'energia elettrica mesi di agosto e settembre 2018;03/11/2018;1777;10;25;1;Spese correnti;3;Acquisto di beni e servizi;2;Acquisto di servizi;5;Utenze e canoni;4;Energia elettrica;03/11/2018
1214;1;0;205,52;205,52;EDISON ENERGIA SPA; ;ACCONTO Fatt.n. 2900117294  del 25/10/2018 Spesa per l'energia elettrica mesi di agosto e settembre 2018;03/11/2018;935;10;22;1;Spese correnti;3;Acquisto di beni e servizi;2;Acquisto di servizi;5;Utenze e canoni;4;Energia elettrica;03/11/2018
1215;1;0;15,96;15,96;EDISON ENERGIA SPA; ;SALDO Fatt.n. 2900117294  del 25/10/2018 Spesa per l'energia elettrica mesi di agosto e settembre 2018;03/11/2018;649;10;19;1;Spese correnti;3;Acquisto di beni e servizi;2;Acquisto di servizi;5;Utenze e canoni;4;Energia elettrica;03/11/2018
1216;1;0;1.559,24;1.559,24;CAMST S.C.R.L.;ZF824C0C5D;SALDO Fatt.n. 2000793988  del 30/09/2018 SOMMINISTRAZIONE PASTI SCUOLA MATERNA E PRIMARIA SETTEMBRE 2018;03/11/2018;814;0;306;1;Spese correnti;3;Acquisto di beni e servizi;2;Acquisto di servizi;15;Contratti di servizio pubblico;6;Contratti di servizio per le mense scolastiche;03/11/2018
1217;1;0;200;1.760,00;OMESSO NOMINATIVO NEL RISPETTO DELLA NORMATIVA SULLA PROTEZIONE DATI PERSONALI; ;Liquidazione contributi straordinari a persone indigenti.-;06/11/2018;1950;0;370;1;Spese correnti;4;Trasferimenti correnti;2;Trasferimenti correnti a Famiglie;2;Interventi assistenziali;999;Altri assegni e sussidi assistenziali;06/11/2018
1217;2;0;200;1.760,00;OMESSO NOMINATIVO NEL RISPETTO DELLA NORMATIVA SULLA PROTEZIONE DATI PERSONALI; ;Liquidazione contributi straordinari a persone indigenti.-;06/11/2018;1950;0;370;1;Spese correnti;4;Trasferimenti correnti;2;Trasferimenti correnti a Famiglie;2;Interventi assistenziali;999;Altri assegni e sussidi assistenziali;06/11/2018
1217;3;0;65;1.760,00;OMESSO NOMINATIVO NEL RISPETTO DELLA NORMATIVA SULLA PROTEZIONE DATI PERSONALI; ;Liquidazione contributi straordinari a persone indigenti.-;06/11/2018;1950;0;370;1;Spese correnti;4;Trasferimenti correnti;2;Trasferimenti correnti a Famiglie;2;Interventi assistenziali;999;Altri assegni e sussidi assistenziali;06/11/2018
1217;4;0;200;1.760,00;OMESSO NOMINATIVO NEL RISPETTO DELLA NORMATIVA SULLA PROTEZIONE DATI PERSONALI; ;Liquidazione contributi straordinari a persone indigenti.-;06/11/2018;1950;0;370;1;Spese correnti;4;Trasferimenti correnti;2;Trasferimenti correnti a Famiglie;2;Interventi assistenziali;999;Altri assegni e sussidi assistenziali;06/11/2018
1217;5;0;145;1.760,00;OMESSO NOMINATIVO NEL RISPETTO DELLA NORMATIVA SULLA PROTEZIONE DATI PERSONALI; ;Liquidazione contributi straordinari a persone indigenti.-;06/11/2018;1950;0;370;1;Spese correnti;4;Trasferimenti correnti;2;Trasferimenti correnti a Famiglie;2;Interventi assistenziali;999;Altri assegni e sussidi assistenziali;06/11/2018
1217;6;0;195;1.760,00;OMESSO NOMINATIVO NEL RISPETTO DELLA NORMATIVA SULLA PROTEZIONE DATI PERSONALI; ;Liquidazione contributi straordinari a persone indigenti.-;06/11/2018;1950;0;370;1;Spese correnti;4;Trasferimenti correnti;2;Trasferimenti correnti a Famiglie;2;Interventi assistenziali;999;Altri assegni e sussidi assistenziali;06/11/2018
1217;7;0;165;1.760,00;OMESSO NOMINATIVO NEL RISPETTO DELLA NORMATIVA SULLA PROTEZIONE DATI PERSONALI; ;Liquidazione contributi straordinari a persone indigenti.-;06/11/2018;1950;0;370;1;Spese correnti;4;Trasferimenti correnti;2;Trasferimenti correnti a Famiglie;2;Interventi assistenziali;999;Altri assegni e sussidi assistenziali;06/11/2018
1217;8;0;200;1.760,00;OMESSO NOMINATIVO NEL RISPETTO DELLA NORMATIVA SULLA PROTEZIONE DATI PERSONALI; ;Liquidazione contributi straordinari a persone indigenti.-;06/11/2018;1950;0;370;1;Spese correnti;4;Trasferimenti correnti;2;Trasferimenti correnti a Famiglie;2;Interventi assistenziali;999;Altri assegni e sussidi assistenziali;06/11/2018
1217;9;0;40;1.760,00;OMESSO NOMINATIVO NEL RISPETTO DELLA NORMATIVA SULLA PROTEZIONE DATI PERSONALI; ;Liquidazione contributi straordinari a persone indigenti.-;06/11/2018;1950;0;370;1;Spese correnti;4;Trasferimenti correnti;2;Trasferimenti correnti a Famiglie;2;Interventi assistenziali;999;Altri assegni e sussidi assistenziali;06/11/2018
1217;10;0;65;1.760,00;OMESSO NOMINATIVO NEL RISPETTO DELLA NORMATIVA SULLA PROTEZIONE DATI PERSONALI; ;Liquidazione contributi straordinari a persone indigenti.-;06/11/2018;1950;0;370;1;Spese correnti;4;Trasferimenti correnti;2;Trasferimenti correnti a Famiglie;2;Interventi assistenziali;999;Altri assegni e sussidi assistenziali;06/11/2018
1217;11;0;145;1.760,00;OMESSO NOMINATIVO NEL RISPETTO DELLA NORMATIVA SULLA PROTEZIONE DATI PERSONALI; ;Liquidazione contributi straordinari a persone indigenti.-;06/11/2018;1950;0;370;1;Spese correnti;4;Trasferimenti correnti;2;Trasferimenti correnti a Famiglie;2;Interventi assistenziali;999;Altri assegni e sussidi assistenziali;06/11/2018
1217;12;0;140;1.760,00;OMESSO NOMINATIVO NEL RISPETTO DELLA NORMATIVA SULLA PROTEZIONE DATI PERSONALI; ;Liquidazione contributi straordinari a persone indigenti.-;06/11/2018;1950;0;370;1;Spese correnti;4;Trasferimenti correnti;2;Trasferimenti correnti a Famiglie;2;Interventi assistenziali;999;Altri assegni e sussidi assistenziali;06/11/2018
1220;1;0;151,5;151,5;AGENZIA DELLE ENTRATE; ;VERSAMENTI I.V.A. A DEBITO PER LE GESTIONI COMMERCIALI - III TRIMESTRE 2018 - F24EP SCADENZA 16 NOVEMBRE 2018;12/11/2018;91;0;381;1;Spese correnti;10;Altre spese correnti;3;Versamenti IVA a debito;1;Versamenti IVA a debito per le gestioni commerciali;1;Versamenti IVA a debito per le gestioni commerciali;12/11/2018
1221;1;0;122;122;ECONOMO COMUNALE - ZENNARO SOFIA;0;Liquidazione giornata di formazione su: Indicazione sulla programmazione 2019-2021 - organizzato da;14/11/2018;81;0;382;1;Spese correnti;3;Acquisto di beni e servizi;2;Acquisto di servizi;4;Acquisto di servizi per formazione e addestramento del personale dell'ente;999;Acquisto di servizi per altre spese per formazione e addestramento n.a.c.;14/11/2018
1270;1;0;353,8;353,8;FALEGNAMERIA POZZATO ANGELO & C. S.N.C.;ZF2250396B;SALDO Fatt.n. 03  del 23/10/2018 Lavori presso scuola primaria, buono d'ordine N. 37-18 / IVA del 01/10/2018;16/11/2018;345;0;331;1;Spese correnti;3;Acquisto di beni e servizi;2;Acquisto di servizi;9;Manutenzione ordinaria e riparazioni;8;Manutenzione ordinaria e riparazioni di beni immobili;16/11/2018
1271;1;0;300;300;FONDAZIONE AIDA; ;Liquidazione contributo all'Associazione AIDA di Quinzano (VR) per organizzazione progetto  - Libri Infiniti 2018 -.;16/11/2018;1048;0;369;1;Spese correnti;4;Trasferimenti correnti;4;Trasferimenti correnti a Istituzioni Sociali Private;1;Trasferimenti correnti a Istituzioni Sociali Private;1;Trasferimenti correnti a Istituzioni Sociali Private;16/11/2018
1272;1;0;507,52;507,52;COSTANZO LUCA;ZF3211BC5C;"SALDO Fatt.n. 000002-2018-FATT  del 02/08/2018 COLLAUDO STATICO OPERE DI FONDAZIONE IMPIANTO ""AUTOVELOX""";16/11/2018;2007;0;403;1;Spese correnti;3;Acquisto di beni e servizi;2;Acquisto di servizi;11;Prestazioni professionali e specialistiche;999;Altre prestazioni professionali e specialistiche n.a.c.;16/11/2018
1273;1;0;1.988,60;1.988,60;DEIMOS ENGINEERING S.R.L.;Z2B216EBEF;SALDO Fatt.n. 61/E  del 12/09/2018 Canone annuale manutenzione e pubblicazione Web-Gis anno 2018;16/11/2018;247;0;392;1;Spese correnti;3;Acquisto di beni e servizi;2;Acquisto di servizi;19;Servizi informatici e di telecomunicazioni;1;Gestione e manutenzione applicazioni;16/11/2018
1274;1;0;636,95;636,95;GRAFICHE GASPARI  SRL;Z5824EE9C5;ACCONTO Fatt.n. 14601  del 25/09/2018 Licenza annuale software cimitero 2001/5000 e contratto annuale teleassistenza;16/11/2018;246;1;327;1;Spese correnti;3;Acquisto di beni e servizi;2;Acquisto di servizi;5;Utenze e canoni;3;Accesso a banche dati e a pubblicazioni on line;16/11/2018
1275;1;0;143,85;143,85;GRAFICHE GASPARI  SRL;Z5824EE9C5;SALDO Fatt.n. 14601  del 25/09/2018 Licenza annuale software cimitero 2001/5000 e contratto annuale teleassistenza;16/11/2018;244;1;328;1;Spese correnti;3;Acquisto di beni e servizi;1;Acquisto di beni;2;Altri beni di consumo;999;Altri beni e materiali di consumo n.a.c.;16/11/2018
1276;1;0;629,52;629,52;HALLEY VENETO S.R.L.;ZB924990B5;SALDO Fatt.n. 1/181108  del 28/09/2018 Giornata di avviamento procedura atti amministrativi;16/11/2018;247;0;290;1;Spese correnti;3;Acquisto di beni e servizi;2;Acquisto di servizi;19;Servizi informatici e di telecomunicazioni;1;Gestione e manutenzione applicazioni;16/11/2018
1277;1;0;362,65;362,65;BNP PARIBAS LEASE GROUP SA;ZF110A7C48;SALDO Fatt.n. BMF24907  del 12/09/2018 Servizio assicurativo sinistri bene impiego fisso dal 02/10/2018 a 01/01/2019;16/11/2018;246;1;12;1;Spese correnti;3;Acquisto di beni e servizi;2;Acquisto di servizi;5;Utenze e canoni;3;Accesso a banche dati e a pubblicazioni on line;16/11/2018
1278;1;0;915;915;BOXXAPPS SRL;ZC2241CDC3;SALDO Fatt.n. 1/180667  del 30/10/2018 Spesa per servizio X-PRPD anno 2018;16/11/2018;247;0;263;1;Spese correnti;3;Acquisto di beni e servizi;2;Acquisto di servizi;19;Servizi informatici e di telecomunicazioni;1;Gestione e manutenzione applicazioni;16/11/2018
1279;1;0;358,58;358,58;LEGGERE S.R.L.;ZF924E0884;SALDO Fatt.n. 19131  del 31/10/2018 Fornitura libri per biblioteca comunale;16/11/2018;930;0;319;1;Spese correnti;3;Acquisto di beni e servizi;1;Acquisto di beni;1;Giornali, riviste e pubblicazioni;2;Pubblicazioni;16/11/2018
1280;1;0;1.848,30;1.848,30;COOPERATIVA SOCIALE COOPSELIOS S.C.R.L.; ;SALDO Fatt.n. 007618-0C02  del 16/10/2018 QUOTA PARTE RETTA OSPITE OTTOBRE 2018;16/11/2018;1955;0;4;1;Spese correnti;4;Trasferimenti correnti;4;Trasferimenti correnti a Istituzioni Sociali Private;1;Trasferimenti correnti a Istituzioni Sociali Private;1;Trasferimenti correnti a Istituzioni Sociali Private;16/11/2018
1281;1;0;807,64;807,64;ANCITEL;Z642170615;SALDO Fatt.n. 3598  del 08/10/2018 CANONE SERVIZI DI BASE ANCITEL 2018;16/11/2018;30;0;384;1;Spese correnti;3;Acquisto di beni e servizi;2;Acquisto di servizi;99;Altri servizi;3;Quote di associazioni;16/11/2018
1282;1;0;610;610;HALLEY VENETO S.R.L.;Z6023C0841;SALDO Fatt.n. 1/181193  del 26/10/2018 Canone Immedia Siope+ anno 2018;16/11/2018;92;1;206;1;Spese correnti;3;Acquisto di beni e servizi;2;Acquisto di servizi;5;Utenze e canoni;3;Accesso a banche dati e a pubblicazioni on line;16/11/2018
1283;1;0;1.874,63;1.874,63;VENICE PLAN INGEGNERIA SRL;Z05240A5B4;SALDO Fatt.n. 00007/PA  del 11/10/2018 SERVIZIO TECNICO DI VERIFICA E SUPPORTO AL RUP NELLA VALIDAZIONE DEL PROGETTO ESECUTIVO DEI LAVORI DI MANUTENZIONE STRAORDINARIA DEGLI IMPIANTI SPORTIVI COMUNALI. CITTA' DI LOREO.;16/11/2018;2610;0;264;2;Spese in conto capitale;2;Investimenti fissi lordi e acquisto di terreni;1;Beni materiali;9;Beni immobili;16;Impianti sportivi;16/11/2018
1284;1;0;115,15;115,15;CONSORZIO DI BONIFICA ADIGE PO; ;Spese istruttoria e canone 2018 relativo alla concessione idraulica per l'attraversamento sul canale Grimana di un cavidotto di illuminazione pubblica  Consorzio di Bonifica Adige Po di Rovigo.;16/11/2018;2594;0;387;2;Spese in conto capitale;2;Investimenti fissi lordi e acquisto di terreni;1;Beni materiali;9;Beni immobili;12;Infrastrutture stradali;16/11/2018
1285;1;0;16;16;ECONOMO COMUNALE - ZENNARO SOFIA; ;Spese istruttoria e canone 2018 relativo alla concessione idraulica per l'attraversamento sul canale Grimana di un cavidotto di illuminazione pubblica  Consorzio di Bonifica Adige Po di Rovigo.;16/11/2018;2594;0;388;2;Spese in conto capitale;2;Investimenti fissi lordi e acquisto di terreni;1;Beni materiali;9;Beni immobili;12;Infrastrutture stradali;16/11/2018
1286;1;0;125,4;125,4;PICCOLE GIOIE DI INGEGNERI IRENE;Z472577F52;SALDO Fatt.n. E3  del 06/11/2018 Fornitura corone alloro per commemorazione del IV Novembre;16/11/2018;13;0;365;1;Spese correnti;3;Acquisto di beni e servizi;1;Acquisto di beni;2;Altri beni di consumo;999;Altri beni e materiali di consumo n.a.c.;16/11/2018
1287;1;0;2.309,50;2.309,50;ISTITUTO OSPEDALIERO DI SOSPIRO - ONLUS; ;SALDO Fatt.n. 2514/F  del 31/10/2018 Degenza Dall'Oco Giuseppino;16/11/2018;1955;0;5;1;Spese correnti;4;Trasferimenti correnti;4;Trasferimenti correnti a Istituzioni Sociali Private;1;Trasferimenti correnti a Istituzioni Sociali Private;1;Trasferimenti correnti a Istituzioni Sociali Private;16/11/2018
1288;1;0;277,06;277,06;BREVIGLIERI S.R.L.;ZD41512304;SALDO Fatt.n. 000196/E3  del 03/10/2018 Noleggio fotocopiatore ottobre, novembre e dicembre 2018;16/11/2018;246;1;14;1;Spese correnti;3;Acquisto di beni e servizi;2;Acquisto di servizi;5;Utenze e canoni;3;Accesso a banche dati e a pubblicazioni on line;16/11/2018
1289;1;0;1.037,00;1.037,00;HALLEY VENETO S.R.L.;ZD823D5790;SALDO Fatt.n. 1/181132  del 16/10/2018;16/11/2018;246;1;209;1;Spese correnti;3;Acquisto di beni e servizi;2;Acquisto di servizi;5;Utenze e canoni;3;Accesso a banche dati e a pubblicazioni on line;16/11/2018
1290;1;0;671;671;VELOCAR S.R.L.;ZCE222EA93;SALDO Fatt.n. 391/FE  del 15/10/2018 Canone locaione EVO-R dal 01/10/2018 al 05/10/2018;16/11/2018;2017;0;422;1;Spese correnti;3;Acquisto di beni e servizi;2;Acquisto di servizi;7;Utilizzo di beni di terzi;8;Noleggi di impianti e macchinari;16/11/2018
1291;1;0;2.221,62;2.221,62;MAGGIOLI SPA;ZC822997E0;SALDO Fatt.n. 0002142218  del 29/10/2018 Servizio data entry mese di ottobre 2018;16/11/2018;2017;0;194;1;Spese correnti;3;Acquisto di beni e servizi;2;Acquisto di servizi;7;Utilizzo di beni di terzi;8;Noleggi di impianti e macchinari;16/11/2018
1292;1;0;613,55;613,55;GASPARINI MORENO; ;INDENNITA' DI CARICA SINDACO - NOVEMBRE 2018;16/11/2018;20;0;16;1;Spese correnti;3;Acquisto di beni e servizi;2;Acquisto di servizi;1;Organi e incarichi istituzionali dell'amministrazione;1;Organi istituzionali dell'amministrazione - Indennità;16/11/2018
1294;1;0;100;100;OMESSO NOMINATIVO NEL RISPETTO DELLA NORMATIVA SULLA PROTEZIONE DATI PERSONALI; ;Assunzione impegno di spesa per contributo per progetto di integrazione sociale in ambito lavorativo.-;16/11/2018;1950;0;134;1;Spese correnti;4;Trasferimenti correnti;2;Trasferimenti correnti a Famiglie;2;Interventi assistenziali;999;Altri assegni e sussidi assistenziali;16/11/2018
1295;1;0;100;100;OMESSO NOMINATIVO NEL RISPETTO DELLA NORMATIVA SULLA PROTEZIONE DATI PERSONALI; ;Assunzione impegno di spesa per contributo per progetto di integrazione sociale in ambito lavorativo.-;16/11/2018;1950;0;359;1;Spese correnti;4;Trasferimenti correnti;2;Trasferimenti correnti a Famiglie;2;Interventi assistenziali;999;Altri assegni e sussidi assistenziali;16/11/2018
1296;1;0;100;100;OMESSO NOMINATIVO NEL RISPETTO DELLA NORMATIVA SULLA PROTEZIONE DATI PERSONALI; ;Assunzione impegno di spesa per contributo per progetto di integrazione sociale in ambito lavorativo.;16/11/2018;1950;0;294;1;Spese correnti;4;Trasferimenti correnti;2;Trasferimenti correnti a Famiglie;2;Interventi assistenziali;999;Altri assegni e sussidi assistenziali;16/11/2018
1297;1;0;807,64;807,64;ANCITEL;Z881A7C458;Assunzione impegno di spesa per pagamento Ditta ANCITEL Spa per debiti fuori bilancio.-;16/11/2018;246;0;404;1;Spese correnti;3;Acquisto di beni e servizi;2;Acquisto di servizi;99;Altri servizi;999;Altri servizi diversi n.a.c.;16/11/2018
1298;1;0;184,69;184,69;MINISTERO DELL'INTERNO; ;Liquidazione corrispettivo al Ministero per il rilascio delle carte di identita elettroniche nel periodo II^ quindicina ottobre 2018;16/11/2018;240;0;383;1;Spese correnti;3;Acquisto di beni e servizi;2;Acquisto di servizi;16;Servizi amministrativi;999;Altre spese per servizi amministrativi;16/11/2018
1299;1;0;235,69;235,69;ASMEL Associazione; ;Liquidazione spesa per quota associativa anno 2018 ASMEL Associazione per la Sussidiarieta e la Modernizzazione degli Enti Locali di Gallarate (VA);20/11/2018;30;0;397;1;Spese correnti;3;Acquisto di beni e servizi;2;Acquisto di servizi;99;Altri servizi;3;Quote di associazioni;20/11/2018
1300;1;0;517,65;517,65;ASMEL Consortile S.c.a.r.l.; ;Liquidazione spesa per acquisto quote societarie quale centrale di committenza ASMEL Consortile S.c.a.r.l. di Gallarate (VA);20/11/2018;30;0;398;1;Spese correnti;3;Acquisto di beni e servizi;2;Acquisto di servizi;99;Altri servizi;3;Quote di associazioni;20/11/2018
1301;1;0;-7,25;2.909,52;CARTOLIBRERIA DUSE 2 SNC; ;SALDO Fatt.n. FATTPA 5_18  del 13/11/2018 STORNO PARZIALE;23/11/2018;798;0;339;1;Spese correnti;3;Acquisto di beni e servizi;1;Acquisto di beni;1;Giornali, riviste e pubblicazioni;2;Pubblicazioni;23/11/2018
1301;2;0;38,02;2.909,52;CARTOLIBRERIA DUSE 2 SNC; ;SALDO Fatt.n. FATTPA 6_18  del 14/11/2018 fornitura libri din testo scuola primaria;23/11/2018;798;0;339;1;Spese correnti;3;Acquisto di beni e servizi;1;Acquisto di beni;1;Giornali, riviste e pubblicazioni;2;Pubblicazioni;23/11/2018
1301;3;0;2.878,75;2.909,52;CARTOLIBRERIA DUSE 2 SNC; ;SALDO Fatt.n. FATTPA 1_18  del 31/10/2018 Fornitura libri di testo;23/11/2018;798;0;339;1;Spese correnti;3;Acquisto di beni e servizi;1;Acquisto di beni;1;Giornali, riviste e pubblicazioni;2;Pubblicazioni;23/11/2018
1302;1;0;70,37;70,37;CARTOLIBRERIA MILAN DI MILAN CRISTIANO; ;SALDO Fatt.n. FATTPA 6_18  del 04/11/2018 Fornitura libri di testo;23/11/2018;798;0;339;1;Spese correnti;3;Acquisto di beni e servizi;1;Acquisto di beni;1;Giornali, riviste e pubblicazioni;2;Pubblicazioni;23/11/2018
1303;1;0;295,09;295,09;CARTOLIBRERIA ARCOBALENO SNC DI MARANGON GIOVANNA E SAN; ;SALDO Fatt.n. 000002-2018-1  del 08/10/2018 Fornitura libri di testo Scuole Primarie A.S. 2018-2019;23/11/2018;798;0;339;1;Spese correnti;3;Acquisto di beni e servizi;1;Acquisto di beni;1;Giornali, riviste e pubblicazioni;2;Pubblicazioni;23/11/2018
1307;1;0;122;122;DATAPIANO S.R.L. SERVIZI INFORMATICI PER IL TERRITORIO;Z1B21035C3;SALDO Fatt.n. S-116  del 30/10/2018 Rimborso spese di trasferta;24/11/2018;197;0;358;1;Spese correnti;3;Acquisto di beni e servizi;2;Acquisto di servizi;5;Utenze e canoni;3;Accesso a banche dati e a pubblicazioni on line;24/11/2018
1308;1;0;357,46;357,46;PROCED S.R.L.;Z8B253E270;SALDO Fatt.n. 002217  del 29/10/2018 Acquisto tappeti protettivi per pavimento;24/11/2018;340;0;348;1;Spese correnti;3;Acquisto di beni e servizi;1;Acquisto di beni;2;Altri beni di consumo;999;Altri beni e materiali di consumo n.a.c.;24/11/2018
1309;1;0;162,5;162,5;IGEAM ACADEMY S.R.L.;ZA81E2DDC2;SALDO Fatt.n. FTE180618  del 23/10/2018 Corso di formazione  - aggiornamento per RLS;24/11/2018;201;0;131;1;Spese correnti;3;Acquisto di beni e servizi;2;Acquisto di servizi;11;Prestazioni professionali e specialistiche;999;Altre prestazioni professionali e specialistiche n.a.c.;24/11/2018
1310;1;0;414,12;414,12;IGEAM S.R.L.;ZA81E2DDC2;SALDO Fatt.n. FTE182398  del 09/11/2018 Servizi tecnici fino al 30/09/2018;24/11/2018;201;0;131;1;Spese correnti;3;Acquisto di beni e servizi;2;Acquisto di servizi;11;Prestazioni professionali e specialistiche;999;Altre prestazioni professionali e specialistiche n.a.c.;24/11/2018
1311;1;0;1.250,00;1.250,00;Romagnolo Martina; ;SALDO Fatt.n. 1  del 13/11/2018 Consulenza legale per ricorsi a violazioni CdS mese di ottobre 2018;24/11/2018;2017;0;341;1;Spese correnti;3;Acquisto di beni e servizi;2;Acquisto di servizi;7;Utilizzo di beni di terzi;8;Noleggi di impianti e macchinari;24/11/2018
1312;1;0;347,82;347,82;KUWAIT PETROLEUM ITALIA S.P.A.;ZEA1A355E2;ACCONTO Fatt.n. PJ00465788  del 31/10/2018 Fornitura gasolio e benina sena PB;24/11/2018;2000;0;49;1;Spese correnti;3;Acquisto di beni e servizi;1;Acquisto di beni;2;Altri beni di consumo;2;Carburanti, combustibili e lubrificanti;24/11/2018
1313;1;0;18,64;18,64;KUWAIT PETROLEUM ITALIA S.P.A.;ZEA1A355E2;SALDO Fatt.n. PJ00465788  del 31/10/2018 Fornitura gasolio e benina sena PB;24/11/2018;2000;0;389;1;Spese correnti;3;Acquisto di beni e servizi;1;Acquisto di beni;2;Altri beni di consumo;2;Carburanti, combustibili e lubrificanti;24/11/2018
1314;1;0;31.090,88;31.090,88;ECOAMBIENTE S.R.L.; ;SALDO Fatt.n. 000522-0C2  del 31/10/2018 Servizio ciclo integrato rifiuti mese di ottobre 2018;24/11/2018;1582;0;89;1;Spese correnti;3;Acquisto di beni e servizi;2;Acquisto di servizi;15;Contratti di servizio pubblico;4;Contratti di servizio per la raccolta rifiuti;24/11/2018
1315;1;0;195,2;195,2;AREAUFFICIO DI MARTIN MARTINA;Z7225114DC;SALDO Fatt.n. 40062  del 31/10/2018 Manutenzione plotter HP 500;24/11/2018;197;0;335;1;Spese correnti;3;Acquisto di beni e servizi;2;Acquisto di servizi;5;Utenze e canoni;3;Accesso a banche dati e a pubblicazioni on line;24/11/2018
1316;1;0;2.640,00;2.640,00;PILOTTO VIAGGI S.R.L.;Z972591635;ACCONTO Fatt.n. 2018/0306 AU  del 03/11/2018 Utilizzo scuolabus ottobre 2018;24/11/2018;804;0;368;1;Spese correnti;3;Acquisto di beni e servizi;2;Acquisto di servizi;15;Contratti di servizio pubblico;2;Contratti di servizio di trasporto scolastico;24/11/2018
1317;1;0;220;220;PILOTTO VIAGGI S.R.L.;Z972591635;SALDO Fatt.n. 2018/0306 AU  del 03/11/2018 Utilizzo scuolabus ottobre 2018;24/11/2018;804;0;386;1;Spese correnti;3;Acquisto di beni e servizi;2;Acquisto di servizi;15;Contratti di servizio pubblico;2;Contratti di servizio di trasporto scolastico;24/11/2018
1318;1;0;375,27;375,27;ASCOTRADE S.P.A. ENERGIA & SERVIZI; ;SALDO Fatt.n. 1478863  del 15/11/2018 Fornitura gas naturale;24/11/2018;1794;11;34;1;Spese correnti;3;Acquisto di beni e servizi;2;Acquisto di servizi;5;Utenze e canoni;6;Gas;24/11/2018
1319;1;0;3.660,00;3.660,00;FREGUGLIA SRL;Z0D23227CE;SALDO Fatt.n. 2/30  del 08/11/2018 Intervento di ripristino in somma urgenza;24/11/2018;2009;0;350;1;Spese correnti;3;Acquisto di beni e servizi;2;Acquisto di servizi;9;Manutenzione ordinaria e riparazioni;8;Manutenzione ordinaria e riparazioni di beni immobili;24/11/2018
1320;1;0;3.647,13;3.647,13;TUTTODIESEL S.R.L.;ZCC24A33AF;SALDO Fatt.n. 163 PA  del 31/08/2018 Manutenzione scuolabus CR724TX;24/11/2018;2001;0;295;1;Spese correnti;3;Acquisto di beni e servizi;2;Acquisto di servizi;9;Manutenzione ordinaria e riparazioni;1;Manutenzione ordinaria e riparazioni di mezzi di trasporto ad uso civile, di sicurezza e ordine pubblico;24/11/2018
1321;1;0;27,45;27,45;ENEL ENERGIA S.P.A.; ;SALDO Fatt.n. 004812106943  del 15/11/2018 Fornitura energia elettrica mese di ottobre 2018;24/11/2018;82;10;18;1;Spese correnti;3;Acquisto di beni e servizi;2;Acquisto di servizi;5;Utenze e canoni;4;Energia elettrica;24/11/2018
1322;1;0;4.617,94;4.617,94;CAMST S.C.R.L.;ZF824C0C5D;SALDO Fatt.n. 2000795604  del 31/10/2018 Fornitura servizio mensa;24/11/2018;814;0;306;1;Spese correnti;3;Acquisto di beni e servizi;2;Acquisto di servizi;15;Contratti di servizio pubblico;6;Contratti di servizio per le mense scolastiche;24/11/2018
1323;1;0;106,77;106,77;EDISON ENERGIA SPA; ;SALDO Fatt.n. 2900118215  del 19/11/2018 Fornitura energia elettrica mese di Ottobre 2018;24/11/2018;82;10;18;1;Spese correnti;3;Acquisto di beni e servizi;2;Acquisto di servizi;5;Utenze e canoni;4;Energia elettrica;24/11/2018
1324;1;0;695,9;695,9;EDISON ENERGIA SPA; ;ACCONTO Fatt.n. 2900117802  del 19/11/2018 Fornitura energia elettrica mese di ottobre 2018;24/11/2018;735;10;21;1;Spese correnti;3;Acquisto di beni e servizi;2;Acquisto di servizi;5;Utenze e canoni;4;Energia elettrica;24/11/2018
1325;1;0;953,64;953,64;EDISON ENERGIA SPA; ;ACCONTO Fatt.n. 2900117802  del 19/11/2018 Fornitura energia elettrica mese di ottobre 2018;24/11/2018;1794;10;26;1;Spese correnti;3;Acquisto di beni e servizi;2;Acquisto di servizi;5;Utenze e canoni;4;Energia elettrica;24/11/2018
1326;1;0;388,02;388,02;EDISON ENERGIA SPA; ;ACCONTO Fatt.n. 2900117802  del 19/11/2018 Fornitura energia elettrica mese di ottobre 2018;24/11/2018;693;10;20;1;Spese correnti;3;Acquisto di beni e servizi;2;Acquisto di servizi;5;Utenze e canoni;4;Energia elettrica;24/11/2018
1327;1;0;15,96;15,96;EDISON ENERGIA SPA; ;SALDO Fatt.n. 2900117802  del 19/11/2018 Fornitura energia elettrica mese di ottobre 2018;24/11/2018;649;10;19;1;Spese correnti;3;Acquisto di beni e servizi;2;Acquisto di servizi;5;Utenze e canoni;4;Energia elettrica;24/11/2018
1328;1;0;272,96;272,96;ABACO S.P.A.;7268810BC2;SALDO Fatt.n. 2018120003919  del 06/11/2018 Rendiconto gestione di riscossione ed accertamento imposta comunale sulla pubblicit dal 01/01/18 al 31/01/18;24/11/2018;299;0;193;1;Spese correnti;3;Acquisto di beni e servizi;2;Acquisto di servizi;3;Aggi di riscossione;999;Altri aggi di riscossione n.a.c.;24/11/2018
1329;1;0;229,91;229,91;MULTICOPIA E ARREDA UFFICIO SRL;ZF110A7C48;SALDO Fatt.n. 480  del 30/09/2018 Noleggio fotocopiatore Samsung e costo copie;24/11/2018;246;1;13;1;Spese correnti;3;Acquisto di beni e servizi;2;Acquisto di servizi;5;Utenze e canoni;3;Accesso a banche dati e a pubblicazioni on line;24/11/2018
1330;1;0;65,88;65,88;MULTICOPIA E ARREDA UFFICIO SRL;ZF110A7C48;SALDO Fatt.n. 486  del 03/10/2018 Noleggio fotocopiatore Samsung e spesa copie dal 01/10/2018 al 31/12/2018;24/11/2018;246;1;13;1;Spese correnti;3;Acquisto di beni e servizi;2;Acquisto di servizi;5;Utenze e canoni;3;Accesso a banche dati e a pubblicazioni on line;24/11/2018
1331;1;0;476,9;476,9;C2 SRL;ZDA25B4386;SALDO Fatt.n. 6362  del 16/11/2018 Fornitura n. 1 scanner per ufficio protocollo;24/11/2018;2521;0;384;2;Spese in conto capitale;2;Investimenti fissi lordi e acquisto di terreni;1;Beni materiali;7;Hardware;2;Postazioni di lavoro;24/11/2018
1332;1;0;39,74;381,27;ASCOTRADE S.P.A. ENERGIA & SERVIZI; ;SALDO Fatt.n. 1510357  del 20/11/2018 Fornitura gas naturale settembre - novembre 2018;24/11/2018;82;11;27;1;Spese correnti;3;Acquisto di beni e servizi;2;Acquisto di servizi;5;Utenze e canoni;6;Gas;24/11/2018
1332;2;0;71,48;381,27;ASCOTRADE S.P.A. ENERGIA & SERVIZI; ;SALDO Fatt.n. 1521124  del 20/11/2018 Fornitura gas naturale luglio - novembre 2018;24/11/2018;82;11;27;1;Spese correnti;3;Acquisto di beni e servizi;2;Acquisto di servizi;5;Utenze e canoni;6;Gas;24/11/2018
1332;3;0;270,05;381,27;ASCOTRADE S.P.A. ENERGIA & SERVIZI; ;SALDO Fatt.n. 1513831  del 20/11/2018 Fornitura gas naturale settembre - novembre 2018;24/11/2018;82;11;27;1;Spese correnti;3;Acquisto di beni e servizi;2;Acquisto di servizi;5;Utenze e canoni;6;Gas;24/11/2018
1333;1;0;24,57;24,57;ASCOTRADE S.P.A. ENERGIA & SERVIZI; ;SALDO Fatt.n. 1501981  del 20/11/2018 Fornitura gas naturale settembre - novembre 2018;24/11/2018;649;11;28;1;Spese correnti;3;Acquisto di beni e servizi;2;Acquisto di servizi;5;Utenze e canoni;6;Gas;24/11/2018
1334;1;0;128,86;128,86;ASCOTRADE S.P.A. ENERGIA & SERVIZI; ;SALDO Fatt.n. 1488219  del 20/11/2018 Fornitura gas naturale settembre - novembre 2018;24/11/2018;935;11;31;1;Spese correnti;3;Acquisto di beni e servizi;2;Acquisto di servizi;5;Utenze e canoni;6;Gas;24/11/2018
1335;1;0;49,61;49,61;ASCOTRADE S.P.A. ENERGIA & SERVIZI; ;SALDO Fatt.n. 1522229  del 20/11/2018 Fornitura gas naturale luglio - novembre 2018;24/11/2018;1777;11;33;1;Spese correnti;3;Acquisto di beni e servizi;2;Acquisto di servizi;5;Utenze e canoni;6;Gas;24/11/2018
1336;1;0;41,92;41,92;ASCOTRADE S.P.A. ENERGIA & SERVIZI; ;SALDO Fatt.n. 1522228  del 20/11/2018 Fornitura gas naturale luglio - novembre 2018;24/11/2018;693;11;29;1;Spese correnti;3;Acquisto di beni e servizi;2;Acquisto di servizi;5;Utenze e canoni;6;Gas;24/11/2018
1337;1;0;41,92;41,92;ASCOTRADE S.P.A. ENERGIA & SERVIZI; ;SALDO Fatt.n. 1520316  del 20/11/2018 Fornitura gas naturale luglio - novembre 2018;24/11/2018;735;11;30;1;Spese correnti;3;Acquisto di beni e servizi;2;Acquisto di servizi;5;Utenze e canoni;6;Gas;24/11/2018
1338;1;0;41,92;41,92;ASCOTRADE S.P.A. ENERGIA & SERVIZI; ;SALDO Fatt.n. 1522236  del 20/11/2018 Fornitura gas naturale luglio - novembre 2018;24/11/2018;940;11;32;1;Spese correnti;3;Acquisto di beni e servizi;2;Acquisto di servizi;5;Utenze e canoni;6;Gas;24/11/2018
1339;1;0;9,49;9,49;BARDELLA ELISA; ;Liquidazione indennita di presenza ai componenti del Consiglio Comunale anno 2017;24/11/2018;21;0;420;1;Spese correnti;3;Acquisto di beni e servizi;2;Acquisto di servizi;1;Organi e incarichi istituzionali dell'amministrazione;1;Organi istituzionali dell'amministrazione - Indennità;24/11/2018
1341;1;0;501,96;501,96;BERTO LUCIANA; ;Liquidazione indennita di carica agli assessori comunali anno 2018;24/11/2018;21;0;395;1;Spese correnti;3;Acquisto di beni e servizi;2;Acquisto di servizi;1;Organi e incarichi istituzionali dell'amministrazione;1;Organi istituzionali dell'amministrazione - Indennità;24/11/2018
1343;1;0;500;500;DATAPIANO S.R.L. SERVIZI INFORMATICI PER IL TERRITORIO;Z1B21035C3;SALDO Fatt.n. S-115  del 30/10/2018 N. 1 incontro di formazione STR vision PBM;24/11/2018;197;0;358;1;Spese correnti;3;Acquisto di beni e servizi;2;Acquisto di servizi;5;Utenze e canoni;3;Accesso a banche dati e a pubblicazioni on line;24/11/2018
1344;1;0;37,96;37,96;BERGO FRANCESCO; ;Liquidazione indennita di presenza ai componenti del Consiglio Comunale anno 2017;24/11/2018;21;0;420;1;Spese correnti;3;Acquisto di beni e servizi;2;Acquisto di servizi;1;Organi e incarichi istituzionali dell'amministrazione;1;Organi istituzionali dell'amministrazione - Indennità;24/11/2018
1345;1;0;66,43;66,43;CAMISOTTI TIZIANO; ;Liquidazione indennita di presenza ai componenti del Consiglio Comunale anno 2017;24/11/2018;21;0;420;1;Spese correnti;3;Acquisto di beni e servizi;2;Acquisto di servizi;1;Organi e incarichi istituzionali dell'amministrazione;1;Organi istituzionali dell'amministrazione - Indennità;24/11/2018
1346;1;0;66,43;66,43;CHIARIELLO LUCA BERNARDINO; ;Liquidazione indennita di presenza ai componenti del Consiglio Comunale anno 2017;24/11/2018;21;0;420;1;Spese correnti;3;Acquisto di beni e servizi;2;Acquisto di servizi;1;Organi e incarichi istituzionali dell'amministrazione;1;Organi istituzionali dell'amministrazione - Indennità;24/11/2018
1347;1;0;75,92;75,92;PAVARIN GIUSEPPE; ;Liquidazione indennita di presenza ai componenti del Consiglio Comunale anno 2017;24/11/2018;21;0;420;1;Spese correnti;3;Acquisto di beni e servizi;2;Acquisto di servizi;1;Organi e incarichi istituzionali dell'amministrazione;1;Organi istituzionali dell'amministrazione - Indennità;24/11/2018
1348;1;0;56,94;56,94;POZZATO RUDY; ;Liquidazione indennita di presenza ai componenti del Consiglio Comunale anno 2017;24/11/2018;21;0;420;1;Spese correnti;3;Acquisto di beni e servizi;2;Acquisto di servizi;1;Organi e incarichi istituzionali dell'amministrazione;1;Organi istituzionali dell'amministrazione - Indennità;24/11/2018
1349;1;0;75,92;75,92;RIZZATO LAURA; ;Liquidazione indennita di presenza ai componenti del Consiglio Comunale anno 2017;24/11/2018;21;0;420;1;Spese correnti;3;Acquisto di beni e servizi;2;Acquisto di servizi;1;Organi e incarichi istituzionali dell'amministrazione;1;Organi istituzionali dell'amministrazione - Indennità;24/11/2018
1350;1;0;75,92;75,92;TOMMASI MASSIMO; ;Liquidazione indennita di presenza ai componenti del Consiglio Comunale anno 2017;24/11/2018;21;0;420;1;Spese correnti;3;Acquisto di beni e servizi;2;Acquisto di servizi;1;Organi e incarichi istituzionali dell'amministrazione;1;Organi istituzionali dell'amministrazione - Indennità;24/11/2018
1351;1;0;501,96;501,96;DONI ALBERTO; ;Liquidazione indennita di carica agli assessori comunali anno 2018;24/11/2018;21;0;395;1;Spese correnti;3;Acquisto di beni e servizi;2;Acquisto di servizi;1;Organi e incarichi istituzionali dell'amministrazione;1;Organi istituzionali dell'amministrazione - Indennità;24/11/2018
1352;1;0;501,96;501,96;ERDMANN STEFANIA; ;Liquidazione indennita di carica agli assessori comunali anno 2018;24/11/2018;21;0;395;1;Spese correnti;3;Acquisto di beni e servizi;2;Acquisto di servizi;1;Organi e incarichi istituzionali dell'amministrazione;1;Organi istituzionali dell'amministrazione - Indennità;24/11/2018
1353;1;0;501,96;501,96;GALDIOLO ANDREA; ;Liquidazione indennita di carica agli assessori comunali anno 2018;24/11/2018;21;0;395;1;Spese correnti;3;Acquisto di beni e servizi;2;Acquisto di servizi;1;Organi e incarichi istituzionali dell'amministrazione;1;Organi istituzionali dell'amministrazione - Indennità;24/11/2018
1355;1;0;5.000,00;5.000,00;MANTOVAN MARIO; ;Liquidazione spesa per prestazione occasionale a supporto del servizio di Polizia Locale;28/11/2018;2017;0;302;1;Spese correnti;3;Acquisto di beni e servizi;2;Acquisto di servizi;7;Utilizzo di beni di terzi;8;Noleggi di impianti e macchinari;28/11/2018
1356;1;0;104;104;KUWAIT PETROLEUM ITALIA S.P.A.;Z0F1755350;SALDO Fatt.n. PJ00465787  del 31/10/2018;28/11/2018;2000;0;404;1;Spese correnti;3;Acquisto di beni e servizi;1;Acquisto di beni;2;Altri beni di consumo;2;Carburanti, combustibili e lubrificanti;28/11/2018
1357;1;0;248;248;BREVIGLIERI S.R.L.;ZC5223FAAE;ACCONTO Fatt.n. 000308/E1  del 30/10/2018 Fornitrua materiale di cancelleria;28/11/2018;93;0;88;1;Spese correnti;3;Acquisto di beni e servizi;1;Acquisto di beni;2;Altri beni di consumo;999;Altri beni e materiali di consumo n.a.c.;28/11/2018
1358;1;0;607,82;607,82;BREVIGLIERI S.R.L.;ZC5223FAAE;SALDO Fatt.n. 000308/E1  del 30/10/2018 Fornitrua materiale di cancelleria;28/11/2018;93;0;337;1;Spese correnti;3;Acquisto di beni e servizi;1;Acquisto di beni;2;Altri beni di consumo;999;Altri beni e materiali di consumo n.a.c.;28/11/2018
1359;1;0;125,4;125,4;PICCOLE GIOIE DI INGEGNERI IRENE;Z181E47CE7;SALDO Fatt.n. A01  del 05/02/2018 FORNITURA CORONE ALLORO 25/04/2017;28/11/2018;13;0;116;1;Spese correnti;3;Acquisto di beni e servizi;1;Acquisto di beni;2;Altri beni di consumo;999;Altri beni e materiali di consumo n.a.c.;28/11/2018
1360;1;0;1.250,45;1.250,45;COOPERATIVA SOCIALE COOPSELIOS S.C.R.L.; ;SALDO Fatt.n. 008461-0C02  del 19/11/2018 retta casa di riposo novembre 2018;28/11/2018;1955;0;4;1;Spese correnti;4;Trasferimenti correnti;4;Trasferimenti correnti a Istituzioni Sociali Private;1;Trasferimenti correnti a Istituzioni Sociali Private;1;Trasferimenti correnti a Istituzioni Sociali Private;28/11/2018
1361;1;0;868,89;868,89;SOC. COOP. A R.L. LE MACCHINE CELIBI;ZC41A123A3;SALDO Fatt.n. FATTPA 1243_18  del 01/11/2018 Servizio gestione biblioteca e antiquarium mese di ottobre 2018;28/11/2018;934;0;24;1;Spese correnti;3;Acquisto di beni e servizi;2;Acquisto di servizi;15;Contratti di servizio pubblico;999;Altre spese per contratti di servizio pubblico;28/11/2018
1362;1;0;2.000,00;2.000,00;A.S.D. Lauretum; ;Liquidazione contributo straordinario alla Societa LAURETUM di Loreo.-;28/11/2018;1794;0;408;1;Spese correnti;4;Trasferimenti correnti;4;Trasferimenti correnti a Istituzioni Sociali Private;1;Trasferimenti correnti a Istituzioni Sociali Private;1;Trasferimenti correnti a Istituzioni Sociali Private;28/11/2018
1363;1;0;4.788,37;4.788,37;PILOTTO VIAGGI S.R.L.;68229371BB;SALDO Fatt.n. 2018/0304 bis AU  del 03/11/2018 SERVIZIO TRASPORTO SCOLASTICO OTTOBRE 2018;28/11/2018;804;0;56;1;Spese correnti;3;Acquisto di beni e servizi;2;Acquisto di servizi;15;Contratti di servizio pubblico;2;Contratti di servizio di trasporto scolastico;28/11/2018
1364;1;0;5.400,00;5.400,00;PRO LOCO LOREO; ;Liquidazione contributo straordinario alla PRO LOCO di Loreo per manifestazioni natalizie 2018-2019 e per gli eventi organizzati durante l'anno 2018.-;28/11/2018;2332;0;407;1;Spese correnti;4;Trasferimenti correnti;4;Trasferimenti correnti a Istituzioni Sociali Private;1;Trasferimenti correnti a Istituzioni Sociali Private;1;Trasferimenti correnti a Istituzioni Sociali Private;28/11/2018
1365;1;0;229,36;229,36;CALORE LORIS SNC;ZCC24D80D9;SALDO Fatt.n. 62  del 20/11/2018 Fornitura segnaletica stradale verticale;28/11/2018;2010;0;314;1;Spese correnti;3;Acquisto di beni e servizi;1;Acquisto di beni;2;Altri beni di consumo;999;Altri beni e materiali di consumo n.a.c.;28/11/2018
1366;1;0;292,8;292,8;MARANGONI GIORGIO & C. ASSISTENZA CALDAIE;Z3F253CBFE;SALDO Fatt.n. 14/PA  del 22/11/2018 Controllo annuale caldaie biblioteca, centro diurno e antiquarium;28/11/2018;345;0;347;1;Spese correnti;3;Acquisto di beni e servizi;2;Acquisto di servizi;9;Manutenzione ordinaria e riparazioni;8;Manutenzione ordinaria e riparazioni di beni immobili;28/11/2018
1367;1;0;134,2;134,2;MARANGONI GIORGIO & C. ASSISTENZA CALDAIE;Z2322E9DE6;SALDO Fatt.n. 15/PA  del 22/11/2018 Manutenzione straordinaria alloggio Calle Zona 2 interno 1;28/11/2018;345;0;351;1;Spese correnti;3;Acquisto di beni e servizi;2;Acquisto di servizi;9;Manutenzione ordinaria e riparazioni;8;Manutenzione ordinaria e riparazioni di beni immobili;28/11/2018
1368;1;0;1.501,50;1.501,50;ECONOMO COMUNALE - ZENNARO SOFIA; ;SPESE PER AFFRANCATRICE POSTALE;29/11/2018;84;0;0;1;Spese correnti;3;Acquisto di beni e servizi;2;Acquisto di servizi;16;Servizi amministrativi;2;Spese postali;29/11/2018
1369;1;0;1.200,00;7.200,00;OMESSO NOMINATIVO NEL RISPETTO DELLA NORMATIVA SULLA PROTEZIONE DATI PERSONALI; ;Liquidazione contributo per IMPEGNATIVA CURA DOMICILIARE ICDm - 3 TRIMESTRE ANNO 2018.-;30/11/2018;1280;0;423;1;Spese correnti;4;Trasferimenti correnti;2;Trasferimenti correnti a Famiglie;2;Interventi assistenziali;999;Altri assegni e sussidi assistenziali;30/11/2018
1369;2;0;1.200,00;7.200,00;OMESSO NOMINATIVO NEL RISPETTO DELLA NORMATIVA SULLA PROTEZIONE DATI PERSONALI; ;Liquidazione contributo per IMPEGNATIVA CURA DOMICILIARE ICDm - 3 TRIMESTRE ANNO 2018.-;30/11/2018;1280;0;423;1;Spese correnti;4;Trasferimenti correnti;2;Trasferimenti correnti a Famiglie;2;Interventi assistenziali;999;Altri assegni e sussidi assistenziali;30/11/2018
1369;3;0;1.200,00;7.200,00;OMESSO NOMINATIVO NEL RISPETTO DELLA NORMATIVA SULLA PROTEZIONE DATI PERSONALI; ;Liquidazione contributo per IMPEGNATIVA CURA DOMICILIARE ICDm - 3 TRIMESTRE ANNO 2018.-;30/11/2018;1280;0;423;1;Spese correnti;4;Trasferimenti correnti;2;Trasferimenti correnti a Famiglie;2;Interventi assistenziali;999;Altri assegni e sussidi assistenziali;30/11/2018
1369;4;0;1.200,00;7.200,00;OMESSO NOMINATIVO NEL RISPETTO DELLA NORMATIVA SULLA PROTEZIONE DATI PERSONALI; ;Liquidazione contributo per IMPEGNATIVA CURA DOMICILIARE ICDm - 3 TRIMESTRE ANNO 2018.-;30/11/2018;1280;0;423;1;Spese correnti;4;Trasferimenti correnti;2;Trasferimenti correnti a Famiglie;2;Interventi assistenziali;999;Altri assegni e sussidi assistenziali;30/11/2018
1369;5;0;1.200,00;7.200,00;OMESSO NOMINATIVO NEL RISPETTO DELLA NORMATIVA SULLA PROTEZIONE DATI PERSONALI; ;Liquidazione contributo per IMPEGNATIVA CURA DOMICILIARE ICDm - 3 TRIMESTRE ANNO 2018.-;30/11/2018;1280;0;423;1;Spese correnti;4;Trasferimenti correnti;2;Trasferimenti correnti a Famiglie;2;Interventi assistenziali;999;Altri assegni e sussidi assistenziali;30/11/2018
1369;6;0;1.200,00;7.200,00;OMESSO NOMINATIVO NEL RISPETTO DELLA NORMATIVA SULLA PROTEZIONE DATI PERSONALI; ;Liquidazione contributo per IMPEGNATIVA CURA DOMICILIARE ICDm - 3 TRIMESTRE ANNO 2018.-;30/11/2018;1280;0;423;1;Spese correnti;4;Trasferimenti correnti;2;Trasferimenti correnti a Famiglie;2;Interventi assistenziali;999;Altri assegni e sussidi assistenziali;30/11/2018
1371;1;0;40;40;OMESSO NOMINATIVO NEL RISPETTO DELLA NORMATIVA SULLA PROTEZIONE DATI PERSONALI; ;Liquidazione rimborso sostenute erroneamente dalle famiglie per buoni pasto e libri scuola primaria.;05/12/2018;805;0;400;1;Spese correnti;4;Trasferimenti correnti;2;Trasferimenti correnti a Famiglie;5;Altri trasferimenti a famiglie;999;Altri trasferimenti a famiglie n.a.c.;05/12/2018
1372;1;0;49,47;49,47;OMESSO NOMINATIVO NEL RISPETTO DELLA NORMATIVA SULLA PROTEZIONE DATI PERSONALI; ;Liquidazione rimborso sostenute erroneamente dalle famiglie per buoni pasto e libri scuola primaria.;05/12/2018;805;0;400;1;Spese correnti;4;Trasferimenti correnti;2;Trasferimenti correnti a Famiglie;5;Altri trasferimenti a famiglie;999;Altri trasferimenti a famiglie n.a.c.;05/12/2018
1373;1;0;7.500,00;7.500,00;ISTITUTO COMPRENSIVO DI LOREO; ;Liquidazione erogazione contributi all'Istituto Comprensivo di Loreo per le attivita per l'anno scolastico anno 2017/2018.;05/12/2018;700;0;401;1;Spese correnti;4;Trasferimenti correnti;1;Trasferimenti correnti a Amministrazioni Pubbliche;1;Trasferimenti correnti a Amministrazioni Centrali;2;Trasferimenti correnti a Ministero dell'Istruzione - Istituzioni scolastiche;05/12/2018
1374;1;0;500;500;ISTITUTO COMPRENSIVO DI LOREO; ;Liquidazione erogazione contributi all'Istituto Comprensivo di Loreo per le attivita per l'anno scolastico anno 2017/2018.;05/12/2018;704;0;402;1;Spese correnti;4;Trasferimenti correnti;1;Trasferimenti correnti a Amministrazioni Pubbliche;1;Trasferimenti correnti a Amministrazioni Centrali;2;Trasferimenti correnti a Ministero dell'Istruzione - Istituzioni scolastiche;05/12/2018
1375;1;0;400;400;ISTITUTO COMPRENSIVO DI LOREO; ;Liquidazione erogazione contributi all'Istituto Comprensivo di Loreo per le attivita per l'anno scolastico anno 2017/2018.;05/12/2018;822;0;274;1;Spese correnti;4;Trasferimenti correnti;2;Trasferimenti correnti a Famiglie;3;Borse di studio, dottorati di ricerca e contratti di formazione specialistica area medica;1;Borse di studio;05/12/2018
1376;1;0;3.660,00;3.660,00;VELOCAR S.R.L.;Z8A253B220;SALDO Fatt.n. 452/FE  del 15/11/2018 Canone locazione EVO-R mese di novembre 2018;05/12/2018;2017;0;342;1;Spese correnti;3;Acquisto di beni e servizi;2;Acquisto di servizi;7;Utilizzo di beni di terzi;8;Noleggi di impianti e macchinari;05/12/2018
1377;1;0;3.069,68;3.069,68;VELOCAR S.R.L.;Z8A253B220;SALDO Fatt.n. 451/FE  del 15/11/2018 Canone locazione EVO-R dal 06/10/2018 al 31/10/2018;05/12/2018;2017;0;342;1;Spese correnti;3;Acquisto di beni e servizi;2;Acquisto di servizi;7;Utilizzo di beni di terzi;8;Noleggi di impianti e macchinari;05/12/2018
1378;1;0;2.987,00;18.792,50;MAGGIOLI SPA; ;SALDO Fatt.n. 0001128458  del 31/10/2018 RIMBORSO SPESE POSTALI ANTICIPATE;05/12/2018;2017;0;411;1;Spese correnti;3;Acquisto di beni e servizi;2;Acquisto di servizi;7;Utilizzo di beni di terzi;8;Noleggi di impianti e macchinari;05/12/2018
1378;2;0;15.805,50;18.792,50;MAGGIOLI SPA; ;SALDO Fatt.n. 0001127864  del 31/10/2018 RIMBORSO SPESE POSTALI ANTICIPATE;05/12/2018;2017;0;411;1;Spese correnti;3;Acquisto di beni e servizi;2;Acquisto di servizi;7;Utilizzo di beni di terzi;8;Noleggi di impianti e macchinari;05/12/2018
1379;1;0;20.995,42;20.995,42;MAGGIOLI SPA;Z3B25E5FF3;SALDO Fatt.n. 0002140369  del 30/09/2018 Servizio di gestione atti amministrativi relativi alle violazioni CdS;05/12/2018;2017;0;411;1;Spese correnti;3;Acquisto di beni e servizi;2;Acquisto di servizi;7;Utilizzo di beni di terzi;8;Noleggi di impianti e macchinari;05/12/2018
1380;1;0;47,19;47,19;MAGGIOLI SPA; ;ACCONTO Fatt.n. 0001121375  del 31/07/2018 Rivalsa spese postali anticipate notifica atti giudiziari;05/12/2018;2017;0;112;1;Spese correnti;3;Acquisto di beni e servizi;2;Acquisto di servizi;7;Utilizzo di beni di terzi;8;Noleggi di impianti e macchinari;05/12/2018
1381;1;0;1.446,36;1.446,36;MAGGIOLI SPA; ;SALDO Fatt.n. 0001121375  del 31/07/2018 Rivalsa spese postali anticipate notifica atti giudiziari;05/12/2018;2017;0;411;1;Spese correnti;3;Acquisto di beni e servizi;2;Acquisto di servizi;7;Utilizzo di beni di terzi;8;Noleggi di impianti e macchinari;05/12/2018
1382;1;0;1.926,79;1.926,79;MAGGIOLI SPA;Z3B25E5FF3;SALDO Fatt.n. 0002143042  del 31/10/2018 FORNITURA DI SERVIZIO GLOBALE DI GESTIONE DEL CICLO DELLE CONTRAVVENZIONI;05/12/2018;2017;0;411;1;Spese correnti;3;Acquisto di beni e servizi;2;Acquisto di servizi;7;Utilizzo di beni di terzi;8;Noleggi di impianti e macchinari;05/12/2018
1383;1;0;3.759,80;3.759,80;MAGGIOLI SPA; ;SALDO Fatt.n. 0001123070  del 31/08/2018 Rimborso spese postali anticipate;05/12/2018;2017;0;411;1;Spese correnti;3;Acquisto di beni e servizi;2;Acquisto di servizi;7;Utilizzo di beni di terzi;8;Noleggi di impianti e macchinari;05/12/2018
1384;1;0;5.774,02;5.774,02;MAGGIOLI SPA;Z3B25E5FF3;SALDO Fatt.n. 0002143312  del 31/10/2018 Servizio di notifica estero atti relativi a verabli di violazione al CdS;05/12/2018;2017;0;411;1;Spese correnti;3;Acquisto di beni e servizi;2;Acquisto di servizi;7;Utilizzo di beni di terzi;8;Noleggi di impianti e macchinari;05/12/2018
1385;1;0;2.221,62;2.221,62;MAGGIOLI SPA;Z36239B493;SALDO Fatt.n. 0002147627  del 26/11/2018 Servizio data entry mese di novembre 2018;05/12/2018;2017;0;194;1;Spese correnti;3;Acquisto di beni e servizi;2;Acquisto di servizi;7;Utilizzo di beni di terzi;8;Noleggi di impianti e macchinari;05/12/2018
1386;1;0;1.317,60;1.317,60;AS2 S.R.L. AZIENDA SERVIZI STRUMENTALI; ;SALDO Fatt.n. AS2-FE20180904  del 14/11/2018 Assistenza specialistica sistemica installazione server anno 2018;05/12/2018;247;0;99;1;Spese correnti;3;Acquisto di beni e servizi;2;Acquisto di servizi;19;Servizi informatici e di telecomunicazioni;1;Gestione e manutenzione applicazioni;05/12/2018
1387;1;0;300;300;ZANELLA SRL ONORANZE FUNEBRI;Z5B25D64C0;SALDO Fatt.n. 217/2018/OF  del 20/11/2018 Recupero salma Baccaglini Cinzia su chiamata dell'autorit giudiziaria;05/12/2018;1424;0;399;1;Spese correnti;3;Acquisto di beni e servizi;2;Acquisto di servizi;99;Altri servizi;999;Altri servizi diversi n.a.c.;05/12/2018
1389;1;0;118,41;268,41;OMESSO NOMINATIVO NEL RISPETTO DELLA NORMATIVA SULLA PROTEZIONE DATI PERSONALI; ;Liquidazione spesa per erogazione contributi straordinari a persone indigenti.-;06/12/2018;1950;0;436;1;Spese correnti;4;Trasferimenti correnti;2;Trasferimenti correnti a Famiglie;2;Interventi assistenziali;999;Altri assegni e sussidi assistenziali;06/12/2018
1389;2;0;150;268,41;OMESSO NOMINATIVO NEL RISPETTO DELLA NORMATIVA SULLA PROTEZIONE DATI PERSONALI; ;Liquidazione spesa per erogazione contributi straordinari a persone indigenti.-;06/12/2018;1950;0;436;1;Spese correnti;4;Trasferimenti correnti;2;Trasferimenti correnti a Famiglie;2;Interventi assistenziali;999;Altri assegni e sussidi assistenziali;06/12/2018
1390;1;0;51,59;466,59;OMESSO NOMINATIVO NEL RISPETTO DELLA NORMATIVA SULLA PROTEZIONE DATI PERSONALI; ;Liquidazione spesa per erogazione contributi straordinari a persone indigenti.-;06/12/2018;1948;0;437;1;Spese correnti;4;Trasferimenti correnti;2;Trasferimenti correnti a Famiglie;2;Interventi assistenziali;999;Altri assegni e sussidi assistenziali;06/12/2018
1390;2;0;150;466,59;OMESSO NOMINATIVO NEL RISPETTO DELLA NORMATIVA SULLA PROTEZIONE DATI PERSONALI; ;Liquidazione spesa per erogazione contributi straordinari a persone indigenti.-;06/12/2018;1948;0;437;1;Spese correnti;4;Trasferimenti correnti;2;Trasferimenti correnti a Famiglie;2;Interventi assistenziali;999;Altri assegni e sussidi assistenziali;06/12/2018
1390;3;0;165;466,59;OMESSO NOMINATIVO NEL RISPETTO DELLA NORMATIVA SULLA PROTEZIONE DATI PERSONALI; ;Liquidazione spesa per erogazione contributi straordinari a persone indigenti.-;06/12/2018;1948;0;437;1;Spese correnti;4;Trasferimenti correnti;2;Trasferimenti correnti a Famiglie;2;Interventi assistenziali;999;Altri assegni e sussidi assistenziali;06/12/2018
1390;4;0;100;466,59;OMESSO NOMINATIVO NEL RISPETTO DELLA NORMATIVA SULLA PROTEZIONE DATI PERSONALI; ;Liquidazione spesa per erogazione contributi straordinari a persone indigenti.-;06/12/2018;1948;0;437;1;Spese correnti;4;Trasferimenti correnti;2;Trasferimenti correnti a Famiglie;2;Interventi assistenziali;999;Altri assegni e sussidi assistenziali;06/12/2018
1391;1;0;4.149,59;4.149,59;Reverse S.r.l.;Z51255D1A1;SALDO Fatt.n. E-274  del 28/11/2018 ACQUISTO VESTIARIO PER GRUPPO COMUNALE VOLONTARI PROTEZIONE CIVILE;07/12/2018;1675;0;356;1;Spese correnti;3;Acquisto di beni e servizi;1;Acquisto di beni;2;Altri beni di consumo;3;Equipaggiamento;07/12/2018
1392;1;0;4.015,82;4.015,82;AUSER A.P.S. CIRCOLO ANZIANI DI PORTO VIRO;Z682615E0F;Liquidazione spesa per organizzazione dei soggiorni climatici anno 2018 da parte del Circolo Anziani di Porto Viro A.P.S. , in collaborazione con il Comune di Loreo. C.I.G. Z682615E0F.-;07/12/2018;1957;0;438;1;Spese correnti;3;Acquisto di beni e servizi;2;Acquisto di servizi;99;Altri servizi;999;Altri servizi diversi n.a.c.;07/12/2018
1393;1;0;7.500,00;7.500,00;PARROCCHIA S. MARIA ASSUNTA DI LOREO; ;Liquidazione contributo alla Parrocchia S.Maria Assunta di Loreo per interventi rivolti a persone in stato di bisogno.-;07/12/2018;416;0;446;1;Spese correnti;4;Trasferimenti correnti;4;Trasferimenti correnti a Istituzioni Sociali Private;1;Trasferimenti correnti a Istituzioni Sociali Private;1;Trasferimenti correnti a Istituzioni Sociali Private;07/12/2018
1394;1;0;2.500,00;2.500,00;PRO LOCO LOREO; ;Liquidazione contributo straordinario alla PRO LOCO di Loreo per redazione del Documento Unico Valutazione Rischi (DUVRI) per gli eventi organizzati durante l'anno 2018.-;07/12/2018;2332;0;445;1;Spese correnti;4;Trasferimenti correnti;4;Trasferimenti correnti a Istituzioni Sociali Private;1;Trasferimenti correnti a Istituzioni Sociali Private;1;Trasferimenti correnti a Istituzioni Sociali Private;07/12/2018
1397;1;0;20.450,60;50.533,80;MAGGIOLI SPA;Z3B25E5FF3;SALDO Fatt.n. 0001125579  del 30/09/2018 Rimborso spese postali anticipate per notifiche violazioni CdS;12/12/2018;2017;0;411;1;Spese correnti;3;Acquisto di beni e servizi;2;Acquisto di servizi;7;Utilizzo di beni di terzi;8;Noleggi di impianti e macchinari;12/12/2018
1397;2;0;30.083,20;50.533,80;MAGGIOLI SPA;Z3B25E5FF3;SALDO Fatt.n. 0001126127  del 30/09/2018 Rivalse spses postali anticipate servizio di notifia atti giudiziari;12/12/2018;2017;0;411;1;Spese correnti;3;Acquisto di beni e servizi;2;Acquisto di servizi;7;Utilizzo di beni di terzi;8;Noleggi di impianti e macchinari;12/12/2018
1451;1;0;100;100;OMESSO NOMINATIVO NEL RISPETTO DELLA NORMATIVA SULLA PROTEZIONE DATI PERSONALI; ;Assunzione impegno di spesa per contributo per progetto di integrazione sociale in ambito lavorativo.;13/12/2018;1950;0;294;1;Spese correnti;4;Trasferimenti correnti;2;Trasferimenti correnti a Famiglie;2;Interventi assistenziali;999;Altri assegni e sussidi assistenziali;13/12/2018
1452;1;0;613,55;613,55;GASPARINI MORENO; ;INDENNITA' DI CARICA SINDACO - DICEMBRE 2018;13/12/2018;20;0;16;1;Spese correnti;3;Acquisto di beni e servizi;2;Acquisto di servizi;1;Organi e incarichi istituzionali dell'amministrazione;1;Organi istituzionali dell'amministrazione - Indennità;13/12/2018
1454;1;0;100;100;OMESSO NOMINATIVO NEL RISPETTO DELLA NORMATIVA SULLA PROTEZIONE DATI PERSONALI; ;Assunzione impegno di spesa per contributo per progetto di integrazione sociale in ambito lavorativo.-;13/12/2018;1950;0;359;1;Spese correnti;4;Trasferimenti correnti;2;Trasferimenti correnti a Famiglie;2;Interventi assistenziali;999;Altri assegni e sussidi assistenziali;13/12/2018
1455;1;0;100;100;OMESSO NOMINATIVO NEL RISPETTO DELLA NORMATIVA SULLA PROTEZIONE DATI PERSONALI; ;Assunzione impegno di spesa per contributo per progetto di integrazione sociale in ambito lavorativo.-;13/12/2018;1950;0;134;1;Spese correnti;4;Trasferimenti correnti;2;Trasferimenti correnti a Famiglie;2;Interventi assistenziali;999;Altri assegni e sussidi assistenziali;13/12/2018
1456;1;0;217,18;2.085,75;EDISON ENERGIA SPA; ;SALDO Fatt.n. 2900097736  del 26/10/2017 Spesa per fornitura energia elettrica agosto-settembre 2017 - pod 34505966 Calle Costa 6;13/12/2018;82;10;18;1;Spese correnti;3;Acquisto di beni e servizi;2;Acquisto di servizi;5;Utenze e canoni;4;Energia elettrica;13/12/2018
1456;2;0;221,99;2.085,75;EDISON ENERGIA SPA; ;SALDO Fatt.n. 2900097732  del 26/10/2017 Fornitura energia elettrica agoto-settembre 2017, POD 34505968 Calle Costa 6;13/12/2018;82;10;18;1;Spese correnti;3;Acquisto di beni e servizi;2;Acquisto di servizi;5;Utenze e canoni;4;Energia elettrica;13/12/2018
1456;3;0;1.646,58;2.085,75;EDISON ENERGIA SPA; ;ACCONTO Fatt.n. 2900097728  del 26/10/2017 Fornitura energia elettrica agosto-settembre 2017, 16 siti;13/12/2018;82;10;18;1;Spese correnti;3;Acquisto di beni e servizi;2;Acquisto di servizi;5;Utenze e canoni;4;Energia elettrica;13/12/2018
1457;1;0;603,9;603,9;EDISON ENERGIA SPA; ;ACCONTO Fatt.n. 2900097728  del 26/10/2017 Fornitura energia elettrica agosto-settembre 2017, 16 siti;13/12/2018;735;10;21;1;Spese correnti;3;Acquisto di beni e servizi;2;Acquisto di servizi;5;Utenze e canoni;4;Energia elettrica;13/12/2018
1458;1;0;154,19;154,19;EDISON ENERGIA SPA; ;ACCONTO Fatt.n. 2900097728  del 26/10/2017 Fornitura energia elettrica agosto-settembre 2017, 16 siti;13/12/2018;935;10;22;1;Spese correnti;3;Acquisto di beni e servizi;2;Acquisto di servizi;5;Utenze e canoni;4;Energia elettrica;13/12/2018
1459;1;0;375,57;375,57;EDISON ENERGIA SPA; ;ACCONTO Fatt.n. 2900097728  del 26/10/2017 Fornitura energia elettrica agosto-settembre 2017, 16 siti;13/12/2018;1418;10;24;1;Spese correnti;3;Acquisto di beni e servizi;2;Acquisto di servizi;5;Utenze e canoni;4;Energia elettrica;13/12/2018
1460;1;0;196,83;196,83;EDISON ENERGIA SPA; ;ACCONTO Fatt.n. 2900097728  del 26/10/2017 Fornitura energia elettrica agosto-settembre 2017, 16 siti;13/12/2018;940;10;23;1;Spese correnti;3;Acquisto di beni e servizi;2;Acquisto di servizi;5;Utenze e canoni;4;Energia elettrica;13/12/2018
1461;1;0;608,35;608,35;EDISON ENERGIA SPA; ;ACCONTO Fatt.n. 2900097728  del 26/10/2017 Fornitura energia elettrica agosto-settembre 2017, 16 siti;13/12/2018;1794;10;26;1;Spese correnti;3;Acquisto di beni e servizi;2;Acquisto di servizi;5;Utenze e canoni;4;Energia elettrica;13/12/2018
1462;1;0;114,93;114,93;EDISON ENERGIA SPA; ;ACCONTO Fatt.n. 2900097728  del 26/10/2017 Fornitura energia elettrica agosto-settembre 2017, 16 siti;13/12/2018;1777;10;25;1;Spese correnti;3;Acquisto di beni e servizi;2;Acquisto di servizi;5;Utenze e canoni;4;Energia elettrica;13/12/2018
1463;1;0;132,2;132,2;EDISON ENERGIA SPA; ;ACCONTO Fatt.n. 2900097728  del 26/10/2017 Fornitura energia elettrica agosto-settembre 2017, 16 siti;13/12/2018;693;10;20;1;Spese correnti;3;Acquisto di beni e servizi;2;Acquisto di servizi;5;Utenze e canoni;4;Energia elettrica;13/12/2018
1464;1;0;353,34;353,34;EDISON ENERGIA SPA; ;SALDO Fatt.n. 2900097728  del 26/10/2017 Fornitura energia elettrica agosto-settembre 2017, 16 siti;13/12/2018;649;10;19;1;Spese correnti;3;Acquisto di beni e servizi;2;Acquisto di servizi;5;Utenze e canoni;4;Energia elettrica;13/12/2018
1465;1;0;382;382;B & S ITALIA SPA;Z5F1C3F745;Liquidazione regolazione premio assicurativo polizza infortuni 77/61046150 relativamente alla scadenza del 30/04/2017 - B&S Italia S.p.a.;13/12/2018;28;0;430;1;Spese correnti;10;Altre spese correnti;4;Premi di assicurazione;1;Premi di assicurazione contro i danni;3;Premi di assicurazione per responsabilità civile verso terzi;13/12/2018
1466;1;0;158,89;158,89;B & S ITALIA SPA;Z7B1983CF6;Liquidazione spesa per regolazione premio assicurativo polizza numero 196766 utela legale relativamente alla scadenza del 30/04/2018 - B&S Italia S.p.a.;13/12/2018;28;0;431;1;Spese correnti;10;Altre spese correnti;4;Premi di assicurazione;1;Premi di assicurazione contro i danni;3;Premi di assicurazione per responsabilità civile verso terzi;13/12/2018
1467;1;0;56,98;56,98;B & S ITALIA SPA;ZE71983AB2;Liquidazione spesa per regolazione premio assicurativo polizza All Risks numero 05/45615959 relativamente alla scadenza del 30/04/2017 - B&S Italia Spa;13/12/2018;344;0;432;1;Spese correnti;10;Altre spese correnti;4;Premi di assicurazione;99;Altri premi di assicurazione n.a.c.;999;Altri premi di assicurazione n.a.c.;13/12/2018
1468;1;0;316,02;316,02;B & S ITALIA SPA;Z361E6DFFA;Liquidazione spesa per regolazione premio assicurativo polizza All Risks numero 05/45615959 relativamente alla scadenza del 30/04/2018 - B&S Italia S.p.a.;13/12/2018;344;0;433;1;Spese correnti;10;Altre spese correnti;4;Premi di assicurazione;99;Altri premi di assicurazione n.a.c.;999;Altri premi di assicurazione n.a.c.;13/12/2018
1469;1;0;2.189,00;2.189,00;B & S ITALIA SPA;Z192619E11;Pagamento franchigie contrattuali a seguito indennizzo sinistri avvenuti anni 2016 e 2017 - B&S Italia Spa di Milano - CIG. Z192619E11;13/12/2018;320;0;448;1;Spese correnti;10;Altre spese correnti;4;Premi di assicurazione;1;Premi di assicurazione contro i danni;3;Premi di assicurazione per responsabilità civile verso terzi;13/12/2018
1471;1;0;1.908,80;1.908,80;DEBITORI E CREDITORI DIVERSI; ;SPESE RELATIVE ALLA GESTIONE DEL C/C POSTALE;14/12/2018;2017;0;458;1;Spese correnti;3;Acquisto di beni e servizi;2;Acquisto di servizi;7;Utilizzo di beni di terzi;8;Noleggi di impianti e macchinari;14/12/2018
1472;1;0;69,14;69,14;DEBITORI E CREDITORI DIVERSI; ;SPESE RELATIVE ALL TENUTA DEI C/C POSTALI;14/12/2018;107;0;459;1;Spese correnti;3;Acquisto di beni e servizi;2;Acquisto di servizi;16;Servizi amministrativi;2;Spese postali;14/12/2018
1473;1;0;16,7;16,7;DEBITORI E CREDITORI DIVERSI; ;SPESE RELATIVE ALL TENUTA DEI C/C POSTALI;14/12/2018;107;0;459;1;Spese correnti;3;Acquisto di beni e servizi;2;Acquisto di servizi;16;Servizi amministrativi;2;Spese postali;14/12/2018
1474;1;0;49,76;49,76;DEBITORI E CREDITORI DIVERSI; ;SPESE RELATIVE ALL TENUTA DEI C/C POSTALI;14/12/2018;107;0;459;1;Spese correnti;3;Acquisto di beni e servizi;2;Acquisto di servizi;16;Servizi amministrativi;2;Spese postali;14/12/2018
1475;1;0;23,49;23,49;DEBITORI E CREDITORI DIVERSI; ;SPESE RELATIVE ALL TENUTA DEI C/C POSTALI;14/12/2018;107;0;459;1;Spese correnti;3;Acquisto di beni e servizi;2;Acquisto di servizi;16;Servizi amministrativi;2;Spese postali;14/12/2018
1476;1;0;57,95;57,95;DEBITORI E CREDITORI DIVERSI; ;SPESE RELATIVE ALL TENUTA DEI C/C POSTALI;14/12/2018;107;0;459;1;Spese correnti;3;Acquisto di beni e servizi;2;Acquisto di servizi;16;Servizi amministrativi;2;Spese postali;14/12/2018
1477;1;0;28,3;28,3;VODAFONE OMNITEL N.V.; ;SALDO Fatt.n. AI22692200  del 13/12/2018 Spesa per SIM dati Vodafone inerne speed ottobre - dicembre 2018;17/12/2018;82;14;50;1;Spese correnti;3;Acquisto di beni e servizi;2;Acquisto di servizi;5;Utenze e canoni;2;Telefonia mobile;17/12/2018
1478;1;0;2.903,60;2.903,60;AZIENDA TERRITORIALE EDILIZIA RESIDEN.LE; ;SALDO Fatt.n. 171  del 27/11/2018 Rimb. oneri funz. Comm. Ass. All. art. 5 L.R. 10/96 n.28 domande bando'17 istr.'18 SCISSIONE DEI PAGAMENTI ART. 17-TER DPR 633/72;17/12/2018;1080;0;400;1;Spese correnti;3;Acquisto di beni e servizi;2;Acquisto di servizi;15;Contratti di servizio pubblico;8;Contratti di servizio di assistenza sociale residenziale e semiresidenziale;17/12/2018
1479;1;0;70;70;Unione Giovani Dott. Commercialisti ed Esperti Contabi;0;SALDO Fatt.n. 3/P  del 30/11/2018 CORSO DI FORMAZIONE 16.11.2018;17/12/2018;81;0;377;1;Spese correnti;3;Acquisto di beni e servizi;2;Acquisto di servizi;4;Acquisto di servizi per formazione e addestramento del personale dell'ente;999;Acquisto di servizi per altre spese per formazione e addestramento n.a.c.;17/12/2018
1480;1;0;4.557,23;4.557,23;PILOTTO VIAGGI S.R.L.;68229371BB;SALDO Fatt.n. 2018/0331 AU  del 03/12/2018 SERVIZIO TRASPORTO SCOLASTICO EFFETTUATO NEL MESE DI NOVEMBRE 2018;17/12/2018;804;0;56;1;Spese correnti;3;Acquisto di beni e servizi;2;Acquisto di servizi;15;Contratti di servizio pubblico;2;Contratti di servizio di trasporto scolastico;17/12/2018
1482;1;0;49.797,51;49.797,51;Sicea S.r.l.;7595171562;SALDO Fatt.n. 34/FE  del 06/12/2018 Anticipazione 20% art. 7 Contratto d'appalto stipulato in data 06/12/2018 - Lavori di riqualificazione ed efficientamento energetico della scuola materna Monumento ai Caduti - primo stralcio;17/12/2018;2592;0;363;2;Spese in conto capitale;2;Investimenti fissi lordi e acquisto di terreni;1;Beni materiali;9;Beni immobili;3;Fabbricati ad uso scolastico;17/12/2018
1483;1;0;20.722,10;20.722,10;AGRISCAVI DI BELLAN LUCA;Z7C232B193;"SALDO Fatt.n. 28/PA  del 20/11/2018 Servizio di ""Manutenzione del verde per l'anno 2018""";17/12/2018;1731;0;196;1;Spese correnti;3;Acquisto di beni e servizi;2;Acquisto di servizi;9;Manutenzione ordinaria e riparazioni;12;Manutenzione ordinaria e riparazioni di terreni e beni materiali non prodotti;17/12/2018
1484;1;0;4.690,44;4.690,44;PHONECO SRL;ZE320C5E55;SALDO Fatt.n. 31/2018  del 25/09/2018 Aggiornamento piano comunale di classificazione acustica anticipazione;17/12/2018;198;0;305;1;Spese correnti;3;Acquisto di beni e servizi;2;Acquisto di servizi;11;Prestazioni professionali e specialistiche;999;Altre prestazioni professionali e specialistiche n.a.c.;17/12/2018
1485;1;0;374,94;374,94;CARTOLIBRERIA PICELLO; ;SALDO Fatt.n. FATTPA 4_18  del 23/11/2018 FORNITURA LIBRI DI TESTO PER ALUNNI FREQUENTANTI LA SCUOLA PRIMARIA;17/12/2018;798;0;339;1;Spese correnti;3;Acquisto di beni e servizi;1;Acquisto di beni;1;Giornali, riviste e pubblicazioni;2;Pubblicazioni;17/12/2018
1486;1;0;70,37;70,37;LIBRERIA APOGEO; ;SALDO Fatt.n. 52/PA  del 15/11/2018 CODICE UNIVOCO UFOPIY;17/12/2018;798;0;339;1;Spese correnti;3;Acquisto di beni e servizi;1;Acquisto di beni;1;Giornali, riviste e pubblicazioni;2;Pubblicazioni;17/12/2018
1487;1;0;1.411,52;1.411,52;ECOAMBIENTE S.R.L.; ;Rimborso a Ecoambiente S.r.l. delle somme riscosse per il servizio di raccolta e smaltimento rifiuti;17/12/2018;1587;0;322;1;Spese correnti;4;Trasferimenti correnti;3;Trasferimenti correnti a Imprese;2;Trasferimenti correnti a altre imprese partecipate;1;Trasferimenti correnti a altre imprese partecipate;17/12/2018
1488;1;0;1.314,02;1.314,02;ECOAMBIENTE S.R.L.; ;Rimborso a Ecoambiente S.r.l. delle somme riscosse per il servizio di raccolta e smaltimento rifiuti;17/12/2018;1587;0;422;1;Spese correnti;4;Trasferimenti correnti;3;Trasferimenti correnti a Imprese;2;Trasferimenti correnti a altre imprese partecipate;1;Trasferimenti correnti a altre imprese partecipate;17/12/2018
1490;1;0;6.475,63;6.475,63;EUROSERVICE S.R.L.;Z3D2315728;SALDO Fatt.n. 128  del 19/10/2018 Risanamento intonaci e realizzazione parete interna in cartongesso alloggio comunale;17/12/2018;345;0;187;1;Spese correnti;3;Acquisto di beni e servizi;2;Acquisto di servizi;9;Manutenzione ordinaria e riparazioni;8;Manutenzione ordinaria e riparazioni di beni immobili;17/12/2018
1491;1;0;8.190,93;8.190,93;C.S.M. DI MARANGON STEFANO;ZD71FFD010;SALDO Fatt.n. FatPAM 05/2018  del 11/05/2018 Fattura per lavori di sistemazione scuole elementari Via Dei Dogi;17/12/2018;345;0;239;1;Spese correnti;3;Acquisto di beni e servizi;2;Acquisto di servizi;9;Manutenzione ordinaria e riparazioni;8;Manutenzione ordinaria e riparazioni di beni immobili;17/12/2018
1493;1;0;66,15;66,15;BREVIGLIERI S.R.L.;ZD41512304;SALDO Fatt.n. 000249/E3  del 13/12/2018 Conguaglio copie eseguite con D Copia 3002MF da luglio a dicembre 2018;19/12/2018;246;1;14;1;Spese correnti;3;Acquisto di beni e servizi;2;Acquisto di servizi;5;Utenze e canoni;3;Accesso a banche dati e a pubblicazioni on line;19/12/2018
1494;1;0;336,6;336,6;MAGGIOLI SPA;Z6F24F62AF;SALDO Fatt.n. 0005965101  del 30/11/2018 Fornitura manuali per ufficio anagrafe/stato civile;19/12/2018;244;1;326;1;Spese correnti;3;Acquisto di beni e servizi;1;Acquisto di beni;2;Altri beni di consumo;999;Altri beni e materiali di consumo n.a.c.;19/12/2018
1495;1;0;152,26;152,26;FERRO MARCO;Z1F20D8C6F;SALDO Fatt.n. 1/REGISTRO P.A.  del 12/12/2018 Rimborso spese per partecipazione alla commissione comunale di vigilanza sui liocali di pubblico spettacolo per la fiera di San Michele;19/12/2018;2397;0;456;1;Spese correnti;3;Acquisto di beni e servizi;2;Acquisto di servizi;99;Altri servizi;999;Altri servizi diversi n.a.c.;19/12/2018
1496;1;0;582,73;582,73;ASCOTRADE S.P.A. ENERGIA & SERVIZI; ;SALDO Fatt.n. 1623127  del 17/12/2018 Fornitura gas naturale mese di novembre 2018 - vicolo Valleselle 21;19/12/2018;1794;11;34;1;Spese correnti;3;Acquisto di beni e servizi;2;Acquisto di servizi;5;Utenze e canoni;6;Gas;19/12/2018
1497;1;0;-0,26;28,62;ENEL ENERGIA S.P.A.; ;SALDO Fatt.n. 004812351423  del 12/12/2018 Nota di credito per acconti precedenti;19/12/2018;82;10;18;1;Spese correnti;3;Acquisto di beni e servizi;2;Acquisto di servizi;5;Utenze e canoni;4;Energia elettrica;19/12/2018
1497;2;0;28,88;28,62;ENEL ENERGIA S.P.A.; ;SALDO Fatt.n. 004812351422  del 12/12/2018 Spesa per fornitura energia elettrica mese di novembre 2018;19/12/2018;82;10;18;1;Spese correnti;3;Acquisto di beni e servizi;2;Acquisto di servizi;5;Utenze e canoni;4;Energia elettrica;19/12/2018
1498;1;0;1.403,00;1.403,00;ACCATRE S.R.L.;ZBB245D354;SALDO Fatt.n. 1/181383  del 13/12/2018 Servizio bilancio consolidato anno 2018;19/12/2018;92;1;280;1;Spese correnti;3;Acquisto di beni e servizi;2;Acquisto di servizi;5;Utenze e canoni;3;Accesso a banche dati e a pubblicazioni on line;19/12/2018
1501;1;0;1.250,00;1.250,00;Romagnolo Martina; ;SALDO Fatt.n. 2  del 03/12/2018 Consulenza legale violazioni CdS mese di novembre 2018;20/12/2018;2017;0;341;1;Spese correnti;3;Acquisto di beni e servizi;2;Acquisto di servizi;7;Utilizzo di beni di terzi;8;Noleggi di impianti e macchinari;20/12/2018
1502;1;0;2.059,40;19.120,60;MAGGIOLI SPA; ;SALDO Fatt.n. 0001131961  del 30/11/2018 FORNITURA DI RIMBORSO SPESE POSTALI ANTICIPATE;20/12/2018;2017;0;411;1;Spese correnti;3;Acquisto di beni e servizi;2;Acquisto di servizi;7;Utilizzo di beni di terzi;8;Noleggi di impianti e macchinari;20/12/2018
1502;2;0;17.061,20;19.120,60;MAGGIOLI SPA; ;SALDO Fatt.n. 0001132534  del 30/11/2018 Rivalsa spese postali anticipate;20/12/2018;2017;0;411;1;Spese correnti;3;Acquisto di beni e servizi;2;Acquisto di servizi;7;Utilizzo di beni di terzi;8;Noleggi di impianti e macchinari;20/12/2018
1503;1;0;11.907,21;11.907,21;MAGGIOLI SPA;ZC822997E0;SALDO Fatt.n. 0002150636  del 30/11/2018 FORNITURA DI SERVIZIO GLOBALE DI GESTIONE DEL CICLO DELLE CONTRAVVENZIONI;20/12/2018;2017;0;411;1;Spese correnti;3;Acquisto di beni e servizi;2;Acquisto di servizi;7;Utilizzo di beni di terzi;8;Noleggi di impianti e macchinari;20/12/2018
1504;1;0;104,43;2.187,01;EDISON ENERGIA SPA; ;SALDO Fatt.n. 2900119979  del 18/12/2018 Fornitura energia elettrica novembre 2018, Piazza SS Pietro e Monica;21/12/2018;82;10;18;1;Spese correnti;3;Acquisto di beni e servizi;2;Acquisto di servizi;5;Utenze e canoni;4;Energia elettrica;21/12/2018
1504;2;0;275,13;2.187,01;EDISON ENERGIA SPA; ;SALDO Fatt.n. 2900119735  del 18/12/2018 Fornitura energia elettrica ottobre-novembre 2018, Calle Costa 6;21/12/2018;82;10;18;1;Spese correnti;3;Acquisto di beni e servizi;2;Acquisto di servizi;5;Utenze e canoni;4;Energia elettrica;21/12/2018
1504;3;0;341,3;2.187,01;EDISON ENERGIA SPA; ;SALDO Fatt.n. 2900119734  del 18/12/2018 Spesa per energia elettrica ottobre-novembre 2018, Calle Costa 6;21/12/2018;82;10;18;1;Spese correnti;3;Acquisto di beni e servizi;2;Acquisto di servizi;5;Utenze e canoni;4;Energia elettrica;21/12/2018
1504;4;0;1.466,15;2.187,01;EDISON ENERGIA SPA; ;ACCONTO Fatt.n. 2900120337  del 18/12/2018 Fornitura energia elettrica otobre-novembre 2018, vari siti;21/12/2018;82;10;18;1;Spese correnti;3;Acquisto di beni e servizi;2;Acquisto di servizi;5;Utenze e canoni;4;Energia elettrica;21/12/2018
1505;1;0;135,38;135,38;EDISON ENERGIA SPA; ;ACCONTO Fatt.n. 2900120337  del 18/12/2018 Fornitura energia elettrica otobre-novembre 2018, vari siti;21/12/2018;935;10;22;1;Spese correnti;3;Acquisto di beni e servizi;2;Acquisto di servizi;5;Utenze e canoni;4;Energia elettrica;21/12/2018
1506;1;0;118,04;118,04;EDISON ENERGIA SPA; ;ACCONTO Fatt.n. 2900120337  del 18/12/2018 Fornitura energia elettrica otobre-novembre 2018, vari siti;21/12/2018;649;10;19;1;Spese correnti;3;Acquisto di beni e servizi;2;Acquisto di servizi;5;Utenze e canoni;4;Energia elettrica;21/12/2018
1507;1;0;345,29;345,29;EDISON ENERGIA SPA; ;ACCONTO Fatt.n. 2900120337  del 18/12/2018 Fornitura energia elettrica otobre-novembre 2018, vari siti;21/12/2018;1418;10;24;1;Spese correnti;3;Acquisto di beni e servizi;2;Acquisto di servizi;5;Utenze e canoni;4;Energia elettrica;21/12/2018
1508;1;0;441,64;441,64;EDISON ENERGIA SPA; ;ACCONTO Fatt.n. 2900120337  del 18/12/2018 Fornitura energia elettrica otobre-novembre 2018, vari siti;21/12/2018;693;10;20;1;Spese correnti;3;Acquisto di beni e servizi;2;Acquisto di servizi;5;Utenze e canoni;4;Energia elettrica;21/12/2018
1509;1;0;195,36;195,36;EDISON ENERGIA SPA; ;ACCONTO Fatt.n. 2900120337  del 18/12/2018 Fornitura energia elettrica otobre-novembre 2018, vari siti;21/12/2018;940;10;23;1;Spese correnti;3;Acquisto di beni e servizi;2;Acquisto di servizi;5;Utenze e canoni;4;Energia elettrica;21/12/2018
1510;1;0;124,28;124,28;EDISON ENERGIA SPA; ;ACCONTO Fatt.n. 2900120337  del 18/12/2018 Fornitura energia elettrica otobre-novembre 2018, vari siti;21/12/2018;1777;10;25;1;Spese correnti;3;Acquisto di beni e servizi;2;Acquisto di servizi;5;Utenze e canoni;4;Energia elettrica;21/12/2018
1511;1;0;612,37;612,37;EDISON ENERGIA SPA; ;ACCONTO Fatt.n. 2900120337  del 18/12/2018 Fornitura energia elettrica otobre-novembre 2018, vari siti;21/12/2018;1794;10;26;1;Spese correnti;3;Acquisto di beni e servizi;2;Acquisto di servizi;5;Utenze e canoni;4;Energia elettrica;21/12/2018
1512;1;0;561,06;561,06;EDISON ENERGIA SPA; ;ACCONTO Fatt.n. 2900120337  del 18/12/2018 Fornitura energia elettrica otobre-novembre 2018, vari siti;21/12/2018;82;10;501;1;Spese correnti;3;Acquisto di beni e servizi;2;Acquisto di servizi;5;Utenze e canoni;4;Energia elettrica;21/12/2018
1513;1;0;856,63;856,63;EDISON ENERGIA SPA; ;SALDO Fatt.n. 2900120337  del 18/12/2018 Fornitura energia elettrica otobre-novembre 2018, vari siti;21/12/2018;735;10;21;1;Spese correnti;3;Acquisto di beni e servizi;2;Acquisto di servizi;5;Utenze e canoni;4;Energia elettrica;21/12/2018
1518;1;0;1.466,83;1.466,83;BELLO MASSIMO;Z2624D81D8;SALDO Fatt.n. FATTPA 1_18  del 13/12/2018 STATO DI AVANZAMENTO N. 1 PER SERVIZI CIMITERIALI;21/12/2018;1417;0;349;1;Spese correnti;3;Acquisto di beni e servizi;2;Acquisto di servizi;15;Contratti di servizio pubblico;999;Altre spese per contratti di servizio pubblico;21/12/2018
1519;1;0;3.000,00;3.000,00;ISTITUTO COMPRENSIVO DI LOREO; ;Liquidazione spesa finalizzato all'erogazione di un Contributo straordinario forfettario all'Istitut;21/12/2018;700;0;476;1;Spese correnti;4;Trasferimenti correnti;1;Trasferimenti correnti a Amministrazioni Pubbliche;1;Trasferimenti correnti a Amministrazioni Centrali;2;Trasferimenti correnti a Ministero dell'Istruzione - Istituzioni scolastiche;21/12/2018
1520;1;0;152,26;152,26;GABRIELI CRISTIANO;Z9D263588A;SALDO Fatt.n. 35  del 19/12/2018 Rimborso spese per partecipazione alla Commissione Commissione Comunale di Vigilanza sui Locali di Pubblico Spettacolo per la fiera di San Michele 2018;21/12/2018;2397;0;455;1;Spese correnti;3;Acquisto di beni e servizi;2;Acquisto di servizi;99;Altri servizi;999;Altri servizi diversi n.a.c.;21/12/2018
1521;1;0;475;475;TINCANI ANDREA; ;Liquidazione al nucleo di valutazione del compenso per attivita di controllo e valutazione relativa del periodo dal 28 luglio 2017 al 28 luglio 2018.;21/12/2018;90;0;243;1;Spese correnti;3;Acquisto di beni e servizi;2;Acquisto di servizi;1;Organi e incarichi istituzionali dell'amministrazione;8;Compensi agli organi istituzionali di revisione, di controllo ed altri incarichi istituzionali dell'amministrazione;21/12/2018
1522;1;0;314,78;314,78;TINCANI ANDREA; ;Liquidazione al nucleo di valutazione del compenso per attivita di controllo e valutazione relativa;21/12/2018;90;0;420;1;Spese correnti;3;Acquisto di beni e servizi;2;Acquisto di servizi;1;Organi e incarichi istituzionali dell'amministrazione;8;Compensi agli organi istituzionali di revisione, di controllo ed altri incarichi istituzionali dell'amministrazione;21/12/2018
1523;1;0;68,16;702,35;TELECOM ITALIA S.P.A.; ;SALDO Fatt.n. 8E01074130  del 06/12/2018 Spesa per traffico telefonico ottobre-novembre 2018, palazzo municipale;21/12/2018;82;13;44;1;Spese correnti;3;Acquisto di beni e servizi;2;Acquisto di servizi;5;Utenze e canoni;1;Telefonia fissa;21/12/2018
1523;2;0;85,4;702,35;TELECOM ITALIA S.P.A.; ;SALDO Fatt.n. 8E01070478  del 06/12/2018 Spesa per raffico telefonico ottobre-novembre 2018, palazzo municipale;21/12/2018;82;13;44;1;Spese correnti;3;Acquisto di beni e servizi;2;Acquisto di servizi;5;Utenze e canoni;1;Telefonia fissa;21/12/2018
1523;3;0;168,36;702,35;TELECOM ITALIA S.P.A.; ;SALDO Fatt.n. 8E01071732  del 06/12/2018 Spesa per traffico telefonico ottobre-novembre 2018, palazzo municipale;21/12/2018;82;13;44;1;Spese correnti;3;Acquisto di beni e servizi;2;Acquisto di servizi;5;Utenze e canoni;1;Telefonia fissa;21/12/2018
1523;4;0;380,43;702,35;TELECOM ITALIA S.P.A.; ;SALDO Fatt.n. 8E01071951  del 06/12/2018 Spesa per traffico internet ottobre-novembre 2018, palazzo municipale;21/12/2018;82;13;44;1;Spese correnti;3;Acquisto di beni e servizi;2;Acquisto di servizi;5;Utenze e canoni;1;Telefonia fissa;21/12/2018
1524;1;0;158,2;158,2;TELECOM ITALIA S.P.A.; ;SALDO Fatt.n. 8E01071558  del 06/12/2018 Spesa per traffico telefonico ottobre-novembre 2018, Riviera G. Marconi 47;21/12/2018;935;13;48;1;Spese correnti;3;Acquisto di beni e servizi;2;Acquisto di servizi;5;Utenze e canoni;1;Telefonia fissa;21/12/2018
1525;1;0;83,55;83,55;TELECOM ITALIA S.P.A.; ;SALDO Fatt.n. 8E01069132  del 06/12/2018 Spesa per traffico telefonico ottobre-novembre 2018, via Roma 32;21/12/2018;649;13;45;1;Spese correnti;3;Acquisto di beni e servizi;2;Acquisto di servizi;5;Utenze e canoni;1;Telefonia fissa;21/12/2018
1526;1;0;72,08;72,08;TELECOM ITALIA S.P.A.; ;SALDO Fatt.n. 8E01072518  del 06/12/2018 Spesa per traffico telefonico ottobre-novembre 2018, Riviera G. Marconi 53;21/12/2018;940;13;49;1;Spese correnti;3;Acquisto di beni e servizi;2;Acquisto di servizi;5;Utenze e canoni;1;Telefonia fissa;21/12/2018
1528;1;0;488,25;488,25;AUSER A.P.S. CIRCOLO ANZIANI DI PORTO VIRO;Z35266DB0D;Liquidazione spesa per rimborso chilometrico per viaggi effettuati extra ex ULSS 19 dall'A.P.S. Circolo Anziani di Porto Viro nel periodo 01.01.2018 - 30.09.2018. C.I.G. Z35266DB0D.-;21/12/2018;1950;0;495;1;Spese correnti;4;Trasferimenti correnti;2;Trasferimenti correnti a Famiglie;2;Interventi assistenziali;999;Altri assegni e sussidi assistenziali;21/12/2018
1529;1;0;-2.501,00;2.501,00;GEMMLAB SRL;Z49240A75D;SALDO Fatt.n. 000061PA  del 19/12/2018 Noa di accredito per precedente fattura 47PA;21/12/2018;1731;0;262;1;Spese correnti;3;Acquisto di beni e servizi;2;Acquisto di servizi;9;Manutenzione ordinaria e riparazioni;12;Manutenzione ordinaria e riparazioni di terreni e beni materiali non prodotti;21/12/2018
1529;2;0;2.501,00;2.501,00;GEMMLAB SRL;Z49240A75D;SALDO Fatt.n. 000047PA  del 08/08/2018 Calcolo delle superfici, foto verticale situazione attuale, elenco denominazione alberi;21/12/2018;1731;0;262;1;Spese correnti;3;Acquisto di beni e servizi;2;Acquisto di servizi;9;Manutenzione ordinaria e riparazioni;12;Manutenzione ordinaria e riparazioni di terreni e beni materiali non prodotti;21/12/2018
1529;3;0;2.501,00;2.501,00;GEMMLAB SRL;Z49240A75D;SALDO Fatt.n. 000062PA  del 19/12/2018 Calcolo superfici, foto verticale siuazione attuale ed elenco denominazione alberi;21/12/2018;1731;0;262;1;Spese correnti;3;Acquisto di beni e servizi;2;Acquisto di servizi;9;Manutenzione ordinaria e riparazioni;12;Manutenzione ordinaria e riparazioni di terreni e beni materiali non prodotti;21/12/2018
1532;1;0;103,76;103,76;TELECOM ITALIA S.P.A.; ;SALDO Fatt.n. 8E01071873  del 06/12/2018 Spesa per traffico telefonico ottobre - novembre 2018, via dei Dogi 1;21/12/2018;735;13;47;1;Spese correnti;3;Acquisto di beni e servizi;2;Acquisto di servizi;5;Utenze e canoni;1;Telefonia fissa;21/12/2018
1533;1;0;194,77;194,77;TESORIERE COMUNALE - INTESA SAN PAOLO SPA; ;AG.DELLE ENTRATE - FONDI DELLA-F24EP SCAD 27/4/18 SANZIONI E RAVVEDIMENTO (P.      12 -R.     611);31/12/2018;91;0;520;1;Spese correnti;10;Altre spese correnti;3;Versamenti IVA a debito;1;Versamenti IVA a debito per le gestioni commerciali;1;Versamenti IVA a debito per le gestioni commerciali;31/12/2018
1534;1;0;75;75;TESORIERE COMUNALE - INTESA SAN PAOLO SPA;Z3C24E24FE;SOGGETTI DIVERSI-COMMISSIONE SERVIZI INBIZ (P.      45 -R.    1826);31/12/2018;92;1;315;1;Spese correnti;3;Acquisto di beni e servizi;2;Acquisto di servizi;5;Utenze e canoni;3;Accesso a banche dati e a pubblicazioni on line;31/12/2018
1537;1;0;840;840;TESORIERE COMUNALE - INTESA SAN PAOLO SPA;Z1125C0568;SOGGETTI DIVERSI-COMMISSIONE SERVIZI INBIZ (P.      45 -R.    1826);31/12/2018;106;0;394;1;Spese correnti;3;Acquisto di beni e servizi;2;Acquisto di servizi;17;Servizi finanziari;2;Oneri per servizio di tesoreria;31/12/2018
1538;1;0;0,8;442,61;TESORIERE COMUNALE - INTESA SAN PAOLO SPA; ;SOGGETTI DIVERSI-COMMISSIONE PAGAMENTO ADUE B2B MANDATO 2928440007404 NOME Cassa Depositi e Prestiti (P.      26 -R.     951);31/12/2018;106;0;519;1;Spese correnti;3;Acquisto di beni e servizi;2;Acquisto di servizi;17;Servizi finanziari;2;Oneri per servizio di tesoreria;31/12/2018
1538;2;0;0,8;442,61;TESORIERE COMUNALE - INTESA SAN PAOLO SPA; ;SOGGETTI DIVERSI-COMMISSIONE PAGAMENTO ADUE B2B MANDATO 2928440007404 NOME Cassa Depositi e Prestiti (P.      28 -R.     953);31/12/2018;106;0;519;1;Spese correnti;3;Acquisto di beni e servizi;2;Acquisto di servizi;17;Servizi finanziari;2;Oneri per servizio di tesoreria;31/12/2018
1538;3;0;59,5;442,61;TESORIERE COMUNALE - INTESA SAN PAOLO SPA; ;INTESA SANPAOLO S.P.A.-PAGAMENTO SPESE A CARICO ENTE (P.      38 -R.    1414);31/12/2018;106;0;519;1;Spese correnti;3;Acquisto di beni e servizi;2;Acquisto di servizi;17;Servizi finanziari;2;Oneri per servizio di tesoreria;31/12/2018
1538;4;0;115,51;442,61;TESORIERE COMUNALE - INTESA SAN PAOLO SPA; ;CASSA DI RISPARMIO DEL VENETO-PAGAMENTO SPESE A CARICO ENTE (P.      11 -R.     493);31/12/2018;106;0;519;1;Spese correnti;3;Acquisto di beni e servizi;2;Acquisto di servizi;17;Servizi finanziari;2;Oneri per servizio di tesoreria;31/12/2018
1538;5;0;266;442,61;TESORIERE COMUNALE - INTESA SAN PAOLO SPA; ;CASSA DI RISPARMIO DEL VENETO-PAGAMENTO SPESE A CARICO ENTE (P.      24 -R.     948);31/12/2018;106;0;519;1;Spese correnti;3;Acquisto di beni e servizi;2;Acquisto di servizi;17;Servizi finanziari;2;Oneri per servizio di tesoreria;31/12/2018
1539;1;0;28.030,01;28.030,01;CASSA DEPOSITI E PRESTITI; ;SOGGETTI DIVERSI-PAGAMENTO ADUE B2B MANDATO 2928440007404 NOME Cassa Depositi e Prestiti (P.      27 -R.     952);31/12/2018;122;1;545;1;Spese correnti;7;Interessi passivi;5;Interessi su Mutui e altri finanziamenti a medio lungo termine;4;Interessi passivi su finanziamenti a medio lungo termine a Imprese;3;Interessi passivi a Cassa Depositi e Prestiti SPA su mutui e altri finanziamenti a medio lungo termine;31/12/2018
1540;1;0;1.382,14;1.382,14;CASSA DEPOSITI E PRESTITI; ;SOGGETTI DIVERSI-PAGAMENTO ADUE B2B MANDATO 2928440007404 NOME Cassa Depositi e Prestiti (P.      27 -R.     952);31/12/2018;746;0;543;1;Spese correnti;7;Interessi passivi;5;Interessi su Mutui e altri finanziamenti a medio lungo termine;4;Interessi passivi su finanziamenti a medio lungo termine a Imprese;3;Interessi passivi a Cassa Depositi e Prestiti SPA su mutui e altri finanziamenti a medio lungo termine;31/12/2018
1541;1;0;346,88;346,88;CASSA DEPOSITI E PRESTITI; ;SOGGETTI DIVERSI-PAGAMENTO ADUE B2B MANDATO 2928440007404 NOME Cassa Depositi e Prestiti (P.      27 -R.     952);31/12/2018;840;0;544;1;Spese correnti;7;Interessi passivi;5;Interessi su Mutui e altri finanziamenti a medio lungo termine;4;Interessi passivi su finanziamenti a medio lungo termine a Imprese;3;Interessi passivi a Cassa Depositi e Prestiti SPA su mutui e altri finanziamenti a medio lungo termine;31/12/2018
1542;1;0;2.542,68;5.333,17;CASSA DEPOSITI E PRESTITI; ;SOGGETTI DIVERSI-PAGAMENTO ADUE B2B MANDATO 2928440007404 NOME Cassa Depositi e Prestiti (P.      27 -R.     952);31/12/2018;2026;0;542;1;Spese correnti;7;Interessi passivi;5;Interessi su Mutui e altri finanziamenti a medio lungo termine;4;Interessi passivi su finanziamenti a medio lungo termine a Imprese;3;Interessi passivi a Cassa Depositi e Prestiti SPA su mutui e altri finanziamenti a medio lungo termine;31/12/2018
1542;2;0;2.790,49;5.333,17;CASSA DEPOSITI E PRESTITI; ;SOGGETTI DIVERSI-PAGAMENTO ADUE B2B MANDATO 2928440007404 NOME Cassa Depositi e Prestiti (P.      25 -R.     950);31/12/2018;2026;0;542;1;Spese correnti;7;Interessi passivi;5;Interessi su Mutui e altri finanziamenti a medio lungo termine;4;Interessi passivi su finanziamenti a medio lungo termine a Imprese;3;Interessi passivi a Cassa Depositi e Prestiti SPA su mutui e altri finanziamenti a medio lungo termine;31/12/2018
1549;1;0;91;91;TESORIERE COMUNALE - INTESA SAN PAOLO SPA; ;INTESA SANPAOLO S.P.A.-PAGAMENTO SPESE A CARICO ENTE (P.      52 -R.    2016);31/12/2018;106;0;519;1;Spese correnti;3;Acquisto di beni e servizi;2;Acquisto di servizi;17;Servizi finanziari;2;Oneri per servizio di tesoreria;31/12/2018
1550;1;0;27.536,30;27.536,30;CASSA DEPOSITI E PRESTITI; ;SOGGETTI DIVERSI-PAGAMENTO ADUE B2B            COD DISP 0118121702SLFR NOME  CASSA DEPOSITI E PRESTITI SPAMANDATO 292844000740499 PFM   RUOLO 06050 RATE AMMORTAMENTO PRESTITI S (P.      51 -R.    2015);31/12/2018;122;1;547;1;Spese correnti;7;Interessi passivi;5;Interessi su Mutui e altri finanziamenti a medio lungo termine;4;Interessi passivi su finanziamenti a medio lungo termine a Imprese;3;Interessi passivi a Cassa Depositi e Prestiti SPA su mutui e altri finanziamenti a medio lungo termine;31/12/2018
1551;1;0;1.327,17;1.327,17;CASSA DEPOSITI E PRESTITI; ;SOGGETTI DIVERSI-PAGAMENTO ADUE B2B            COD DISP 0118121702SLFR NOME  CASSA DEPOSITI E PRESTITI SPAMANDATO 292844000740499 PFM   RUOLO 06050 RATE AMMORTAMENTO PRESTITI S (P.      51 -R.    2015);31/12/2018;746;0;548;1;Spese correnti;7;Interessi passivi;5;Interessi su Mutui e altri finanziamenti a medio lungo termine;4;Interessi passivi su finanziamenti a medio lungo termine a Imprese;3;Interessi passivi a Cassa Depositi e Prestiti SPA su mutui e altri finanziamenti a medio lungo termine;31/12/2018
